{"text_format":"1","workbook":"xlsx","n_sheets":4,"sheets":["Madlibs","Your Answers","Your Guesses","Parts of Speech"],"not_rendered":{"charts":0,"images":0,"macros":1,"external_links":0,"defined_names":1,"comments":0,"pivot_tables":0},"unopened":[],"bounds":{"document_bytes":16777216,"sheet_cells":100000,"rows_first":2000,"rows_last":500,"rows_between":2000,"halvings":0,"cell_chars":16384,"cell_head_chars":4096},"cells_cut":0,"cells_raw":0,"read":"whole","date_system":"1900"}

{"sheet":"Madlibs","index":0,"n_rows":35,"n_cols":21,"rows_kept":35,"cut":false,"hidden":false,"merged":[[10,9,11,9],[10,10,11,12],[14,9,15,9],[14,10,15,12],[18,9,19,9],[18,10,19,12],[0,0,0,6],[1,0,1,6],[0,8,1,15],[6,9,7,9],[6,10,7,12]]}
["Crazy Law Madlibs",null,null,null,null,null,null,null,"Speech Generator"]
["Over the years, crazy laws can be enacted because of unusual circumstances, then forgotten about. Let's look at some crazy laws in all 50 states!"]
[1,"Verb, present tense",null,null,32,"Noun"]
[2,"Noun",null,null,33,"Verb, present tense",null,null,null,null,null,null,null,663]
[3,"Verb, present tense",null,null,34,"Plural Noun"]
[4,"Noun",null,null,35,"Plural noun"]
[5,"Verb, present tense",null,null,36,"Adjective",null,null,null,"Adjectives",{"$f":"VLOOKUP(N7,words,2)","v":"lopsided"},null,null,678,null,null,null,null,null,"Adjective",{"$f":"RANDBETWEEN(1,1350)","v":345}]
[6,"Noun",null,null,37,"Plural noun",null,null,null,null,null,null,null,null,null,null,null,null,null,"Noun",{"$f":"RANDBETWEEN(1,4401)","v":588}]
[7,"Adjective",null,null,38,"Adjective",null,null,null,null,null,null,null,null,null,null,null,null,null,"Verb",{"$f":"RANDBETWEEN(1,2500)","v":1580}]
[8,"Plural noun",null,null,39,"Adjective",null,null,null,null,null,null,null,null,null,null,null,null,null,"Adverb",{"$f":"RANDBETWEEN(1,669)","v":395}]
[9,"Noun",null,null,40,"Adjective",null,null,null,"Nouns",{"$f":"VLOOKUP(N11,words,3)","v":"giraffe"},null,null,1706]
[10,"Verb ending in ING",null,null,41,"Plural noun"]
[11,"Plural body part",null,null,42,"A game"]
[12,"Noun",null,null,43,"Verb ending in ING"]
[13,"Plural noun",null,null,44,"Plural Noun",null,null,null,"Verbs",{"$f":"VLOOKUP(N15,words,4)","v":"disclose"},null,null,618]
[14,"Noun",null,null,45,"Verb ending in ING"]
[15,"Noun",null,null,46,"Verb ending in ING"]
[16,"Plural noun",null,null,47,"Noun"]
[17,"Verb, present tense",null,null,48,"Body part",null,null,null,"Adverb",{"$f":"VLOOKUP(N19,words,5)","v":"painfully"},null,null,406]
[18,"An animal",null,null,49,"A game"]
[19,"Noun",null,null,50,"An animal, plural"]
[20,"Verb ending in ING",null,null,51,"Verb, present tense"]
[21,"Plural noun",null,null,52,"A body part, plural"]
[22,"Occupation",null,null,53,"Verb, present tense"]
[23,"Verb, past tense",null,null,54,"Plural noun"]
[24,"Plural Noun",null,null,55,"Plural Noun"]
[25,"Adjective",null,null,56,"A number"]
[26,"Verb, present tense",null,null,57,"Verb ending in ING"]
[27,"Plural Noun",null,null,58,"Verb ending in ING"]
[28,"Noun",null,null,59,"Noun"]
[29,"Plural noun",null,null,60,"An event"]
[30,"Noun",null,null,61,"Plural noun"]
[31,"Verb, present tense",null,null,62,"Noun"]
[]
[null,null,null,null,null,null,null,null,null,null,null,null,null,null,3]

{"sheet":"Your Answers","index":1,"n_rows":53,"n_cols":50,"rows_kept":53,"cut":false,"hidden":false,"merged":[[17,41,18,41],[32,41,33,41],[5,1,5,7],[5,9,5,15],[6,8,6,14],[11,8,11,14],[12,8,12,14],[14,8,14,14],[20,5,20,11],[15,8,15,14],[16,1,16,7],[21,1,21,7],[17,5,17,11],[17,33,17,39],[19,16,19,22],[9,18,9,24],[1,6,1,12],[2,7,2,13],[3,10,3,16],[8,11,8,17],[4,8,4,14],[4,17,4,23],[3,19,3,25],[10,11,10,17],[34,1,34,7],[35,10,35,16],[37,12,37,18],[36,11,36,17],[26,9,26,15],[27,12,27,18],[29,11,29,17],[28,4,28,10],[32,7,32,13],[32,22,32,28],[32,30,32,36],[30,20,30,26],[31,25,31,31],[31,32,31,38],[22,12,22,18],[22,19,22,25],[23,10,23,16],[24,3,24,9],[25,6,25,12],[0,0,0,41],[13,9,13,15],[46,7,46,13],[47,10,47,16],[48,13,48,19],[48,26,48,32],[40,16,40,22],[41,12,41,18],[42,13,42,19],[43,18,43,24],[45,7,45,13],[38,8,38,14],[39,6,39,12],[7,21,7,27],[7,31,7,37],[50,12,50,18],[51,16,51,22],[52,4,52,10],[44,12,44,18],[44,20,44,26],[49,6,49,12],[49,25,49,31]]}
["Crazy Law Madlibs"]
[1,"It is illegal to ",null,null,null,null,{"$f":"Madlibs!C3","v":0},null,null,null,null,null,null,"while blindfolded in Alabama.",null,null,null,null,null,null,null,null,null,null,null,null,null,null,null,null,null,null,null,null,null,null,null,null,null,null,null,null,null,null,null,null,null,"drive"]
[2,"You can't put a(n)",null,null,null,null,null,{"$f":"Madlibs!C4","v":0},null,null,null,null,null,null,"in the back of an open vehicle in Alaska.",null,null,null,null,null,null,null,null,null,null,null,null,null,null,null,null,null,null,null,null,null,null,null,null,null,null,null,null,null,null,null,null,"animal"]
[3,"It's illegal for a donkey to ",null,null,null,null,null,null,null,null,{"$f":"Madlibs!C5","v":0},null,null,null,null,null,null,"in a ",null,{"$f":"Madlibs!C6","v":0},null,null,null,null,null,null," in Arizona.",null,null,null,null,null,null,null,null,null,null,null,null,null,null,null,null,null,null,null,null,"sleep","bathtub"]
[4,"In Arkansas, you can't",null,null,null,null,null,null,{"$f":"Madlibs!C7","v":0},null,null,null,null,null,null,"your ",null,{"$f":"Madlibs!C8","v":0},null,null,null,null,null,null,"near a sandwich shop after 9:00 p.m.",null,null,null,null,null,null,null,null,null,null,null,null,null,null,null,null,null,null,null,null,null,null,"honk","horn"]
[5,{"$f":"Madlibs!C9","v":0},null,null,null,null,null,null,null,{"$f":"Madlibs!C10","v":0},null,null,null,null,null,null,"are banned in California.",null,null,null,null,null,null,null,null,null,null,null,null,null,null,null,null,null,null,null,null,null,null,null,null,null,null,null,null,null,null,"Plastic","bags"]
[6,"It's illegal to keep a ",null,null,null,null,null,null,{"$f":"Madlibs!C11","v":0},null,null,null,null,null,null,"on your porch in Colorado.",null,null,null,null,null,null,null,null,null,null,null,null,null,null,null,null,null,null,null,null,null,null,null,null,null,null,null,null,null,null,null,"couch"]
[7,"In Connecticut, are are not allowed to cross the street while ",null,null,null,null,null,null,null,null,null,null,null,null,null,null,null,null,null,null,null,{"$f":"Madlibs!C12","v":0},null,null,null,null,null,null,"on your",null,null,{"$f":"Madlibs!C13","v":0},null,null,null,null,null,null,null,null,null,null,null,null,null,null,null,"walking","hands"]
[8,"In Delaware, it's illegal to sell ",null,null,null,null,null,null,null,null,null,{"$f":"Madlibs!C14","v":0},null,null,null,null,null,null,"fur.",null,null,null,null,null,null,null,null,null,null,null,null,null,null,null,null,null,null,null,null,null,null,null,null,null,null,null,null,"dog"]
[9,"In Florida, parents are prohibited from selling their ",null,null,null,null,null,null,null,null,null,null,null,null,null,null,null,null,{"$f":"Madlibs!C15","v":0},null,null,null,null,null,null,null,null,null,null,null,null,null,null,null,null,null,null,null,null,null,null,null,null,null,null,null,null,"skateboard"]
[10,"In Georgia, you cannot keep a ",null,null,null,null,null,null,null,null,null,{"$f":"Madlibs!C16","v":0},null,null,null,null,null,null,"in your back pocket if it is a Sunday.",null,null,null,null,null,null,null,null,null,null,null,null,null,null,null,null,null,null,null,null,null,null,null,null,null,null,null,null,"boat"]
[11,"It's illegal to place a ",null,null,null,null,null,null,{"$f":"Madlibs!C17","v":0},null,null,null,null,null,null,"in your ear in Hawaii.",null,null,null,null,null,null,null,null,null,null,null,null,null,null,null,null,null,null,null,null,null,null,null,null,null,null,null,null,null,null,null,"coin"]
[12,"It's illegal to sweep ",null,null,null,null,null,null,{"$f":"Madlibs!C18","v":0},null,null,null,null,null,null,"into the streets in Idaho.",null,null,null,null,null,null,null,null,null,null,null,null,null,null,null,null,null,null,null,null,null,null,null,null,null,null,null,null,null,null,null,"debris"]
[13,"In Illinois, you may not ",null,null,null,null,null,null,null,{"$f":"Madlibs!C19","v":0},null,null,null,null,null,null,"in a place that is on fire.",null,null,null,null,null,null,null,null,null,null,null,null,null,null,null,null,null,null,null,null,null,null,null,null,null,null,null,null,null,null,"eat"]
[14,"It's illegal to ride a ",null,null,null,null,null,null,{"$f":"Madlibs!C20","v":0},null,null,null,null,null,null,"above 10 mph in Indiana",null,null,null,null,null,null,null,null,null,null,null,null,null,null,null,null,null,null,null,null,null,null,null,null,null,null,null,null,null,null,null,"ride"]
[15,"You cannot throw a ",null,null,null,null,null,null,{"$f":"Madlibs!C21","v":0},null,null,null,null,null,null,"onto a highway in Iowa.",null,null,null,null,null,null,null,null,null,null,null,null,null,null,null,null,null,null,null,null,null,null,null,null,null,null,null,null,null,null,null,"brick"]
[16,{"$f":"Madlibs!C22","v":0},null,null,null,null,null,null,"your tires is banned in Kansas.",null,null,null,null,null,null,null,null,null,null,null,null,null,null,null,null,null,null,null,null,null,null,null,null,null,null,null,null,null,null,null,null,null,null,null,null,null,null,"screeching"]
[17,"Women in ",null,null,null,{"$f":"Madlibs!C23","v":0},null,null,null,null,null,null,"who weigh between 99 and 199 lbs must be accompanied by a ",null,null,null,null,null,null,null,null,null,null,null,null,null,null,null,null,null,null,null,null,{"$f":"Madlibs!C24","v":0},null,null,null,null,null,null,null,null,null,null,null,null,null,"bikinis","police officer"]
[null,"when walking down Kentucky highways."]
[18,"In Louisianna, Mardi Gras beads may not be ",null,null,null,null,null,null,null,null,null,null,null,null,null,null,{"$f":"Madlibs!C25","v":0},null,null,null,null,null,null,"out of 3rd story window.",null,null,null,null,null,null,null,null,null,null,null,null,null,null,null,null,null,null,null,null,null,null,null,"thrown"]
[19,"In Maine, ",null,null,null,{"$f":"Madlibs!C26","v":0},null,null,null,null,null,null,"may not be used as currency.",null,null,null,null,null,null,null,null,null,null,null,null,null,null,null,null,null,null,null,null,null,null,null,null,null,null,null,null,null,null,null,null,null,null,"Bullets"]
[20,{"$f":"Madlibs!C27","v":0},null,null,null,null,null,null,"shirts are illegal in public in Maryland",null,null,null,null,null,null,null,null,null,null,null,null,null,null,null,null,null,null,null,null,null,null,null,null,null,null,null,null,null,null,null,null,null,null,null,null,null,null,"sleeveless","fortunes"]
[21,"In Massachusetts, it's illegal to ",null,null,null,null,null,null,null,null,null,null,{"$f":"Madlibs!C28","v":0},null,null,null,null,null,null,{"$f":"Madlibs!C29","v":0},null,null,null,null,null,null,"without certification.",null,null,null,null,null,null,null,null,null,null,null,null,null,null,null,null,null,null,null,null,"tell"]
[22,"You cannot legally sell your",null,null,null,null,null,null,null,null,{"$f":"Madlibs!C30","v":0},null,null,null,null,null,null,"on a Sunday in Michigan.",null,null,null,null,null,null,null,null,null,null,null,null,null,null,null,null,null,null,null,null,null,null,null,null,null,null,null,null,null,"vehicle"]
[23,"Dirty ",null,{"$f":"Madlibs!C31","v":0},null,null,null,null,null,null,"are banned in Minnesota.",null,null,null,null,null,null,null,null,null,null,null,null,null,null,null,null,null,null,null,null,null,null,null,null,null,null,null,null,null,null,null,null,null,null,null,null,"tires"]
[24,"In Mississippi, ",null,null,null,null,{"$f":"Madlibs!C32","v":0},null,null,null,null,null,null,"labels cannot be enforced.",null,null,null,null,null,null,null,null,null,null,null,null,null,null,null,null,null,null,null,null,null,null,null,null,null,null,null,null,null,null,null,null,null,"nutrition"]
[25,"You are not allowed to ",null,null,null,null,null,null,null,{"$f":"Madlibs!C33","v":0},null,null,null,null,null,null,"a bear in Missouri.",null,null,null,null,null,null,null,null,null,null,null,null,null,null,null,null,null,null,null,null,null,null,null,null,null,null,null,null,null,null,"wrestle"]
[26,"In Montana, it's illegal to give a",null,null,null,null,null,null,null,null,null,null,{"$f":"Madlibs!G3","v":0},null,null,null,null,null,null,"as a present.",null,null,null,null,null,null,null,null,null,null,null,null,null,null,null,null,null,null,null,null,null,null,null,null,null,null,null,"rat"]
[27,"If you ",null,null,{"$f":"Madlibs!G4","v":0},null,null,null,null,null,null,"or burp during church, you are breaking the law in Nebraska.",null,null,null,null,null,null,null,null,null,null,null,null,null,null,null,null,null,null,null,null,null,null,null,null,null,null,null,null,null,null,null,null,null,null,null,"sneeze"]
[28,"In Nevada, it's illegal to sit on ",null,null,null,null,null,null,null,null,null,{"$f":"Madlibs!G5","v":0},null,null,null,null,null,null,null,null,null,null,null,null,null,null,null,null,null,null,null,null,null,null,null,null,null,null,null,null,null,null,null,null,null,null,null,"sidewalks"]
[29,"While at the beach in New Hampshire, you cannot pick up",null,null,null,null,null,null,null,null,null,null,null,null,null,null,null,null,null,null,{"$f":"Madlibs!G6","v":0},null,null,null,null,null,null,".",null,null,null,null,null,null,null,null,null,null,null,null,null,null,null,null,null,null,null,"seaweed"]
[30,"In New Jersey, if you are committing a crime, you are not allowed to wear",null,null,null,null,null,null,null,null,null,null,null,null,null,null,null,null,null,null,null,null,null,null,null,{"$f":"Madlibs!G7","v":0},null,null,null,null,null,null,{"$f":"Madlibs!G8","v":0},null,null,null,null,null,null,null,null,null,null,null,null,null,null,"bullet-proof","vests"]
[31,"In New Mexico, ",null,null,null,null,null,{"$f":"Madlibs!G9","v":0},null,null,null,null,null,null,"persons convicted of a ",null,null,null,null,null,null,null,{"$f":"Madlibs!G10","v":0},null,null,null,null,null,null,"or ",{"$f":"Madlibs!G11","v":0},null,null,null,null,null,null,"crime are ",null,null,null,null,null,null,null,null,null,"Insane","felonious","infamous"]
[null,"not allowed to vote."]
[32,{"$f":"Madlibs!G12","v":0},null,null,null,null,null,null,"are banned after 10 p.m. in New York.",null,null,null,null,null,null,null,null,null,null,null,null,null,null,null,null,null,null,null,null,null,null,null,null,null,null,null,null,null,null,null,null,null,null,null,null,null,null,"slippers"]
[33,"In North Carolina, playing",null,null,null,null,null,null,null,null,{"$f":"Madlibs!G13","v":0},null,null,null,null,null,null,"while drunk is against the law.",null,null,null,null,null,null,null,null,null,null,null,null,null,null,null,null,null,null,null,null,null,null,null,null,null,null,null,null,null,"Bingo"]
[34,"It is illegal to wear a hat while",null,null,null,null,null,null,null,null,null,{"$f":"Madlibs!G14","v":0},null,null,null,null,null,null," or at an event where it is happening in North Dakota.",null,null,null,null,null,null,null,null,null,null,null,null,null,null,null,null,null,null,null,null,null,null,null,null,null,null,null,null,"dancing"]
[35,"In Ohio, it's illegal to sell dyed ",null,null,null,null,null,null,null,null,null,null,{"$f":"Madlibs!G15","v":0},null,null,null,null,null,null,".",null,null,null,null,null,null,null,null,null,null,null,null,null,null,null,null,null,null,null,null,null,null,null,null,null,null,null,"chickens"]
[36,"In Oklahoma, horse-",null,null,null,null,null,null,{"$f":"Madlibs!G16","v":0},null,null,null,null,null,null,"is outlawed.",null,null,null,null,null,null,null,null,null,null,null,null,null,null,null,null,null,null,null,null,null,null,null,null,null,null,null,null,null,null,null,"tipping"]
[37,"You cannot go ",null,null,null,null,{"$f":"Madlibs!G17","v":0},null,null,null,null,null,null,"in a cemetery in Oregon.",null,null,null,null,null,null,null,null,null,null,null,null,null,null,null,null,null,null,null,null,null,null,null,null,null,null,null,null,null,null,null,null,null,"hunting"]
[38,"In Pennsulvania, you cannot sleep on top of a ",null,null,null,null,null,null,null,null,null,null,null,null,null,null,{"$f":"Madlibs!G18","v":0},null,null,null,null,null,null,"if it is outdoors.",null,null,null,null,null,null,null,null,null,null,null,null,null,null,null,null,null,null,null,null,null,null,null,"refridgerator"]
[39,"It is illegal to bite off someone's",null,null,null,null,null,null,null,null,null,null,{"$f":"Madlibs!G19","v":0},null,null,null,null,null,null,"in Rhode Island.",null,null,null,null,null,null,null,null,null,null,null,null,null,null,null,null,null,null,null,null,null,null,null,null,null,null,null,"leg"]
[40,"In South Carolina, you cannot play ",null,null,null,null,null,null,null,null,null,null,null,{"$f":"Madlibs!G20","v":0},null,null,null,null,null,null,"if you are a minor.",null,null,null,null,null,null,null,null,null,null,null,null,null,null,null,null,null,null,null,null,null,null,null,null,null,null,"pinball"]
[41,"Dogs may not hunt big game, unless it is a mountain",null,null,null,null,null,null,null,null,null,null,null,null,null,null,null,null,{"$f":"Madlibs!G21","v":0},null,null,null,null,null,null,"in South Dakota.",null,null,null,null,null,null,null,null,null,null,null,null,null,null,null,null,null,null,null,null,null,"lions"]
[42,"In Tennessee, students may not",null,null,null,null,null,null,null,null,null,null,{"$f":"Madlibs!G22","v":0},null,null,null,null,null,null,null,{"$f":"Madlibs!G23","v":0},null,null,null,null,null,null,"while at school.",null,null,null,null,null,null,null,null,null,null,null,null,null,null,null,null,null,null,null,"hold","hands"]
[43,"In Texas, if you ",null,null,null,null,null,{"$f":"Madlibs!G24","v":0},null,null,null,null,null,null,"something out of your neighbor's garbage can, you're breaking the law.",null,null,null,null,null,null,null,null,null,null,null,null,null,null,null,null,null,null,null,null,null,null,null,null,null,null,null,null,null,null,null,null,"eat"]
[44,"In Utah, throwing ",null,null,null,null,null,{"$f":"Madlibs!G25","v":0},null,null,null,null,null,null,"will result in a $50 fine.",null,null,null,null,null,null,null,null,null,null,null,null,null,null,null,null,null,null,null,null,null,null,null,null,null,null,null,null,null,null,null,null,"snowballs"]
[45,"Women may not wear fake",null,null,null,null,null,null,null,null,{"$f":"Madlibs!G26","v":0},null,null,null,null,null,null,"without the approval of their husband in Vermont.",null,null,null,null,null,null,null,null,null,null,null,null,null,null,null,null,null,null,null,null,null,null,null,null,null,null,null,null,null,"teeth"]
[46,"In Virginia, children over the age of ",null,null,null,null,null,null,null,null,null,null,null,{"$f":"Madlibs!G27","v":0},null,null,null,null,null,null,"are banned from ",null,null,null,null,null,{"$f":"Madlibs!G28","v":0},null,null,null,null,null,null,null,null,null,null,null,null,null,null,null,null,null,null,null,null,12,"trick or treating"]
[47,"In Washington, ",null,null,null,null,{"$f":"Madlibs!G29","v":0},null,null,null,null,null,null,"Big Foot or any other undiscovered ",null,null,null,null,null,null,null,null,null,null,null,{"$f":"Madlibs!G30","v":0},null,null,null,null,null,null,"is punishible by law.",null,null,null,null,null,null,null,null,null,null,null,null,null,null,"harassing","subspecies"]
[48,"If you have ever participated in a ",null,null,null,null,null,null,null,null,null,null,{"$f":"Madlibs!G31","v":0},null,null,null,null,null,null,", you may not run for public office in West Virginia.",null,null,null,null,null,null,null,null,null,null,null,null,null,null,null,null,null,null,null,null,null,null,null,null,null,null,null,"duel"]
[49,"In Wisconsin, you are not allowed to throw",null,null,null,null,null,null,null,null,null,null,null,null,null,null,{"$f":"Madlibs!G32","v":0},null,null,null,null,null,null,"at railway cars.",null,null,null,null,null,null,null,null,null,null,null,null,null,null,null,null,null,null,null,null,null,null,null,"rocks"]
[50,"Using a ",null,null,{"$f":"Madlibs!G33","v":0},null,null,null,null,null,null,"to fish is prohibited in Wyoming.",null,null,null,null,null,null,null,null,null,null,null,null,null,null,null,null,null,null,null,null,null,null,null,null,null,null,null,null,null,null,null,null,null,null,null,"firearm"]

{"sheet":"Your Guesses","index":2,"n_rows":53,"n_cols":56,"rows_kept":53,"cut":false,"hidden":false,"merged":[[50,12,50,18],[51,16,51,22],[52,4,52,10],[9,18,9,24],[10,11,10,17],[3,51,8,51],[45,7,45,13],[46,7,46,13],[47,10,47,16],[48,13,48,19],[48,26,48,32],[49,6,49,12],[49,25,49,31],[40,16,40,22],[41,12,41,18],[42,13,42,19],[43,18,43,24],[44,12,44,18],[44,20,44,26],[34,1,34,7],[35,10,35,16],[36,11,36,17],[37,12,37,18],[38,8,38,14],[39,6,39,12],[31,25,31,31],[31,32,31,38],[32,7,32,13],[32,22,32,28],[32,30,32,36],[32,41,33,41],[25,6,25,12],[26,9,26,15],[27,12,27,18],[28,4,28,10],[29,11,29,17],[30,20,30,26],[20,5,20,11],[21,1,21,7],[22,12,22,18],[22,19,22,25],[23,10,23,16],[24,3,24,9],[15,8,15,14],[16,1,16,7],[17,5,17,11],[17,33,17,39],[17,41,18,41],[19,16,19,22],[11,8,11,14],[12,8,12,14],[13,9,13,15],[14,8,14,14],[5,1,5,7],[5,9,5,15],[6,8,6,14],[7,21,7,27],[7,31,7,37],[8,11,8,17],[0,0,0,41],[1,6,1,12],[2,7,2,13],[3,10,3,16],[3,19,3,25],[4,8,4,14],[4,17,4,23]]}
["Crazy Law Madlibs"]
[1,"It is illegal to ",null,null,null,null,null,null,null,null,null,null,null,"while blindfolded in Alabama.",null,null,null,null,null,null,null,null,null,null,null,null,null,null,null,null,null,null,null,null,null,null,null,null,null,null,null,null,null,null,null,null,null,"drive"]
[2,"You can't put a(n)",null,null,null,null,null,null,null,null,null,null,null,null,"in the back of an open vehicle in Alaska.",null,null,null,null,null,null,null,null,null,null,null,null,null,null,null,null,null,null,null,null,null,null,null,null,null,null,null,null,null,null,null,null,"animal"]
[3,"It's illegal for a donkey to ",null,null,null,null,null,null,null,null,null,null,null,null,null,null,null,"in a ",null,null,null,null,null,null,null,null," in Arizona.",null,null,null,null,null,null,null,null,null,null,null,null,null,null,null,null,null,null,null,null,"sleep","bathtub",null,null,"Can you guess what the law actually is? Type in your guesses in the yellow boxes. If you are correct, they will turn green! (make sure to spell correctly!)"]
[4,"In Arkansas, you can't",null,null,null,null,null,null,null,null,null,null,null,null,null,"your ",null,null,null,null,null,null,null,null,"near a sandwich shop after 9:00 p.m.",null,null,null,null,null,null,null,null,null,null,null,null,null,null,null,null,null,null,null,null,null,null,"honk","horn",null,null,null,null,"drive",null,"rat"]
[5,null,null,null,null,null,null,null,null,null,null,null,null,null,null,null,"are banned in California.",null,null,null,null,null,null,null,null,null,null,null,null,null,null,null,null,null,null,null,null,null,null,null,null,null,null,null,null,null,null,"Plastic","bags",null,null,null,null,"animal",null,"sneeze"]
[6,"It's illegal to keep a ",null,null,null,null,null,null,null,null,null,null,null,null,null,"on your porch in Colorado.",null,null,null,null,null,null,null,null,null,null,null,null,null,null,null,null,null,null,null,null,null,null,null,null,null,null,null,null,null,null,null,"couch",null,null,null,null,null,"sleep",null,"sidewalks"]
[7,"In Connecticut, are are not allowed to cross the street while ",null,null,null,null,null,null,null,null,null,null,null,null,null,null,null,null,null,null,null,null,null,null,null,null,null,null,"on your",null,null,null,null,null,null,null,null,null,null,null,null,null,null,null,null,null,null,"walking","hands",null,null,null,null,"bathtub",null,"seaweed"]
[8,"In Delaware, it's illegal to sell ",null,null,null,null,null,null,null,null,null,null,null,null,null,null,null,null,"fur.",null,null,null,null,null,null,null,null,null,null,null,null,null,null,null,null,null,null,null,null,null,null,null,null,null,null,null,null,"dog",null,null,null,null,null,"honk",null,"bullet-proof"]
[9,"In Florida, parents are prohibited from selling their ",null,null,null,null,null,null,null,null,null,null,null,null,null,null,null,null,null,null,null,null,null,null,null,null,null,null,null,null,null,null,null,null,null,null,null,null,null,null,null,null,null,null,null,null,null,"skateboard",null,null,null,null,null,"horn",null,"vests"]
[10,"In Georgia, you cannot keep a ",null,null,null,null,null,null,null,null,null,null,null,null,null,null,null,null,"in your back pocket if it is a Sunday.",null,null,null,null,null,null,null,null,null,null,null,null,null,null,null,null,null,null,null,null,null,null,null,null,null,null,null,null,"boat",null,null,null,null,null,"plastic",null,"insane"]
[11,"It's illegal to place a ",null,null,null,null,null,null,null,null,null,null,null,null,null,"in your ear in Hawaii.",null,null,null,null,null,null,null,null,null,null,null,null,null,null,null,null,null,null,null,null,null,null,null,null,null,null,null,null,null,null,null,"coin",null,null,null,null,null,"bags",null,"felonious"]
[12,"It's illegal to sweep ",null,null,null,null,null,null,null,null,null,null,null,null,null,"into the streets in Idaho.",null,null,null,null,null,null,null,null,null,null,null,null,null,null,null,null,null,null,null,null,null,null,null,null,null,null,null,null,null,null,null,"debris",null,null,null,null,null,"couch",null,"infamous"]
[13,"In Illinois, you may not ",null,null,null,null,null,null,null,null,null,null,null,null,null,null,"in a place that is on fire.",null,null,null,null,null,null,null,null,null,null,null,null,null,null,null,null,null,null,null,null,null,null,null,null,null,null,null,null,null,null,"eat",null,null,null,null,null,"walking",null,"slippers"]
[14,"It's illegal to ride a ",null,null,null,null,null,null,null,null,null,null,null,null,null,"above 10 mph in Indiana",null,null,null,null,null,null,null,null,null,null,null,null,null,null,null,null,null,null,null,null,null,null,null,null,null,null,null,null,null,null,null,"ride",null,null,null,null,null,"hands",null,"Bingo"]
[15,"You cannot throw a ",null,null,null,null,null,null,null,null,null,null,null,null,null,"onto a highway in Iowa.",null,null,null,null,null,null,null,null,null,null,null,null,null,null,null,null,null,null,null,null,null,null,null,null,null,null,null,null,null,null,null,"brick",null,null,null,null,null,"ice cream cone",null,"dancing"]
[16,null,null,null,null,null,null,null,"your tires is banned in Kansas.",null,null,null,null,null,null,null,null,null,null,null,null,null,null,null,null,null,null,null,null,null,null,null,null,null,null,null,null,null,null,null,null,null,null,null,null,null,null,"screeching",null,null,null,null,null,"dog",null,"chickens"]
[17,"Women in ",null,null,null,null,null,null,null,null,null,null,"who weigh between 99 and 199 lbs must be accompanied by a ",null,null,null,null,null,null,null,null,null,null,null,null,null,null,null,null,null,null,null,null,null,null,null,null,null,null,null,null,null,null,null,null,null,null,"bikinis","police officer",null,null,null,null,"children",null,"tripping"]
[null,"when walking down Kentucky highways.",null,null,null,null,null,null,null,null,null,null,null,null,null,null,null,null,null,null,null,null,null,null,null,null,null,null,null,null,null,null,null,null,null,null,null,null,null,null,null,null,null,null,null,null,null,null,null,null,null,null,null,"coin",null,"hunting"]
[18,"In Louisianna, Mardi Gras beads may not be ",null,null,null,null,null,null,null,null,null,null,null,null,null,null,null,null,null,null,null,null,null,"out of 3rd story window.",null,null,null,null,null,null,null,null,null,null,null,null,null,null,null,null,null,null,null,null,null,null,null,"thrown",null,null,null,null,null,"debris",null,"refridgerator"]
[19,"In Maine, ",null,null,null,null,null,null,null,null,null,null,"may not be used as currency.",null,null,null,null,null,null,null,null,null,null,null,null,null,null,null,null,null,null,null,null,null,null,null,null,null,null,null,null,null,null,null,null,null,null,"Bullets",null,null,null,null,null,"eat",null,"leg"]
[20,null,null,null,null,null,null,null,"shirts are illegal in public in Maryland",null,null,null,null,null,null,null,null,null,null,null,null,null,null,null,null,null,null,null,null,null,null,null,null,null,null,null,null,null,null,null,null,null,null,null,null,null,null,"sleeveless","fortunes",null,null,null,null,"horse",null,"pinball"]
[21,"In Massachusetts, it's illegal to ",null,null,null,null,null,null,null,null,null,null,null,null,null,null,null,null,null,null,null,null,null,null,null,null,"without certification.",null,null,null,null,null,null,null,null,null,null,null,null,null,null,null,null,null,null,null,null,"tell",null,null,null,null,null,"brick",null,"lion"]
[22,"You cannot legally sell your",null,null,null,null,null,null,null,null,null,null,null,null,null,null,null,"on a Sunday in Michigan.",null,null,null,null,null,null,null,null,null,null,null,null,null,null,null,null,null,null,null,null,null,null,null,null,null,null,null,null,null,"vehicle",null,null,null,null,null,"screeching",null,"hold"]
[23,"Dirty ",null,null,null,null,null,null,null,null,"are banned in Minnesota.",null,null,null,null,null,null,null,null,null,null,null,null,null,null,null,null,null,null,null,null,null,null,null,null,null,null,null,null,null,null,null,null,null,null,null,null,"tires",null,null,null,null,null,"bikinis",null,"hands"]
[24,"In Mississippi, ",null,null,null,null,null,null,null,null,null,null,null,"labels cannot be enforced.",null,null,null,null,null,null,null,null,null,null,null,null,null,null,null,null,null,null,null,null,null,null,null,null,null,null,null,null,null,null,null,null,null,"nutrition",null,null,null,null,null,"police officer",null,"eat"]
[25,"You are not allowed to ",null,null,null,null,null,null,null,null,null,null,null,null,null,null,"a bear in Missouri.",null,null,null,null,null,null,null,null,null,null,null,null,null,null,null,null,null,null,null,null,null,null,null,null,null,null,null,null,null,null,"wrestle",null,null,null,null,null,"thrown",null,"snowballs"]
[26,"In Montana, it's illegal to give a",null,null,null,null,null,null,null,null,null,null,null,null,null,null,null,null,null,"as a present.",null,null,null,null,null,null,null,null,null,null,null,null,null,null,null,null,null,null,null,null,null,null,null,null,null,null,null,"rat",null,null,null,null,null,"bullets",null,"teeth"]
[27,"If you ",null,null,null,null,null,null,null,null,null,"or burp during church, you are breaking the law in Nebraska.",null,null,null,null,null,null,null,null,null,null,null,null,null,null,null,null,null,null,null,null,null,null,null,null,null,null,null,null,null,null,null,null,null,null,null,"sneeze",null,null,null,null,null,"sleeveless",null,12]
[28,"In Nevada, it's illegal to sit on ",null,null,null,null,null,null,null,null,null,null,null,null,null,null,null,null,null,null,null,null,null,null,null,null,null,null,null,null,null,null,null,null,null,null,null,null,null,null,null,null,null,null,null,null,null,"sidewalks",null,null,null,null,null,"tell",null,"trick-or-treating"]
[29,"While at the beach in New Hampshire, you cannot pick up",null,null,null,null,null,null,null,null,null,null,null,null,null,null,null,null,null,null,null,null,null,null,null,null,null,".",null,null,null,null,null,null,null,null,null,null,null,null,null,null,null,null,null,null,null,"seaweed",null,null,null,null,null,"fortunes",null,"harassing"]
[30,"In New Jersey, if you are committing a crime, you are not allowed to wear",null,null,null,null,null,null,null,null,null,null,null,null,null,null,null,null,null,null,null,null,null,null,null,null,null,null,null,null,null,null,null,null,null,null,null,null,null,null,null,null,null,null,null,null,null,"bullet-proof","vests",null,null,null,null,"vehicle",null,"sub-species"]
[31,"In New Mexico, ",null,null,null,null,null,null,null,null,null,null,null,null,"persons convicted of a ",null,null,null,null,null,null,null,null,null,null,null,null,null,null,"or ",null,null,null,null,null,null,null,"crime are ",null,null,null,null,null,null,null,null,null,"Insane","felonious","infamous",null,null,null,"tires",null,"duel"]
[null,"not allowed to vote.",null,null,null,null,null,null,null,null,null,null,null,null,null,null,null,null,null,null,null,null,null,null,null,null,null,null,null,null,null,null,null,null,null,null,null,null,null,null,null,null,null,null,null,null,null,null,null,null,null,null,null,"nutrition",null,"rocks"]
[32,null,null,null,null,null,null,null,"are banned after 10 p.m. in New York.",null,null,null,null,null,null,null,null,null,null,null,null,null,null,null,null,null,null,null,null,null,null,null,null,null,null,null,null,null,null,null,null,null,null,null,null,null,null,"slippers",null,null,null,null,null,"wrestle",null,"firearm"]
[33,"In North Carolina, playing",null,null,null,null,null,null,null,null,null,null,null,null,null,null,null,"while drunk is against the law.",null,null,null,null,null,null,null,null,null,null,null,null,null,null,null,null,null,null,null,null,null,null,null,null,null,null,null,null,null,"Bingo"]
[34,"It is illegal to wear a hat while",null,null,null,null,null,null,null,null,null,null,null,null,null,null,null,null," or at an event where it is happening in North Dakota.",null,null,null,null,null,null,null,null,null,null,null,null,null,null,null,null,null,null,null,null,null,null,null,null,null,null,null,null,"dancing"]
[35,"In Ohio, it's illegal to sell dyed ",null,null,null,null,null,null,null,null,null,null,null,null,null,null,null,null,null,".",null,null,null,null,null,null,null,null,null,null,null,null,null,null,null,null,null,null,null,null,null,null,null,null,null,null,null,"chickens"]
[36,"In Oklahoma, horse-",null,null,null,null,null,null,null,null,null,null,null,null,null,"is outlawed.",null,null,null,null,null,null,null,null,null,null,null,null,null,null,null,null,null,null,null,null,null,null,null,null,null,null,null,null,null,null,null,"tipping"]
[37,"You cannot go ",null,null,null,null,null,null,null,null,null,null,null,"in a cemetery in Oregon.",null,null,null,null,null,null,null,null,null,null,null,null,null,null,null,null,null,null,null,null,null,null,null,null,null,null,null,null,null,null,null,null,null,"hunting"]
[38,"In Pennsylvania, you cannot sleep on top of a ",null,null,null,null,null,null,null,null,null,null,null,null,null,null,null,null,null,null,null,null,null,"if it is outdoors.",null,null,null,null,null,null,null,null,null,null,null,null,null,null,null,null,null,null,null,null,null,null,null,"refridgerator"]
[39,"It is illegal to bite off someone's",null,null,null,null,null,null,null,null,null,null,null,null,null,null,null,null,null,"in Rhode Island.",null,null,null,null,null,null,null,null,null,null,null,null,null,null,null,null,null,null,null,null,null,null,null,null,null,null,null,"leg"]
[40,"In South Carolina, you cannot play ",null,null,null,null,null,null,null,null,null,null,null,null,null,null,null,null,null,null,"if you are a minor.",null,null,null,null,null,null,null,null,null,null,null,null,null,null,null,null,null,null,null,null,null,null,null,null,null,null,"pinball"]
[41,"Dogs may not hunt big game, unless it is a mountain",null,null,null,null,null,null,null,null,null,null,null,null,null,null,null,null,null,null,null,null,null,null,null,"in South Dakota.",null,null,null,null,null,null,null,null,null,null,null,null,null,null,null,null,null,null,null,null,null,"lions"]
[42,"In Tennessee, students may not",null,null,null,null,null,null,null,null,null,null,null,null,null,null,null,null,null,null,null,null,null,null,null,null,null,"while at school.",null,null,null,null,null,null,null,null,null,null,null,null,null,null,null,null,null,null,null,"hold","hands"]
[43,"In Texas, if you ",null,null,null,null,null,null,null,null,null,null,null,null,"something out of your neighbor's garbage can, you're breaking the law.",null,null,null,null,null,null,null,null,null,null,null,null,null,null,null,null,null,null,null,null,null,null,null,null,null,null,null,null,null,null,null,null,"eat"]
[44,"In Utah, throwing ",null,null,null,null,null,null,null,null,null,null,null,null,"will result in a $50 fine.",null,null,null,null,null,null,null,null,null,null,null,null,null,null,null,null,null,null,null,null,null,null,null,null,null,null,null,null,null,null,null,null,"snowballs"]
[45,"Women may not wear fake",null,null,null,null,null,null,null,null,null,null,null,null,null,null,null,"without the approval of their husband in Vermont.",null,null,null,null,null,null,null,null,null,null,null,null,null,null,null,null,null,null,null,null,null,null,null,null,null,null,null,null,null,"teeth"]
[46,"In Virginia, children over the age of ",null,null,null,null,null,null,null,null,null,null,null,null,null,null,null,null,null,null,"are banned from ",null,null,null,null,null,null,null,null,null,null,null,null,null,null,null,null,null,null,null,null,null,null,null,null,null,null,12,"trick or treating"]
[47,"In Washington, ",null,null,null,null,null,null,null,null,null,null,null,"Big Foot or any other undiscovered ",null,null,null,null,null,null,null,null,null,null,null,null,null,null,null,null,null,null,"is punishible by law.",null,null,null,null,null,null,null,null,null,null,null,null,null,null,"harassing","subspecies"]
[48,"If you have ever participated in a ",null,null,null,null,null,null,null,null,null,null,null,null,null,null,null,null,null,", you may not run for public office in West Virginia.",null,null,null,null,null,null,null,null,null,null,null,null,null,null,null,null,null,null,null,null,null,null,null,null,null,null,null,"duel"]
[49,"In Wisconsin, you are not allowed to throw",null,null,null,null,null,null,null,null,null,null,null,null,null,null,null,null,null,null,null,null,null,"at railway cars.",null,null,null,null,null,null,null,null,null,null,null,null,null,null,null,null,null,null,null,null,null,null,null,"rocks"]
[50,"Using a ",null,null,null,null,null,null,null,null,null,"to fish is prohibited in Wyoming.",null,null,null,null,null,null,null,null,null,null,null,null,null,null,null,null,null,null,null,null,null,null,null,null,null,null,null,null,null,null,null,null,null,null,null,"firearm"]

{"sheet":"Parts of Speech","index":3,"n_rows":4402,"n_cols":5,"rows_kept":4402,"cut":false,"hidden":true,"merged":[]}
[null,"Adjectives","Noun","Verb","Adverb"]
[1,"abandoned","aardvark","abate","abnormally"]
[2,"able","abacus","abbreviate","aboard"]
[3,"absolute","abbey","abide","about"]
[4,"academic","abdomen","abort","abroad"]
[5,"acceptable","ability","abscond","absentmindedly"]
[6,"acclaimed","abolishment","absorb","absolutely"]
[7,"accomplished","abroad","abstain","abundantly"]
[8,"accurate","accelerant","abuse","accidentally"]
[9,"aching","accelerator","accede","accordingly"]
[10,"acidic","accident","accelerate","actively"]
[11,"acrobatic","accompanist","accent","actually"]
[12,"active","accordion","accentuate","acutely"]
[13,"actual","account","accept","admiringly"]
[14,"adept","accountant","accommodate","affectionately"]
[15,"Adjectives","achieve","accompany","affirmatively"]
[16,"admirable","achiever","accost","after"]
[17,"admired","acid","accuse","afterwards"]
[18,"adolescent","acknowledgment","ache","agreeably"]
[19,"adorable","acoustic","achieve","almost"]
[20,"adorable","acoustics","acknowledge","already"]
[21,"crappy","acrylic","acquiesce","always"]
[22,"adored","act","acquire","amazingly"]
[23,"advanced","action","act","angrily"]
[24,"adventurous","active","adapt","annoyingly"]
[25,"affectionate","activity","add","annually"]
[26,"afraid","actor","address","anxiously"]
[27,"aged","actress","adhere","anyhow"]
[28,"aggravating","acupuncture","adjust","anyplace"]
[29,"aggressive","ad","administer","anyway"]
[30,"agile","adapter","admire","anywhere"]
[31,"agitated","addiction","admit","appreciably"]
[32,"agonizing","addition","admonish","appropriately"]
[33,"agreeable","address","adore","around"]
[34,"ajar","adjustment","adorn","arrogantly"]
[35,"alarmed","administration","advance","aside"]
[36,"alarming","adrenalin","advertise","assuredly"]
[37,"alculating","adult","advise","astonishingly"]
[38,"aleidoscopic","advancement","advocate","away"]
[39,"alert","advantage","affirm","awfully"]
[40,"alienated","advertisement","affix","awkwardly"]
[41,"alive","advertising","afk","badly"]
[42,"all","advice","afraid","barely"]
[43,"altruistic","affair","aggravate","bashfully"]
[44,"amazing","affect","agonize","beautifully"]
[45,"ambitious","afghanistan","agree","before"]
[46,"ample","africa","aid","begrudgingly"]
[47,"amused","aftermath","aim","believably"]
[48,"amusing","afternoon","air","bewilderedly"]
[49,"anchored","aftershave","alert","bewilderingly"]
[50,"ancient","aftershock","align","bitterly"]
[51,"angelic","afterthought","allege","bleakly"]
[52,"angry","age","allow","blindly"]
[53,"anguished","agency","allude","blissfully"]
[54,"animated","agenda","alphabetise","boastfully"]
[55,"annual","agent","alphabetize","boldly"]
[56,"another","aglet","alter","boldly"]
[57,"antique","agreement","alternate","boyishly"]
[58,"anxious","air","amble","bravely"]
[59,"any","airbag","amend","briefly"]
[60,"apprehensive","airbus","amuse","brightly"]
[61,"appropriate","airfare","analyse","brilliantly"]
[62,"apt","airforce","analyze","briskly"]
[63,"arctic","airline","angle","brutally"]
[64,"arid","airmail","animate","busily"]
[65,"aromatic","airplane","annotate","calmly"]
[66,"artistic","airport","announce","candidly"]
[67,"ashamed","airship","annoy","carefully"]
[68,"assured","alarm","anoint","carelessly"]
[69,"astonishing","alb","answer","casually"]
[70,"athletic","albatross","antagonise","cautiously"]
[71,"attached","alcohol","antagonize","certainly"]
[72,"attentive","alcove","anticipate","charmingly"]
[73,"attractive","alder","apologise","cheerfully"]
[74,"austere","algebra","apologize","chiefly"]
[75,"authentic","algeria","appeal","childishly"]
[76,"authorized","alibi","appear","cleanly"]
[77,"automatic","allergist","appease","clearly"]
[78,"avaricious","alley","applaud","cleverly"]
[79,"average","alligator","apply","closely"]
[80,"aware","alloy","appraise","cloudily"]
[81,"awesome","almanac","appreciate","clumsily"]
[82,"awful","almond","approach","coaxingly"]
[83,"awkward","alpaca","appropriate","coincidentally"]
[84,"babyish","alpenglow","approve","coldly"]
[85,"back","alpenhorn","arc","colorfully"]
[86,"bad","alpha","arch","comfortably"]
[87,"baggy","alphabet","argue","commonly"]
[88,"bare","alternative","arise","compactly"]
[89,"barren","altitude","arrange","compassionately"]
[90,"basic","alto","arrest","completely"]
[91,"beautiful","aluminium","articulate","confusedly"]
[92,"belated","aluminum","ascend","consequently"]
[93,"beloved","ambassador","ascertain","considerably"]
[94,"best","ambition","ask","considerately"]
[95,"better","ambulance","assail","consistently"]
[96,"bewitched","amendment","assault","constantly"]
[97,"big","america","assay","continually"]
[98,"big-hearted","amount","assent","continuously"]
[99,"biodegradable","amusement","assert","coolly"]
[100,"bite-sized","anagram","assess","correctly"]
[101,"bitter","analgesia","assign","courageously"]
[102,"black","analog","assist","covertly"]
[103,"black-and-white","analysis","assume","cowardly"]
[104,"bland","analyst","assure","crazily"]
[105,"blank","anatomy","astonish","crossly"]
[106,"blaring","anesthesiology","attach","cruelly"]
[107,"bleak","anethesiologist","attack","cunningly"]
[108,"blind","anger","attempt","curiously"]
[109,"blissful","angiosperm","attend","currently"]
[110,"blond","angle","audit","customarily"]
[111,"blue","angora","authorise","cutely"]
[112,"blushing","angstrom","authorize","daily"]
[113,"bogus","anguish","aver","daintily"]
[114,"boiling","animal","avert","dangerously"]
[115,"bold","anime","avoid","daringly"]
[116,"bony","ankle","avow","darkly"]
[117,"boring","anklet","await","dastardly"]
[118,"bossy","annual","awaken","dearly"]
[119,"both","anorak","babble","decently"]
[120,"bouncy","answer","backhand","deeply"]
[121,"bountiful","ant","backpedal","defiantly"]
[122,"bowed","antarctica","backtrack","deftly"]
[123,"brave","anteater","badger","deliberately"]
[124,"breakable","antechamber","badmouth","delicately"]
[125,"brief","antelope","baffle","delightfully"]
[126,"bright","anthony","bait","densely"]
[127,"brilliant","anthropology","bake","diagonally"]
[128,"brisk","antler","balance","differently"]
[129,"broken","anxiety","ball","diligently"]
[130,"bronze","anybody","bang","dimly"]
[131,"brown","anything","banish","directly"]
[132,"bruised","anywhere","banter","disorderly"]
[133,"bubbly","apartment","bare","divisively"]
[134,"bulky","ape","bargain","docilely"]
[135,"bumpy","aperitif","barge","dopily"]
[136,"buoyant","apology","bark","doubtfully"]
[137,"burdensome","apparatus","barrage","down"]
[138,"burly","apparel","barter","dramatically"]
[139,"bustling","appeal","bash","dreamily"]
[140,"busy","appearance","bask","during"]
[141,"buttery","appendix","bat","eagerly"]
[142,"buzzing","apple","bathe","early"]
[143,"calm","applewood","bawl","earnestly"]
[144,"candid","appliance","bay","easily"]
[145,"canine","application","beam","efficiently"]
[146,"capital","appointment","bear","effortlessly"]
[147,"carefree","approval","beat","elaborately"]
[148,"careful","april","beautify","elegantly"]
[149,"careless","apron","beckon","eloquently"]
[150,"caring","apse","become","elsewhere"]
[151,"cautious","aquarius","befall","emotionally"]
[152,"cavernous","aquifer","beg","endlessly"]
[153,"celebrated","arch","begin","energetically"]
[154,"charming","archaeology","behave","enjoyably"]
[155,"cheap","archeology","behold","enormously"]
[156,"cheerful","archer","belch","enough"]
[157,"cheery","architect","believe","enthusiastically"]
[158,"chief","architecture","belittle","entirely"]
[159,"chilly","arch-rival","bellow","equally"]
[160,"chubby","area","bemoan","especially"]
[161,"circular","argentina","bend","essentially"]
[162,"classic","argument","berate","eternally"]
[163,"clean","aries","beseech","ethically"]
[164,"clear","arithmetic","bestow","even"]
[165,"clear-cut","arm","bet","evenly"]
[166,"clever","armadillo","betray","eventually"]
[167,"close","armament","bicker","evermore"]
[168,"closed","armchair","bid","every"]
[169,"cloudy","armoire","bind","everywhere"]
[170,"clueless","armor","bite","evidently"]
[171,"clumsy","arm-rest","blame","evocatively"]
[172,"cluttered","army","blanch","exactly"]
[173,"coarse","arrival","blare","exceedingly"]
[174,"cold","arrow","blaspheme","exceptionally"]
[175,"colorful","art","blat","excitedly"]
[176,"colorless","artichoke","blather","exclusively"]
[177,"colossal","article","bleat","explicitly"]
[178,"comfortable","artificer","bleed","expressly"]
[179,"common","ascot","blend","extensively"]
[180,"compassionate","ash","bless","externally"]
[181,"competent","ashram","blind","extra"]
[182,"complete","ashtray","blink","extraordinarily"]
[183,"complex","asia","block","extremely"]
[184,"complicated","asparagus","blossom","fairly"]
[185,"composed","aspect","blot","faithfully"]
[186,"concerned","asphalt","blow","famously"]
[187,"concrete","assignment","blubber","far"]
[188,"confused","assistance","bludgeon","fashionably"]
[189,"conscious","assistant","bluff","fast"]
[190,"considerate","associate","blunder","fatally"]
[191,"constant","association","blurt","favorably"]
[192,"content","assumption","blush","ferociously"]
[193,"conventional","asterisk","bluster","fervently"]
[194,"cooked","astrakhan","boast","fiercely"]
[195,"cool","astrolabe","bob","fiery"]
[196,"cooperative","astrologer","boggle","finally"]
[197,"coordinated","astrology","bolster","financially"]
[198,"corny","astronomy","bolt","finitely"]
[199,"corrupt","atelier","bond","fluently"]
[200,"costly","athelete","bonk","fondly"]
[201,"courageous","athlete","boo","foolishly"]
[202,"courteous","atm","boom","forever"]
[203,"crafty","atmosphere","boost","formally"]
[204,"crazy","atom","bop","formerly"]
[205,"creamy","atrium","bore","fortunately"]
[206,"creative","attachment","boss","forward"]
[207,"creepy","attack","bounce","frankly"]
[208,"criminal","attempt","bound","frantically"]
[209,"crisp","attendant","bow","freely"]
[210,"critical","attention","box","frenetically"]
[211,"crooked","attenuation","brace","frequently"]
[212,"crowded","attic","brag","fully"]
[213,"cruel","attitude","braid","furiously"]
[214,"crushing","attorney","brandish","furthermore"]
[215,"cuddly","attraction","brawl","generally"]
[216,"cultivated","audience","bray","generously"]
[217,"cultured","auditorium","break","gently"]
[218,"cumbersome","august","breathe","genuinely"]
[219,"curly","aunt","breed","genuinely"]
[220,"curvy","australia","breez","girlishly"]
[221,"cute","author","bribe","gladly"]
[222,"cylindrical","authorisation","bridle","gleefully"]
[223,"damaged","authority","brighten","gracefully"]
[224,"damp","authorization","bring","graciously"]
[225,"dangerous","automaton","bristle","gradually"]
[226,"dapper","avalanche","broach","gratefully"]
[227,"daring","avenue","broadcast","greatly"]
[228,"dark","average","broaden","greedily"]
[229,"darling","awareness","brood","grimly"]
[230,"dazzling","azimuth","browbeat","grudgingly"]
[231,"dead","babe","browse","habitually"]
[232,"deadly","babies","brush","half-heartedly"]
[233,"deafening","baboon","buck","handily"]
[234,"dear","babushka","buckle","handsomely"]
[235,"dearest","baby","buff","haphazardly"]
[236,"decent","back","buffet","happily"]
[237,"decimal","backbone","bug","harmoniously"]
[238,"decisive","backdrop","build","harshly"]
[239,"deep","backpack","bulge","hastily"]
[240,"defenseless","bacon","bully","hastily"]
[241,"defensive","bad","bumble","hatefully"]
[242,"defiant","badge","bump","hauntingly"]
[243,"deficient","badger","bunch","healthily"]
[244,"definite","bafflement","bundle","heartily"]
[245,"definitive","bag","burble","heavily"]
[246,"delayed","bagel","burn","helpfully"]
[247,"delectable","bagpipe","burp","hence"]
[248,"delicious","bagpipes","burrow","highly"]
[249,"delightful","bail","burst","hitherto"]
[250,"delirious","bait","bury","honestly"]
[251,"demanding","bake","buss","hopelessly"]
[252,"dense","baker","bust","horizontally"]
[253,"dental","bakery","bustle","hourly"]
[254,"dependable","bakeware","butcher","how"]
[255,"dependent","balaclava","button","however"]
[256,"descriptive","balalaika","buy","hugely"]
[257,"deserted","balance","buzz","humorously"]
[258,"detailed","balcony","cackle","hungrily"]
[259,"determined","balinese","cajole","hurriedly"]
[260,"devoted","ball","calculate","hysterically"]
[261,"different","balloon","call","icily"]
[262,"difficult","ballpark","calm","identifiably"]
[263,"digital","bamboo","cantillate","idiotically"]
[264,"diligent","banana","canvass","imaginatively"]
[265,"dim","band","caper","immeasurably"]
[266,"dimpled","bandana","capitulate","immediately"]
[267,"dimwitted","bandanna","capture","immensely"]
[268,"direct","bandolier","care","impatiently"]
[269,"dirty","bangladesh","careen","impressively"]
[270,"disastrous","bangle","caress","inappropriately"]
[271,"discrete","banjo","carol","incessantly"]
[272,"disfigured","bank","carry","incorrectly"]
[273,"disguised","bankbook","cartwheel","indeed"]
[274,"disgusting","banker","carve","independently"]
[275,"dishonest","banquette","cash","indoors"]
[276,"disloyal","baobab","cast","indubitably"]
[277,"dismal","bar","castle","inevitably"]
[278,"dismal","barbara","catalog","infinitely"]
[279,"distant","barbeque","catapult","informally"]
[280,"distant","barber","catcall","infrequently"]
[281,"distinct","barbiturate","catch","innocently"]
[282,"distorted","barge","categorise","inquisitively"]
[283,"dizzy","baritone","categorize","instantly"]
[284,"dopey","barium","caterwaul","intelligently"]
[285,"doting","barn","cause","intensely"]
[286,"double","barometer","caution","intently"]
[287,"downright","barracks","cavort","interestingly"]
[288,"downright","barstool","caw","intermittently"]
[289,"drab","base","cease","internally"]
[290,"drafty","baseball","celebrate","invariably"]
[291,"dramatic","basement","center","invisibly"]
[292,"dreary","basin","centre","inwardly"]
[293,"dreary","basis","certify","ironically"]
[294,"droopy","basket","challenge","irrefutably"]
[295,"dry","basketball","change","irritably"]
[296,"dual","bass","chant","jaggedly"]
[297,"dull","bassinet","chaperone","jauntily"]
[298,"dutiful","bassoon","charge","jealously"]
[299,"each","bat","chase","jovially"]
[300,"eager","bath","chasten","joyfully"]
[301,"early","bather","chastise","joylessly"]
[302,"earnest","bathhouse","chat","joyously"]
[303,"easy","bathrobe","chatter","jubilantly"]
[304,"easy-going","bathroom","cheat","judgmentally"]
[305,"ecstatic","bathtub","check","just"]
[306,"edible","batter","cheer","justly"]
[307,"educated","battery","cherish","keenly"]
[308,"elaborate","batting","chew","kiddingly"]
[309,"elastic","battle","chide","kindheartedly"]
[310,"elated","battleship","chill","kindly"]
[311,"elderly","bay","chime","knavishly"]
[312,"electric","bayou","chinch","knottily"]
[313,"elegant","beach","chip","knowingly"]
[314,"elementary","bead","chirp","knowledgeably"]
[315,"elliptical","beak","chirr","kookily"]
[316,"embarrassed","beam","chisel","lastly"]
[317,"embellished","bean","chitter","late"]
[318,"eminent","beanie","choke","lately"]
[319,"emotional","beanstalk","chomp","later"]
[320,"empty","bear","choose","lazily"]
[321,"enchanted","beard","chop","less"]
[322,"enchanting","beast","chortle","lightly"]
[323,"eneficial","beat","chuck","likely"]
[324,"energetic","beautician","chuckle","limply"]
[325,"enlightened","beauty","cinch","lithely"]
[326,"enormous","beaver","circle","lively"]
[327,"enraged","bed","cite","loftily"]
[328,"entire","bedroom","claim","longingly"]
[329,"envious","bee","clamber","loosely"]
[330,"equal","beech","clamor","loudly"]
[331,"equatorial","beef","clamp","lovingly"]
[332,"essential","beer","clang","loyally"]
[333,"esteemed","beet","clap","luckily"]
[334,"ethical","beetle","clarify","luxuriously"]
[335,"euphoric","beggar","clash","madly"]
[336,"even","beginner","clasp","magically"]
[337,"evergreen","begonia","classify","mainly"]
[338,"everlasting","behavior","claw","majestically"]
[339,"every","beheading","clean","markedly"]
[340,"evil","behest","cleanse","materially"]
[341,"exalted","belfry","clear","meaningfully"]
[342,"excellent","belief","cleave","meanly"]
[343,"excitable","believe","clench","meantime"]
[344,"excited","bell","click","meanwhile"]
[345,"exciting","belligerency","climb","measurably"]
[346,"exemplary","bellows","clinch","mechanically"]
[347,"exhausted","belly","cling","medically"]
[348,"exotic","belt","clink","menacingly"]
[349,"expensive","bench","clip","merely"]
[350,"experienced","bend","clop","merrily"]
[351,"expert","beneficiary","close","methodically"]
[352,"extra-large","benefit","clothe","mightily"]
[353,"extraneous","bengal","club","miserably"]
[354,"extra-small","beret","cluck","mockingly"]
[355,"extroverted","berry","clutch","monthly"]
[356,"fabulous","bestseller","coach","morally"]
[357,"failing","best-seller","coax","more"]
[358,"faint","betty","cobble","moreover"]
[359,"fair","beverage","cock","mortally"]
[360,"faithful","beyond","coddle","mostly"]
[361,"fake","bibliography","coerce","much"]
[362,"false","bicycle","coil","mysteriously"]
[363,"familiar","bid","collapse","nastily"]
[364,"famous","bidet","collect","naturally"]
[365,"fancy","bifocals","collide","naughtily"]
[366,"fantastic","big","color","nearby"]
[367,"far","big-rig","colour","nearly"]
[368,"faraway","bijou","comb","neatly"]
[369,"far-flung","bike","combine","needily"]
[370,"far-off","bikini","comfort","negatively"]
[371,"fast","bill","command","nervously"]
[372,"fat","billboard","commence","never"]
[373,"fatal","bin","commend","nevertheless"]
[374,"fatherly","biology","comment","next"]
[375,"favorable","biplane","commentate","nicely"]
[376,"favorite","birch","commiserate","nightly"]
[377,"fearful","bird","commit","noisily"]
[378,"fearless","birdbath","commune","normally"]
[379,"feisty","birdcage","communicate","nosily"]
[380,"feline","birdhouse","compare","not"]
[381,"female","bird-watcher","compel","now"]
[382,"feminine","birth","compete","nowadays"]
[383,"few","birthday","complain","numbly"]
[384,"fickle","bit","compliment","obediently"]
[385,"filthy","bite","comply","obligingly"]
[386,"fine","black","comport","obnoxiously"]
[387,"finished","blackberry","compose","obviously"]
[388,"firm","blackboard","comprehend","occasionally"]
[389,"first","blackfish","compress","oddly"]
[390,"firsthand","bladder","compromise","offensively"]
[391,"fitting","blade","conceal","officially"]
[392,"fixed","blame","concede","often"]
[393,"flaky","blank","concenter","ominously"]
[394,"flamboyant","blanket","concentrate","once"]
[395,"flashy","blazer","conclude","only"]
[396,"flat","blight","concur","openly"]
[397,"flawed","blinker","condemn","optimistically"]
[398,"flawless","blister","condescend","orderly"]
[399,"flickering","blizzard","condone","ordinarily"]
[400,"flimsy","block","conduct","outdoors"]
[401,"flippant","blocker","confer","outrageously"]
[402,"flowery","blood","confess","outwardly"]
[403,"fluffy","bloodflow","confide","outwards"]
[404,"fluid","bloom","confine","overconfidently"]
[405,"flustered","bloomers","confirm","overseas"]
[406,"focused","blossom","confiscate","painfully"]
[407,"fond","blouse","confront","painlessly"]
[408,"foolhardy","blow","confuse","paradoxically"]
[409,"foolish","blowgun","congratulate","partially"]
[410,"forceful","blowhole","conjecture","particularly"]
[411,"forked","blue","connect","passionately"]
[412,"formal","blueberry","connote","patiently"]
[413,"forsaken","boar","conquer","perfectly"]
[414,"forthright","board","consecrate","periodically"]
[415,"fortunate","boat","consent","perpetually"]
[416,"fragrant","boat-building","conserve","persistently"]
[417,"frail","boatload","consider","personally"]
[418,"frank","boatyard","consign","persuasively"]
[419,"frayed","bobcat","console","physically"]
[420,"free","body","consort","plainly"]
[421,"French","bog","conspire","playfully"]
[422,"frequent","bolero","constrain","poetically"]
[423,"fresh","bolt","constrict","poignantly"]
[424,"friendly","bomb","construct","politely"]
[425,"frightened","bomber","consult","poorly"]
[426,"frightening","bondsman","cont","positively"]
[427,"frigid","bone","contemplate","possibly"]
[428,"frilly","bongo","contend","potentially"]
[429,"frivolous","bonnet","contest","powerfully"]
[430,"frizzy","bonsai","continue","presently"]
[431,"front","bonus","contort","presumably"]
[432,"frosty","boogeyman","contract","prettily"]
[433,"frozen","book","contradict","previously"]
[434,"frugal","bookcase","contribute","primly"]
[435,"fruitful","bookend","control","principally"]
[436,"full","booklet","convene","probably"]
[437,"fumbling","booster","converge","promptly"]
[438,"functional","boot","converse","properly"]
[439,"funny","bootee","convert","proudly"]
[440,"fussy","bootie","convey","punctually"]
[441,"fuzzy","boots","convict","puzzlingly"]
[442,"gargantuan","booty","convince","quaintly"]
[443,"gaseous","border","convulse","queasily"]
[444,"general","bore","coo","questionably"]
[445,"generous","bosom","cook","questioningly"]
[446,"gentle","botany","cool","quicker"]
[447,"genuine","bottle","cooperate","quickly"]
[448,"giant","bottling","coordinate","quietly"]
[449,"giddy","bottom","cope","quirkily"]
[450,"gifted","bottom-line","copy","quite"]
[451,"gigantic","boudoir","corner","quizzically"]
[452,"giving","bough","correct","randomly"]
[453,"glamorous","boundary","correspond","rapidly"]
[454,"glaring","bow","corrode","rarely"]
[455,"glass","bower","corrupt","readily"]
[456,"gleaming","bowl","cosset","really"]
[457,"gleeful","bowler","cough","reasonably"]
[458,"glistening","bowling","counsel","reassuringly"]
[459,"glittering","bowtie","count","recently"]
[460,"gloomy","box","counter","recklessly"]
[461,"glorious","boxer","counteract","regularly"]
[462,"glossy","boxspring","court","reliably"]
[463,"glum","boy","cover","reluctantly"]
[464,"golden","boyfriend","covet","remarkably"]
[465,"good","bra","cower","repeatedly"]
[466,"good-natured","brace","cozen","reponsibly"]
[467,"gorgeous","bracelet","crack","reproachfully"]
[468,"graceful","bracket","crackle","resentfully"]
[469,"gracious","brain","cradle","respectably"]
[470,"grand","brake","cram","respectfully"]
[471,"grandiose","branch","crane","restfully"]
[472,"granular","brand","crash","richly"]
[473,"grateful","brandy","crave","ridiculously"]
[474,"grave","brass","crawl","righteously"]
[475,"gray","brassiere","crease","rightfully"]
[476,"great","bratwurst","create","rightly"]
[477,"greedy","brazil","creep","rigidly"]
[478,"green","bread","crimp","roughly"]
[479,"gregarious","breadcrumb","cringe","routinely"]
[480,"grim","break","crinkle","rudely"]
[481,"grimy","breakfast","criticise","ruthlessly"]
[482,"gripping","breakpoint","criticize","sadly"]
[483,"grizzled","breast","critique","safely"]
[484,"gross","breastplate","croak","scarcely"]
[485,"grotesque","breath","crook","scarily"]
[486,"grouchy","breeze","croon","scientifically"]
[487,"grounded","bribery","crop","searchingly"]
[488,"growing","brick","cross","secretively"]
[489,"growling","bricklaying","crouch","securely"]
[490,"grown","bridge","crow","sedately"]
[491,"grubby","brief","crowd","seemingly"]
[492,"gruesome","briefs","crumble","seldom"]
[493,"grumpy","brilliant","crumple","selfishly"]
[494,"guilty","british","crunch","selflessly"]
[495,"gullible","broccoli","crush","separately"]
[496,"gummy","brochure","cry","seriously"]
[497,"hairy","broiler","cuddle","shakily"]
[498,"half","broker","cue","shamelessly"]
[499,"handmade","brome","cuff","sharply"]
[500,"handsome","bronchitis","cup","sheepishly"]
[501,"handy","bronco","curb","shoddily"]
[502,"happy","bronze","cure","shortly"]
[503,"happy-go-lucky","brooch","curl","shrilly"]
[504,"hard","brood","curse","shyly"]
[505,"hard-to-find","brook","curtsey","significantly"]
[506,"harmful","broom","curtsy","silently"]
[507,"harmless","brother","curve","silicitiously"]
[508,"harmonious","brother-in-law","cuss","simply"]
[509,"harsh","brow","cut","sincerely"]
[510,"hasty","brown","dab","singularly"]
[511,"hateful","brush","dabble","skillfully"]
[512,"haunting","brushfire","dally","sleepily"]
[513,"healthy","brushing","damage","slightly"]
[514,"heartfelt","bubble","dampen","slowly"]
[515,"hearty","bucket","dance","slyly"]
[516,"heavenly","buckle","dancearm","smoothly"]
[517,"heavy","bud","dancecheek","so"]
[518,"hefty","budget","dancecircle","softly"]
[519,"helpful","buffer","dancedip","solely"]
[520,"helpless","buffet","dancefollow","solemnly"]
[521,"hidden","bug","dancehop","solidly"]
[522,"hideous","buggy","dancejig","somehow"]
[523,"high","bugle","dancelead","sometimes"]
[524,"high-level","building","danceleap","somewhat"]
[525,"hilarious","bulb","danceleft","somewhere"]
[526,"hoarse","bull","dancepromenade","soon"]
[527,"hollow","bulldozer","dancerhythm","spasmodically"]
[528,"homely","bullet","danceright","specially"]
[529,"honest","bull-fighter","danceshuffle","specifically"]
[530,"honorable","bumper","dancesidestep","spectacularly"]
[531,"honored","bun","dancesweep","speedily"]
[532,"hopeful","bunch","danceswirl","spiritually"]
[533,"horrible","bungalow","dancetwirl","splendidly"]
[534,"hospitable","bunghole","dancewaltz","sporadically"]
[535,"hot","bunkhouse","dancewhirl","startlingly"]
[536,"huge","burglar","dandle","steadily"]
[537,"humble","burlesque","dangle","stealthily"]
[538,"humiliating","burma","dare","sternly"]
[539,"humming","burn","darken","still"]
[540,"humongous","burn-out","dart","strenuously"]
[541,"hungry","burst","dash","stressfully"]
[542,"hurtful","bus","dawdle","strictly"]
[543,"husky","bush","daydream","structurally"]
[544,"icky","business","dazzle","studiously"]
[545,"icy","bust","deadpan","stupidly"]
[546,"ideal","bustle","deal","stylishly"]
[547,"idealistic","butane","debate","subsequently"]
[548,"identical","butcher","decay","substantially"]
[549,"idiotic","butter","decide","subtly"]
[550,"idle","button","decipher","successfully"]
[551,"idolized","buy","declaim","suddenly"]
[552,"ignorant","buyer","declare","sufficiently"]
[553,"ill","buzzard","decline","suitably"]
[554,"illegal","cabana","decorate","superficially"]
[555,"ill-fated","cabbage","decrease","supremely"]
[556,"ill-informed","cabin","decree","surely"]
[557,"illiterate","cabinet","decry","surprisingly"]
[558,"illustrious","cable","dedicate","suspiciously"]
[559,"imaginary","caboose","deduce","sweetly"]
[560,"imaginative","cacao","deem","swiftly"]
[561,"immaculate","cactus","defend","sympathetically"]
[562,"immaterial","caddy","defer","systematically"]
[563,"immediate","cadet","defile","temporarily"]
[564,"immense","cafe","define","tenderly"]
[565,"impartial","caftan","deflate","tensely"]
[566,"impassioned","cake","deflect","tepidly"]
[567,"impeccable","calcification","defy","terribly"]
[568,"imperfect","calculation","delay","thankfully"]
[569,"imperturbable","calculator","delegate","then"]
[570,"impish","calculus","delete","there"]
[571,"impolite","calendar","deliberate","thereby"]
[572,"important","calf","deliver","thoroughly"]
[573,"impossible","calico","delve","thoughtfully"]
[574,"impractical","call","demand","thus"]
[575,"impressionable","calm","demonstrate","tightly"]
[576,"impressive","camel","demur","today"]
[577,"improbable","cameo","denounce","together"]
[578,"impure","camera","deny","tomorrow"]
[579,"bullet-proof","camp","depend","too"]
[580,"incomparable","campaign","deplore","totally"]
[581,"incompatible","campanile","deposit","touchingly"]
[582,"incomplete","can","deprive","tremendously"]
[583,"inconsequential","canada","deride","truly"]
[584,"incredible","canal","descend","truthfully"]
[585,"indelible","nutrition","describe","twice"]
[586,"indolent","cancer","desecrate","ultimately"]
[587,"inexperienced","candelabra","design","unabashedly"]
[588,"infamous","candidate","despair","unanimously"]
[589,"infantile","candle","despoil","unbearably"]
[590,"infatuated","candy","destroy","unbelievably"]
[591,"inferior","cane","detach","unemotionally"]
[592,"infinite","cannon","detect","unethically"]
[593,"informal","canoe","determine","unexpectedly"]
[594,"innocent","canon","develop","unfailingly"]
[595,"insecure","canopy","devour","unfavorably"]
[596,"insidious","canteen","diagnose","unfortunately"]
[597,"insignificant","canvas","dictate","uniformly"]
[598,"insistent","cap","die","unilaterally"]
[599,"instructive","cape","differ","unimpressively"]
[600,"insubstantial","capital","differentiate","universally"]
[601,"intelligent","capitulation","dig","unkindly"]
[602,"intent","capon","digest","unnaturally"]
[603,"intentional","cappelletti","digress","unnecessarily"]
[604,"interesting","cappuccino","dilate","unquestionably"]
[605,"internal","capricorn","dim","unselfishly"]
[606,"international","captain","diminish","unskillfully"]
[607,"intrepid","caption","dimple","unwillingly"]
[608,"ironclad","car","dine","up"]
[609,"irresponsible","caravan","dip","upbeat"]
[610,"irritating","carbon","direct","upliftingly"]
[611,"itchy","card","disagree","upright"]
[612,"jaded","cardboard","disappear","upside-down"]
[613,"jagged","cardigan","disapprove","upward"]
[614,"jam-packed","care","disbelieve","upwardly"]
[615,"jaunty","cargo","discern","urgently"]
[616,"jealous","carload","discipline","usefully"]
[617,"jittery","carnation","disclaim","uselessly"]
[618,"joint","carol","disclose","usually"]
[619,"jolly","carotene","discombobulate","utterly"]
[620,"jovial","carp","discourage","vacantly"]
[621,"joyful","carpenter","discover","vaguely"]
[622,"joyous","carpet","discriminate","vainly"]
[623,"jubilant","carport","discuss","valiantly"]
[624,"judicious","carriage","disentangle","vastly"]
[625,"juicy","carrier","disfavor","verbally"]
[626,"jumbo","carrot","disfavour","vertically"]
[627,"jumpy","carry","disguise","very"]
[628,"junior","cart","dishevel","viciously"]
[629,"juvenile","cartilage","dislodge","victoriously"]
[630,"keen","cartload","dismiss","vigilantly"]
[631,"key","cartoon","dismount","vigorously"]
[632,"kind","cartridge","disobey","violently"]
[633,"kindhearted","cascade","disparage","visibly"]
[634,"kindly","case","displace","visually"]
[635,"klutzy","casement","display","vivaciously"]
[636,"knobby","cash","disport","voluntarily"]
[637,"knotty","cashier","dispute","warmly"]
[638,"knowing","casino","disregard","weakly"]
[639,"knowledgeable","casserole","disrespect","wearily"]
[640,"known","cassock","dissemble","weekly"]
[641,"kooky","cast","dissolve","well"]
[642,"kosher","castanet","distance","wetly"]
[643,"lame","castanets","distinguish","when"]
[644,"lanky","castle","distort","where"]
[645,"large","cat","distract","while"]
[646,"last","catacomb","distribute","whole-heartedly"]
[647,"lasting","catamaran","distrust","wholly"]
[648,"late","category","disturb","why"]
[649,"lavish","caterpillar","disuse","wickedly"]
[650,"lawful","cathedral","dither","widely"]
[651,"lazy","catsup","dive","wiggly"]
[652,"leading","cattle","divert","wildly"]
[653,"leafy","cauliflower","divide","willfully"]
[654,"lean","cause","divulge","willingly"]
[655,"left","caution","dodder","wisely"]
[656,"legal","cave","dodge","woefully"]
[657,"legitimate","c-clamp","doff","wonderfully"]
[658,"light","cd","donate","worriedly"]
[659,"lighthearted","ceiling","doodle","worthily"]
[660,"likable","celebration","dote","wrongly"]
[661,"likely","celeriac","doublecheck","yearly"]
[662,"limited","celery","doubt","yearningly"]
[663,"limp","celeste","download","yesterday"]
[664,"limping","cell","downplay","yet"]
[665,"linear","cellar","doze","youthfully"]
[666,"lined","cello","draft","zanily"]
[667,"liquid","celsius","drag","zealously"]
[668,"little","cement","drain","zestfully"]
[669,"live","cemetery","dramatise","zestily"]
[670,"lively","cenotaph","dramatize"]
[671,"livid","census","drape"]
[672,"loathsome","cent","draw"]
[673,"lone","centenarian","drawl"]
[674,"lonely","center","dream"]
[675,"long","centimeter","drench"]
[676,"long-term","centurion","dress"]
[677,"loose","century","dribble"]
[678,"lopsided","cephalopod","drift"]
[679,"lost","ceramic","drill"]
[680,"loud","cereal","drink"]
[681,"lovable","certification","drip"]
[682,"lovely","cesspool","drive"]
[683,"loving","chador","drivel"]
[684,"low","chafe","drone"]
[685,"loyal","chain","drool"]
[686,"lucky","chainstay","droop"]
[687,"lumbering","chair","drop"]
[688,"luminous","chairlift","drum"]
[689,"lumpy","chairman","dry"]
[690,"lustrous","chairperson","dub"]
[691,"luxurious","chairwoman","duck"]
[692,"mad","chaise","duel"]
[693,"made-up","chalet","dump"]
[694,"magnificent","chalice","dunk"]
[695,"majestic","chalk","dust"]
[696,"major","champion","dwell"]
[697,"male","championship","dye"]
[698,"mammoth","chance","ease"]
[699,"married","chandelier","east"]
[700,"marvelous","change","eat"]
[701,"masculine","channel","eavesdrop"]
[702,"massive","chap","echo"]
[703,"mature","chapel","edge"]
[704,"meager","chapter","educate"]
[705,"mealy","character","effuse"]
[706,"mean","chard","elaborate"]
[707,"measly","charge","elbow"]
[708,"meaty","charity","elect"]
[709,"medical","charlatan","elevate"]
[710,"mediocre","charles","elucidate"]
[711,"medium","charm","elude"]
[712,"meek","chart","embellish"]
[713,"mellow","chastity","emboss"]
[714,"melodic","chasuble","embrace"]
[715,"memorable","chateau","embroider"]
[716,"menacing","chauffeur","emerge"]
[717,"merry","chauvinist","empathise"]
[718,"messy","check","empathize"]
[719,"metallic","checkroom","emphasise"]
[720,"mild","cheek","emphasize"]
[721,"milky","cheese","employ"]
[722,"mindless","cheetah","empower"]
[723,"miniature","chef","empty"]
[724,"minor","chemistry","emulate"]
[725,"minty","cheque","encase"]
[726,"miserable","cherries","encircle"]
[727,"miserly","cherry","enclose"]
[728,"misguided","chess","encompass"]
[729,"misty","chest","encounter"]
[730,"mixed","chick","encourage"]
[731,"modern","chicken","encroach"]
[732,"modest","chicory","end"]
[733,"moist","chief","endanger"]
[734,"monstrous","chiffonier","endorse"]
[735,"monthly","child","endure"]
[736,"monumental","childhood","energize"]
[737,"moral","children","enfold"]
[738,"mortified","chill","enforce"]
[739,"motherly","chime","engage"]
[740,"motionless","chimpanzee","engrave"]
[741,"mountainous","chin","engulf"]
[742,"muddy","china","enhance"]
[743,"muffled","chinese","enjoy"]
[744,"multicolored","chino","enlarge"]
[745,"mundane","chipmunk","enlighten"]
[746,"murky","chit-chat","enquire"]
[747,"mushy","chivalry","enshroud"]
[748,"musty","chive","ensnare"]
[749,"muted","chocolate","entangle"]
[750,"mysterious","choice","enter"]
[751,"naive","choker","entertain"]
[752,"narrow","chop","enthuse"]
[753,"nasty","chopstick","entice"]
[754,"natural","chord","entreat"]
[755,"naughty","chowder","entwine"]
[756,"nautical","christmas","enumerate"]
[757,"near","christopher","enunciate"]
[758,"neat","chrome","envelop"]
[759,"necessary","chromolithograph","envision"]
[760,"needy","chronograph","envy"]
[761,"negative","chronometer","equivocate"]
[762,"neglected","chub","erase"]
[763,"negligible","chug","escape"]
[764,"neighboring","church","escort"]
[765,"nervous","churn","espy"]
[766,"new","cicada","establish"]
[767,"next","cigarette","estimate"]
[768,"nice","cinema","etch"]
[769,"nifty","circle","evade"]
[770,"nimble","circulation","evaluate"]
[771,"nippy","circumference","evaporate"]
[772,"nocturnal","cirrus","evoke"]
[773,"noisy","citizenship","exaggerate"]
[774,"nonstop","city","examine"]
[775,"normal","civilisation","excavate"]
[776,"notable","clam","exchange"]
[777,"noted","clank","exclaim"]
[778,"noteworthy","clapboard","exclude"]
[779,"novel","clarinet","excuse"]
[780,"noxious","clasp","exhale"]
[781,"numb","class","exhibit"]
[782,"nutritious","classroom","exhort"]
[783,"nutty","claus","exist"]
[784,"obedient","clave","exits"]
[785,"obese","clavicle","exosculate"]
[786,"oblong","clavier","expand"]
[787,"oblong","cleaner","expect"]
[788,"obvious","cleat","experience"]
[789,"occasional","cleavage","explain"]
[790,"odd","clef","exploit"]
[791,"oddball","cleric","explore"]
[792,"offbeat","clerk","expose"]
[793,"offensive","click","expound"]
[794,"official","client","express"]
[795,"oily","cliff","extend"]
[796,"old","climate","extinguish"]
[797,"old-fashioned","climb","extract"]
[798,"only","clip","extrapolate"]
[799,"open","clipper","extricate"]
[800,"optimal","cloak","exult"]
[801,"optimistic","cloakroom","eye"]
[802,"opulent","clock","eyeball"]
[803,"orange","clockwork","fabricate"]
[804,"orderly","clogs","face"]
[805,"ordinary","cloister","fail"]
[806,"organic","close","faint"]
[807,"original","closet","fake"]
[808,"ornate","cloth","fall"]
[809,"ornery","clothes","falter"]
[810,"other","clothing","familiarise"]
[811,"our","cloud","familiarize"]
[812,"outgoing","cloudburst","fan"]
[813,"outlandish","cloudy","fancy"]
[814,"outlying","clove","fantasize"]
[815,"outrageous","clover","fasten"]
[816,"outstanding","club","favor"]
[817,"oval","clutch","favour"]
[818,"overcooked","coach","fawn"]
[819,"overdue","coal","fear"]
[820,"overjoyed","coast","feed"]
[821,"overlooked","coat","feel"]
[822,"palatable","cob","feign"]
[823,"pale","cobweb","feint"]
[824,"paltry","cockpit","fence"]
[825,"parallel","cockroach","fend"]
[826,"parched","cocktail","ferry"]
[827,"partial","cocoa","fetch"]
[828,"passionate","cod","fib"]
[829,"past","codon","fiddle"]
[830,"pastel","codpiece","fidget"]
[831,"peaceful","coevolution","fight"]
[832,"peppery","coffee","file"]
[833,"perfect","coffin","fill"]
[834,"perfumed","coil","finalize"]
[835,"periodic","coin","find"]
[836,"perky","coinsurance","finger"]
[837,"personal","coke","finish"]
[838,"pertinent","cold","fish"]
[839,"pesky","coliseum","fit"]
[840,"pessimistic","collar","fix"]
[841,"petty","collection","flail"]
[842,"phony","college","flank"]
[843,"physical","collision","flap"]
[844,"piercing","colloquia","flare"]
[845,"pink","colombia","flash"]
[846,"pitiful","colon","flatten"]
[847,"plain","colonisation","flatter"]
[848,"plaintive","colony","flaunt"]
[849,"plastic","color","flee"]
[850,"playful","colt","flex"]
[851,"pleasant","column","flick"]
[852,"pleased","columnist","flinch"]
[853,"pleasing","comb","fling"]
[854,"plump","combat","flip"]
[855,"plush","combination","flirt"]
[856,"pointed","comfort","flit"]
[857,"pointless","comfortable","float"]
[858,"poised","comic","flop"]
[859,"polished","comma","flounce"]
[860,"polite","command","flounder"]
[861,"political","commercial","flourish"]
[862,"poor","commission","flout"]
[863,"popular","committee","flow"]
[864,"portly","communicant","flub"]
[865,"posh","communication","fluff"]
[866,"positive","community","flush"]
[867,"possible","company","flute"]
[868,"potable","comparison","flutter"]
[869,"powerful","competition","fly"]
[870,"powerless","competitor","foam"]
[871,"practical","complaint","focus"]
[872,"precious","complement","fold"]
[873,"precious","complex","follow"]
[874,"present","component","fondle"]
[875,"prestigious","comportment","forbid"]
[876,"pretty","composer","force"]
[877,"previous","composition","forecast"]
[878,"pricey","compost","foretell"]
[879,"prickly","compulsion","forewarn"]
[880,"primary","computer","forge"]
[881,"prime","comradeship","forgeaddress"]
[882,"pristine","concept","forgeerase"]
[883,"private","concert","forget"]
[884,"prize","conclusion","forgewrite"]
[885,"probable","concrete","forgive"]
[886,"productive","condition","form"]
[887,"profitable","condominium","forsake"]
[888,"profuse","condor","fortify"]
[889,"proper","conductor","forumulate"]
[890,"proud","cone","found"]
[891,"prudent","confectionery","frame"]
[892,"punctual","conference","free"]
[893,"pungent","confidence","freemorph"]
[894,"puny","confirmation","freeze"]
[895,"pure","conflict","fret"]
[896,"purple","confusion","frighten"]
[897,"pushy","conga","frisk"]
[898,"putrid","congo","frolic"]
[899,"puzzled","congressman","froth"]
[900,"puzzling","congressperson","frown"]
[901,"quaint","congresswoman","fry"]
[902,"qualified","conifer","fulfil"]
[903,"quarrelsome","connection","fumble"]
[904,"quarterly","consent","fume"]
[905,"queasy","consequence","furl"]
[906,"querulous","console","furrow"]
[907,"questionable","consonant","fuss"]
[908,"quick","conspirator","gabble"]
[909,"quick-witted","constant","gag"]
[910,"quiet","constellation","gallivant"]
[911,"quintessential","construction","gallop"]
[912,"quirky","consul","gamble"]
[913,"felonious","consulate","gambol"]
[914,"quizzical","contact lens","gape"]
[915,"radiant","contagion","gargle"]
[916,"ragged","contest","gash"]
[917,"rapid","context","gasp"]
[918,"rare","continent","gather"]
[919,"rash","contract","gauge"]
[920,"raw","contrail","gawk"]
[921,"ready","contrary","gaze"]
[922,"real","contribution","generalize"]
[923,"realistic","control","genuflect"]
[924,"reasonable","convection","gesticulate"]
[925,"recent","conversation","gesture"]
[926,"reckless","convert","get"]
[927,"rectangular","convertible","gibber"]
[928,"red","cook","giggle"]
[929,"reflecting","cookie","give"]
[930,"regal","cooking","glance"]
[931,"regular","coonskin","glare"]
[932,"reliable","cope","glide"]
[933,"relieved","cop-out","glimpse"]
[934,"remarkable","copper","gloat"]
[935,"remorseful","co-producer","glow"]
[936,"remote","copy","glower"]
[937,"repentant","copyright","gnash"]
[938,"repulsive","copywriter","gnaw"]
[939,"required","cord","go"]
[940,"respectful","corduroy","goad"]
[941,"responsible","cork","gobble"]
[942,"revolving","cormorant","goggle"]
[943,"rewarding","corn","goose"]
[944,"rich","cornerstone","gossip"]
[945,"right","cornet","gouge"]
[946,"rigid","corral","govern"]
[947,"ringed","correspondent","grab"]
[948,"ripe","corridor","grade"]
[949,"roasted","corsage","grant"]
[950,"robust","cost","grapple"]
[951,"rosy","costume","grasp"]
[952,"ridiculous","cot","grate"]
[953,"rotating","cottage","gravitate"]
[954,"rotten","cotton","graze"]
[955,"rough","couch","greet"]
[956,"round","cougar","grieve"]
[957,"rowdy","cough","grill"]
[958,"royal","council","grimace"]
[959,"rubbery","councilman","grin"]
[960,"ruddy","councilor","grind"]
[961,"rude","councilperson","grip"]
[962,"rundown","councilwoman","gripe"]
[963,"runny","counter","grit"]
[964,"rural","counter-force","groan"]
[965,"rusty","countess","groom"]
[966,"sad","country","grope"]
[967,"safe","county","grouch"]
[968,"salty","couple","ground"]
[969,"same","courage","grovel"]
[970,"sandy","course","grow"]
[971,"sane","court","growl"]
[972,"sarcastic","cousin","grumble"]
[973,"sardonic","covariate","grump"]
[974,"satisfied","cover","grunt"]
[975,"scaly","coverall","guarantee"]
[976,"scarce","cow","guard"]
[977,"scared","cowbell","guess"]
[978,"scary","cowboy","guffaw"]
[979,"scented","crab","guide"]
[980,"scholarly","crack","gulp"]
[981,"scientific","cracker","gurgle"]
[982,"scornful","crackers","gush"]
[983,"scratchy","cradle","guzzle"]
[984,"scrawny","craftsman","gyrate"]
[985,"second","crash","hack"]
[986,"secondary","crate","haggle"]
[987,"second-hand","cravat","hail"]
[988,"secret","craw","hallucinate"]
[989,"self-assured","crawdad","halt"]
[990,"selfish","crayfish","hammer"]
[991,"self-reliant","crayon","hand"]
[992,"sentimental","cream","handle"]
[993,"separate","creative","hang"]
[994,"serene","creator","harass"]
[995,"serious","creature","harden"]
[996,"serpentine","creche","hark"]
[997,"several","credenza","harm"]
[998,"severe","credit","harmonize"]
[999,"shabby","creditor","harry"]
[1000,"shadowy","creek","harvest"]
[1001,"shady","creme brulee","hassle"]
[1002,"shallow","crest","hasten"]
[1003,"shameful","crew","hatch"]
[1004,"shameless","crib","hate"]
[1005,"sharp","cribbage","haul"]
[1006,"shimmering","cricket","head"]
[1007,"shiny","cricketer","head-butt"]
[1008,"shocked","crime","heal"]
[1009,"shocking","criminal","health"]
[1010,"shoddy","crinoline","hear"]
[1011,"short","criteria","hearten"]
[1012,"short-term","criterion","heat"]
[1013,"showy","criticism","heave"]
[1014,"shrill","crocodile","heckle"]
[1015,"shy","crocus","hector"]
[1016,"sick","croissant","hedge"]
[1017,"silent","crook","heed"]
[1018,"silky","crop","heft"]
[1019,"silly","cross","help"]
[1020,"silver","cross-contamination","hem"]
[1021,"similar","cross-stitch","herald"]
[1022,"simple","crotch","hesitate"]
[1023,"simplistic","croup","hew"]
[1024,"sinful","crow","hiccup"]
[1025,"single","crowd","hide"]
[1026,"sizzling","crown","hike"]
[1027,"skeletal","crude","hinder"]
[1028,"skinny","crush","hint"]
[1029,"sleepy","cry","hiss"]
[1030,"slight","crystallography","hit"]
[1031,"slim","cub","hitch"]
[1032,"slimy","cuban","hoard"]
[1033,"slippery","cuckoo","hobble"]
[1034,"slow","cucumber","hog"]
[1035,"slushy","cuff-links","hoist"]
[1036,"small","cultivar","hold"]
[1037,"smart","cultivator","holler"]
[1038,"smoggy","culture","hone"]
[1039,"smooth","culvert","honk"]
[1040,"smug","cummerbund","hook"]
[1041,"snappy","cup","hoot"]
[1042,"snarling","cupboard","hop"]
[1043,"sneaky","cupcake","hope"]
[1044,"sniveling","cupola","horrify"]
[1045,"snoopy","curio","hound"]
[1046,"sociable","curl","hover"]
[1047,"soft","curler","howl"]
[1048,"soggy","currency","huddle"]
[1049,"solid","current","huff"]
[1050,"somber","cursor","hug"]
[1051,"some","curtain","hum"]
[1052,"sophisticated","curve","humiliate"]
[1053,"sore","cushion","humor"]
[1054,"sorrowful","custard","humour"]
[1055,"soulful","custodian","hunch"]
[1056,"soupy","customer","hunt"]
[1057,"sour","cut","hurl"]
[1058,"Spanish","cuticle","hurrah"]
[1059,"sparkling","cutlet","hurry"]
[1060,"sparse","cutover","hurt"]
[1061,"specific","cutting","hurtle"]
[1062,"spectacular","cyclamen","hush"]
[1063,"speedy","cycle","hustle"]
[1064,"spherical","cyclone","hypnotize"]
[1065,"spicy","cylinder","idea"]
[1066,"spiffy","cymbal","idealize"]
[1067,"spirited","cymbals","identify"]
[1068,"spiteful","cynic","idolize"]
[1069,"splendid","cyst","ignite"]
[1070,"spotless","cytoplasm","ignore"]
[1071,"spotted","dad","illuminate"]
[1072,"spry","daffodil","illustrate"]
[1073,"square","dagger","imagine"]
[1074,"squeaky","dahlia","imbibe"]
[1075,"squiggly","daisy","imitate"]
[1076,"stable","damage","immerse"]
[1077,"staid","dame","immolate"]
[1078,"stained","dance","impair"]
[1079,"stale","dancer","impale"]
[1080,"standard","danger","impart"]
[1081,"starchy","daniel","impede"]
[1082,"stark","dark","implant"]
[1083,"starry","dart","implore"]
[1084,"steel","dash","imply"]
[1085,"steep","dashboard","import"]
[1086,"sticky","data","impose"]
[1087,"stiff","database","impress"]
[1088,"stimulating","date","imprint"]
[1089,"stingy","daughter","imprison"]
[1090,"stormy","david","improve"]
[1091,"straight","day","improvise"]
[1092,"strange","daybed","inaugurate"]
[1093,"strict","dead","inch"]
[1094,"strident","deadline","incline"]
[1095,"striking","deal","include"]
[1096,"striped","dealer","increase"]
[1097,"strong","dear","incriminate"]
[1098,"studious","death","indent"]
[1099,"stunning","deathwatch","indicate"]
[1100,"stupendous","deborah","induce"]
[1101,"stupid","debt","indulge"]
[1102,"sturdy","debtor","infect"]
[1103,"stylish","decade","infer"]
[1104,"subdued","december","infest"]
[1105,"submissive","decimal","inflame"]
[1106,"substantial","decision","inflate"]
[1107,"subtle","deck","inflect"]
[1108,"suburban","declination","influence"]
[1109,"sudden","decongestant","inform"]
[1110,"sugary","decrease","infuse"]
[1111,"sunny","decryption","ingest"]
[1112,"super","dedication","inhale"]
[1113,"superb","deer","initiate"]
[1114,"superficial","defense","inject"]
[1115,"superior","deficit","injure"]
[1116,"supportive","definition","ink"]
[1117,"sure-footed","deformation","inquire"]
[1118,"surprised","degree","inscribe"]
[1119,"suspicious","delete","insert"]
[1120,"svelte","delivery","insinuate"]
[1121,"sweaty","demand","insist"]
[1122,"sweet","demur","inspect"]
[1123,"sweltering","den","inspire"]
[1124,"swift","denim","install"]
[1125,"sympathetic","dentist","instigate"]
[1126,"talkative","deodorant","instruct"]
[1127,"tall","department","insult"]
[1128,"tame","departure","interact"]
[1129,"tan","dependent","intercept"]
[1130,"tangible","deployment","interfere"]
[1131,"tart","deposit","interject"]
[1132,"tasty","depression","interlace"]
[1133,"tattered","depressive","interlock"]
[1134,"taut","depth","interpret"]
[1135,"tedious","deputy","interrogate"]
[1136,"teeming","derby","interrupt"]
[1137,"tempting","derrick","intertwine"]
[1138,"tender","description","intervene"]
[1139,"tense","desert","interview"]
[1140,"tepid","design","intone"]
[1141,"terrible","designer","introduce"]
[1142,"terrific","desire","invent"]
[1143,"testy","desk","inventory"]
[1144,"thankful","dessert","invert"]
[1145,"that","destiny","investigate"]
[1146,"these","destroyer","invite"]
[1147,"thick","destruction","invoke"]
[1148,"thin","detail","irritate"]
[1149,"third","detainment","iterate"]
[1150,"thirsty","detective","jab "]
[1151,"this","detention","jabber "]
[1152,"thorny","determination","jam "]
[1153,"thorough","development","jangle "]
[1154,"those","deviance","jeer "]
[1155,"thoughtful","device","jerk "]
[1156,"threadbare","dew","jest "]
[1157,"thrifty","dhow","jibe "]
[1158,"thunderous","diadem","jiggle "]
[1159,"tidy","diamond","jingle "]
[1160,"tight","diaphragm","jog "]
[1161,"timely","diarist","join "]
[1162,"tinted","dibble","joke "]
[1163,"tiny","dickey","jolt "]
[1164,"tired","dictaphone","jostle "]
[1165,"torn","diction","judge "]
[1166,"total","dictionary","juggle "]
[1167,"tough","diet","jumble "]
[1168,"tragic","dietician","jump "]
[1169,"trained","difference","justify "]
[1170,"traumatic","differential","jut"]
[1171,"treasured","difficulty","keen "]
[1172,"tremendous","digestion","keep "]
[1173,"tremendous","digger","kick"]
[1174,"triangular","digital","kid"]
[1175,"tricky","dilapidation","kill"]
[1176,"trifling","dill","kiss "]
[1177,"trim","dime","knead "]
[1178,"trivial","dimension","knee "]
[1179,"troubled","dimple","kneel "]
[1180,"trusting","diner","knit "]
[1181,"trustworthy","dinghy","knock "]
[1182,"trusty","dinner","knot "]
[1183,"truthful","dinosaur","know "]
[1184,"tubby","diploma","kowtow"]
[1185,"turbulent","dipstick","label"]
[1186,"twin","direction","lace"]
[1187,"ugly","director","lament"]
[1188,"ultimate","dirndl","land"]
[1189,"unacceptable","dirt","languish"]
[1190,"unaware","disadvantage","lap"]
[1191,"uncomfortable","disarmament","lash"]
[1192,"uncommon","disaster","latch"]
[1193,"unconscious","disco","lather"]
[1194,"understated","disconnection","laud"]
[1195,"unequaled","discount","laugh"]
[1196,"uneven","discovery","launch"]
[1197,"unfinished","discrepancy","lavish"]
[1198,"unfit","discussion","lay"]
[1199,"unfolded","disease","lead"]
[1200,"unfortunate","disembodiment","leaf"]
[1201,"unhappy","disengagement","lean"]
[1202,"unhealthy","disguise","leap"]
[1203,"uniform","disgust","leave"]
[1204,"unimportant","dish","lecture"]
[1205,"unique","dishes","leer"]
[1206,"united","dishwasher","lend"]
[1207,"unkempt","disk","lengthen"]
[1208,"unknown","display","let"]
[1209,"unlawful","disposer","level"]
[1210,"unlined","distance","license"]
[1211,"unlucky","distribution","lick"]
[1212,"unnatural","distributor","lie"]
[1213,"unpleasant","district","lift"]
[1214,"unrealistic","divan","light"]
[1215,"unripe","diver","lighten"]
[1216,"unruly","divide","like"]
[1217,"unselfish","divider","lilt"]
[1218,"unsightly","diving","limp"]
[1219,"unsteady","division","linger"]
[1220,"unsung","dock","lisp"]
[1221,"untidy","doctor","list"]
[1222,"untimely","document","listen"]
[1223,"untried","doe","live"]
[1224,"untrue","dog","load"]
[1225,"unused","dogsled","loaf"]
[1226,"unusual","dogwood","lob"]
[1227,"unwelcome","doll","locate"]
[1228,"unwieldy","dollar","lock"]
[1229,"unwilling","dolman","log"]
[1230,"unwitting","dolphin","loiter"]
[1231,"unwritten","domain","loll"]
[1232,"upbeat","donald","long"]
[1233,"upright","donkey","look"]
[1234,"upset","donna","loom"]
[1235,"urban","door","loop"]
[1236,"usable","doorknob","loosen"]
[1237,"used","doorpost","lope"]
[1238,"useful","dorothy","lose"]
[1239,"useless","dory","lounge"]
[1240,"utilized","dot","love"]
[1241,"utter","double","lower"]
[1242,"vacant","doubling","lug"]
[1243,"vague","doubt","lull"]
[1244,"vain","doubter","lumber"]
[1245,"valid","downforce","lunge"]
[1246,"valuable","downgrade","lurch"]
[1247,"vapid","downtown","lure"]
[1248,"variable","draft","lurk"]
[1249,"vast","dragon","maintain "]
[1250,"velvety","dragonfly","make "]
[1251,"venerated","dragster","man "]
[1252,"vengeful","drain","manage "]
[1253,"verifiable","drake","maneuver "]
[1254,"vibrant","drama","mangle "]
[1255,"vicious","dramaturge","manhandle "]
[1256,"victorious","draw","manipulate "]
[1257,"vigilant","drawbridge","manoeuvre "]
[1258,"vigorous","drawer","manufacture "]
[1259,"villainous","drawing","map "]
[1260,"violent","dream","march "]
[1261,"violet","dredger","mark "]
[1262,"virtual","dress","market "]
[1263,"virtuous","dresser","marry "]
[1264,"visible","dressing","marvel "]
[1265,"vital","drill","mash "]
[1266,"vivacious","drink","mask "]
[1267,"vivid","drive","massage "]
[1268,"voluminous","driver","match "]
[1269,"wan","driveway","mate "]
[1270,"warlike","driving","matter "]
[1271,"warm","drizzle","maul "]
[1272,"warmhearted","dromedary","maunder "]
[1273,"warped","drop","mean "]
[1274,"wary","drug","meander "]
[1275,"wasteful","drum","measure "]
[1276,"watchful","drummer","meddle "]
[1277,"waterlogged","drunk","mediate "]
[1278,"watery","dry","meditate "]
[1279,"wavy","dryer","meep "]
[1280,"weak","duck","meet "]
[1281,"wealthy","duckling","melt "]
[1282,"weary","dud","memorize "]
[1283,"webbed","duffel","menace "]
[1284,"wee","dugout","mend "]
[1285,"weekly","dulcimer","mention "]
[1286,"weepy","dumbwaiter","mentor "]
[1287,"weighty","dump truck","meow "]
[1288,"weird","dune buggy","mesh "]
[1289,"welcome","dungarees","mew "]
[1290,"well-documented","dungeon","mewl "]
[1291,"well-groomed","duplexer","migrate "]
[1292,"well-informed","dust","milk "]
[1293,"well-lit","dust storm","mime "]
[1294,"well-made","duster","mimic "]
[1295,"well-off","duty","mince "]
[1296,"well-to-do","dwarf","mind "]
[1297,"well-worn","dwelling","mine "]
[1298,"wet","dynamo","mingle "]
[1299,"which","eagle","misdirect "]
[1300,"whimsical","ear","mishear "]
[1301,"whirlwind","eardrum","misjudge "]
[1302,"whispered","earmuffs","mislead "]
[1303,"white","earplug","mispronounce "]
[1304,"whole","earrings","miss "]
[1305,"whopping","earth","misspell "]
[1306,"wicked","earthquake","mistake "]
[1307,"wide","earthworm","misunderstand "]
[1308,"wide-eyed","ease","mix "]
[1309,"wiggly","easel","moan "]
[1310,"wild","east","mock "]
[1311,"willing","eave","model "]
[1312,"wilted","eavesdropper","modify "]
[1313,"winding","e-book","moisten "]
[1314,"windy","ecclesia","mold "]
[1315,"winged","eclipse","molest "]
[1316,"wiry","ecliptic","mollify "]
[1317,"wise","economics","mollycoddle "]
[1318,"witty","ecumenist","monitor "]
[1319,"wobbly","eddy","moo "]
[1320,"woeful","edge","moor "]
[1321,"wonderful","edger","mope "]
[1322,"wooden","editor","more "]
[1323,"woozy","editorial","morph "]
[1324,"wordy","education","mosey "]
[1325,"worldly","edward","motion "]
[1326,"worn","eel","motivate "]
[1327,"worried","effacement","mould "]
[1328,"worrisome","effect","mount "]
[1329,"worse","effective","mourn "]
[1330,"worst","efficacy","mouth "]
[1331,"worthless","efficiency","move "]
[1332,"worthwhile","effort","mow "]
[1333,"worthy","egg","muffle "]
[1334,"wrathful","egghead","mug "]
[1335,"wretched","eggnog","mull "]
[1336,"writhing","eggplant","multiply "]
[1337,"wrong","egypt","mumble "]
[1338,"wry","eight","munch "]
[1339,"yawning","ejector","murder "]
[1340,"yearly","elbow","murmur "]
[1341,"yellow","election","muse "]
[1342,"yellowish","electrocardiogram","muss "]
[1343,"young","element","mutilate "]
[1344,"youthful","elephant","mutter"]
[1345,"yummy","elevator","nag "]
[1346,"zany","elixir","nail "]
[1347,"zealous","elizabeth","name "]
[1348,"zesty","elk","nap "]
[1349,"zigzag","ellipse","narrate "]
[1350,"true","elm","narrow "]
[1351,null,"elongation","navigate "]
[1352,null,"embossing","neaten "]
[1353,null,"emergence","need "]
[1354,null,"emergent","neglect "]
[1355,null,"emery","negotiate "]
[1356,null,"emotion","neigh "]
[1357,null,"emphasis","nest "]
[1358,null,"employ","nestle "]
[1359,null,"employee","never "]
[1360,null,"employer","nibble "]
[1361,null,"employment","nick "]
[1362,null,"empowerment","nicker "]
[1363,null,"emu","nip "]
[1364,null,"encirclement","nod "]
[1365,null,"encyclopedia","nominate "]
[1366,null,"end","normalize "]
[1367,null,"endothelium","notch "]
[1368,null,"enemy","note "]
[1369,null,"energy","notice "]
[1370,null,"engine","notify "]
[1371,null,"engineer","nudge "]
[1372,null,"engineering","number "]
[1373,null,"english","nurse "]
[1374,null,"enigma","nuzzle"]
[1375,null,"enquiry","obey "]
[1376,null,"entertainment","object "]
[1377,null,"enthusiasm","oblige "]
[1378,null,"entrance","observe "]
[1379,null,"entry","obsess "]
[1380,null,"environment","obtain "]
[1381,null,"epauliere","occupy "]
[1382,null,"epee","occur "]
[1383,null,"ephemera","offend "]
[1384,null,"ephemeris","offer "]
[1385,null,"epoch","officiate "]
[1386,null,"eponym","ogle "]
[1387,null,"epoxy","ooc "]
[1388,null,"equinox","ooze "]
[1389,null,"equipment","open "]
[1390,null,"era","operate "]
[1391,null,"e-reader","opine "]
[1392,null,"error","oppose "]
[1393,null,"escape","oppugn "]
[1394,null,"espadrille","opt "]
[1395,null,"espalier","orate "]
[1396,null,"establishment","order "]
[1397,null,"estate","organise "]
[1398,null,"estimate","organize "]
[1399,null,"estrogen","orient "]
[1400,null,"estuary","originate "]
[1401,null,"ethernet","ornament "]
[1402,null,"ethiopia","osculate "]
[1403,null,"euphonium","outdo "]
[1404,null,"eurocentrism","outline "]
[1405,null,"europe","outmaneuver "]
[1406,null,"evaluator","outmanoeuvre "]
[1407,null,"evening","outwit "]
[1408,null,"evening-wear","overbalance "]
[1409,null,"event","overbear "]
[1410,null,"eviction","overcome "]
[1411,null,"evidence","overcompensate "]
[1412,null,"evocation","overdo "]
[1413,null,"exam","overdraw "]
[1414,null,"examination","overflow "]
[1415,null,"examiner","overhear "]
[1416,null,"example","overlook "]
[1417,null,"exchange","overpower "]
[1418,null,"excitement","overtake "]
[1419,null,"exclamation","overthrow "]
[1420,null,"excuse","overturn "]
[1421,null,"executor","owe "]
[1422,null,"exhaust","own"]
[1423,null,"ex-husband","pace "]
[1424,null,"exile","pack "]
[1425,null,"existence","pad "]
[1426,null,"exit","paddle "]
[1427,null,"expansion","paint "]
[1428,null,"expansionism","palaver "]
[1429,null,"experience","pale "]
[1430,null,"expert","palm "]
[1431,null,"explanation","palpate "]
[1432,null,"exposition","pamper "]
[1433,null,"expression","panic "]
[1434,null,"extension","pant "]
[1435,null,"extent","parade "]
[1436,null,"extreme","paraphrase "]
[1437,null,"ex-wife","pardon "]
[1438,null,"eye","park "]
[1439,null,"eyeball","parrot "]
[1440,null,"eyebrow","parry "]
[1441,null,"eyebrows","part "]
[1442,null,"eyeglasses","participate "]
[1443,null,"eyelash","pass "]
[1444,null,"eyelashes","pat "]
[1445,null,"eyelid","patch "]
[1446,null,"eyelids","patrol "]
[1447,null,"eyeliner","patronize "]
[1448,null,"eyestrain","pause "]
[1449,null,"face","paw "]
[1450,null,"facelift","pay "]
[1451,null,"facet","peck "]
[1452,null,"facilities","pedal "]
[1453,null,"facsimile","peek "]
[1454,null,"fact","peel "]
[1455,null,"factor","peep "]
[1456,null,"factory","peer "]
[1457,null,"faculty","pelt "]
[1458,null,"fahrenheit","perceive "]
[1459,null,"failure","perch "]
[1460,null,"fairies","perfect "]
[1461,null,"fairy","perform "]
[1462,null,"fall","perk "]
[1463,null,"falling-out","permit "]
[1464,null,"familiar","persist "]
[1465,null,"family","perspire "]
[1466,null,"fan","persuade "]
[1467,null,"fang","peruse "]
[1468,null,"fanlight","pester "]
[1469,null,"fanny","pet "]
[1470,null,"fanny-pack","philosophise "]
[1471,null,"farm","philosophize "]
[1472,null,"farmer","phone "]
[1473,null,"fascia","photograph "]
[1474,null,"fat","pick "]
[1475,null,"father","picture "]
[1476,null,"father-in-law","pierce "]
[1477,null,"fatigues","pile "]
[1478,null,"faucet","pilot "]
[1479,null,"fault","pin "]
[1480,null,"fawn","pinch "]
[1481,null,"fax","pine "]
[1482,null,"fear","pinpoint "]
[1483,null,"feast","pioneer "]
[1484,null,"feather","pipe "]
[1485,null,"feature","pitch "]
[1486,null,"february","pity "]
[1487,null,"fedelini","pivot "]
[1488,null,"fedora","placate "]
[1489,null,"feed","place "]
[1490,null,"feedback","plait "]
[1491,null,"feeling","plan "]
[1492,null,"feet","plant "]
[1493,null,"felony","play "]
[1494,null,"female","plead "]
[1495,null,"fen","please "]
[1496,null,"fence","pledge "]
[1497,null,"fencing","plod "]
[1498,null,"fender","plonk "]
[1499,null,"ferry","plop "]
[1500,null,"ferryboat","plot "]
[1501,null,"fertilizer","plow "]
[1502,null,"few","pluck "]
[1503,null,"fiber","plug "]
[1504,null,"fiberglass","plump "]
[1505,null,"fibre","plunge "]
[1506,null,"fiction","point "]
[1507,null,"fiddle","poke "]
[1508,null,"field","polish "]
[1509,null,"fifth","ponder "]
[1510,null,"fight","pontificate "]
[1511,null,"fighter","pop "]
[1512,null,"figurine","pore "]
[1513,null,"file","pose "]
[1514,null,"fill","position "]
[1515,null,"filly","possess "]
[1516,null,"filth","post "]
[1517,null,"final","postulate "]
[1518,null,"finance","pounce "]
[1519,null,"find","pound "]
[1520,null,"finding","pour "]
[1521,null,"fine","pout "]
[1522,null,"finger","practice "]
[1523,null,"fingernail","practise "]
[1524,null,"finisher","praise "]
[1525,null,"fir","prance "]
[1526,null,"fire","prattle "]
[1527,null,"fireman","pray "]
[1528,null,"fireplace","preach "]
[1529,null,"firewall","precede "]
[1530,null,"fish","predict "]
[1531,null,"fishbone","preen "]
[1532,null,"fisherman","prefer "]
[1533,null,"fishery","prepare "]
[1534,null,"fishing","prescribe "]
[1535,null,"fishmonger","present "]
[1536,null,"fishnet","preserve "]
[1537,null,"fisting","press "]
[1538,null,"fix","pressure "]
[1539,null,"fixture","presume "]
[1540,null,"flag","pretend "]
[1541,null,"flame","prevaricate "]
[1542,null,"flanker","prevent "]
[1543,null,"flare","prick "]
[1544,null,"flash","primp "]
[1545,null,"flat","print "]
[1546,null,"flatboat","prise "]
[1547,null,"flavor","probe "]
[1548,null,"flax","proceed "]
[1549,null,"fleck","process "]
[1550,null,"fleece","proclaim "]
[1551,null,"flesh","procrastinate "]
[1552,null,"flight","procure "]
[1553,null,"flintlock","prod "]
[1554,null,"flip-flops","produce "]
[1555,null,"flock","profess "]
[1556,null,"flood","proffer "]
[1557,null,"floor","prognosticate "]
[1558,null,"floozie","progress "]
[1559,null,"flower","prohibit "]
[1560,null,"flu","project "]
[1561,null,"flugelhorn","promenade "]
[1562,null,"fluke","promise "]
[1563,null,"flute","promote "]
[1564,null,"fly","prompt "]
[1565,null,"flytrap","prong "]
[1566,null,"foam","pronounce "]
[1567,null,"fob","proofread "]
[1568,null,"focus","prop "]
[1569,null,"fog","propel "]
[1570,null,"fold","prophesize "]
[1571,null,"folder","prophesy "]
[1572,null,"fondue","propose "]
[1573,null,"font","proposition "]
[1574,null,"food","prostrate "]
[1575,null,"foot","protect "]
[1576,null,"football","protest "]
[1577,null,"footnote","prove "]
[1578,null,"footrest","provide "]
[1579,null,"foot-rest","provoke "]
[1580,null,"footstool","prowl "]
[1581,null,"foray","pry "]
[1582,null,"force","publicize "]
[1583,null,"forearm","pucker "]
[1584,null,"forebear","puff "]
[1585,null,"forecast","pull "]
[1586,null,"forehead","pummel "]
[1587,null,"forest","pump "]
[1588,null,"forestry","punch "]
[1589,null,"forgery","puncture "]
[1590,null,"fork","punish "]
[1591,null,"form","purchase "]
[1592,null,"formal","purr "]
[1593,null,"format","purse "]
[1594,null,"former","pursue "]
[1595,null,"fort","push "]
[1596,null,"fortnight","put "]
[1597,null,"fortress","putter"]
[1598,null,"fortune","quack "]
[1599,null,"forum","quaff "]
[1600,null,"foundation","quail "]
[1601,null,"fountain","quake "]
[1602,null,"fowl","qualify "]
[1603,null,"fox","quarrel "]
[1604,null,"foxglove","quaver "]
[1605,null,"fragrance","query "]
[1606,null,"frame","question "]
[1607,null,"france","queue "]
[1608,null,"fratricide","quibble "]
[1609,null,"fraudster","quicken "]
[1610,null,"frazzle","quiet "]
[1611,null,"freckle","quip "]
[1612,null,"freedom","quirk "]
[1613,null,"freeplay","quit "]
[1614,null,"freeze","quiver "]
[1615,null,"freezer","quiz "]
[1616,null,"freight","quote"]
[1617,null,"freighter","race "]
[1618,null,"french","radiate "]
[1619,null,"freon","rage "]
[1620,null,"fresco","rain "]
[1621,null,"friction","raise "]
[1622,null,"friday","rake "]
[1623,null,"fridge","rally "]
[1624,null,"friend","ram "]
[1625,null,"friendship","ramble "]
[1626,null,"frigate","rank "]
[1627,null,"fringe","ransack "]
[1628,null,"frock","rant "]
[1629,null,"frog","rap "]
[1630,null,"front","rasp "]
[1631,null,"frost","rate "]
[1632,null,"frown","ratify "]
[1633,null,"fruit","rationalise "]
[1634,null,"frustration","rationalize "]
[1635,null,"fuel","rattle "]
[1636,null,"fulfillment","ravage "]
[1637,null,"full","rave "]
[1638,null,"function","reach "]
[1639,null,"fundraising","reacquaint "]
[1640,null,"funeral","react "]
[1641,null,"funny","read "]
[1642,null,"fur","readall "]
[1643,null,"furnace","readjust "]
[1644,null,"furniture","ready "]
[1645,null,"fusarium","reaffirm "]
[1646,null,"futon","realign "]
[1647,null,"future","realise "]
[1648,null,"gaffer","realize "]
[1649,null,"gaiters","rearrange "]
[1650,null,"gale","reason "]
[1651,null,"gall-bladder","reassert "]
[1652,null,"galleon","reassess "]
[1653,null,"gallery","reassure "]
[1654,null,"galley","reattach "]
[1655,null,"gallon","rebuff "]
[1656,null,"galoshes","rebuke "]
[1657,null,"game","recall "]
[1658,null,"gamebird","recap "]
[1659,null,"gamma-ray","receive "]
[1660,null,"gander","reciprocate "]
[1661,null,"gap","recite "]
[1662,null,"garage","reckon "]
[1663,null,"garb","reclaim "]
[1664,null,"garbage","recline "]
[1665,null,"garden","recognise "]
[1666,null,"garlic","recognize "]
[1667,null,"garment","recoil "]
[1668,null,"garter","recollect "]
[1669,null,"gas","recommend "]
[1670,null,"gasoline","reconcile "]
[1671,null,"gastropod","reconsider "]
[1672,null,"gate","record "]
[1673,null,"gateway","recount "]
[1674,null,"gather","recover "]
[1675,null,"gauge","recruit "]
[1676,null,"gauntlet","recruit "]
[1677,null,"gazebo","recuperate "]
[1678,null,"gazelle","redden "]
[1679,null,"gear","redirect "]
[1680,null,"gearshift","rediscover "]
[1681,null,"geese","reduce "]
[1682,null,"gelding","reel "]
[1683,null,"gem","re-evaluate "]
[1684,null,"gemini","refer "]
[1685,null,"gemsbok","reference "]
[1686,null,"gender","refill "]
[1687,null,"gene","refine "]
[1688,null,"general","reflect "]
[1689,null,"genetics","refocus "]
[1690,null,"geography","refrain "]
[1691,null,"geology","refuse "]
[1692,null,"geometry","refute "]
[1693,null,"george","regain "]
[1694,null,"geranium","regale "]
[1695,null,"gerbil","regard "]
[1696,null,"geriatrician","regret "]
[1697,null,"german","regulate "]
[1698,null,"germany","rehabilitate "]
[1699,null,"geyser","reign "]
[1700,null,"ghana","reinforce "]
[1701,null,"gherkin","reintroduce "]
[1702,null,"ghost","reiterate "]
[1703,null,"giant","reject "]
[1704,null,"gigantism","rejoice "]
[1705,null,"ginseng","relate "]
[1706,null,"giraffe","relax "]
[1707,null,"girdle","relay "]
[1708,null,"girl","release "]
[1709,null,"girlfriend","relent "]
[1710,null,"git","relinquish "]
[1711,null,"glad","relish "]
[1712,null,"gladiolus","rely "]
[1713,null,"gland","remain "]
[1714,null,"glass","remark "]
[1715,null,"glasses","remember "]
[1716,null,"glen","remind "]
[1717,null,"glider","reminisce "]
[1718,null,"gliding","remonstrate "]
[1719,null,"glockenspiel","remove "]
[1720,null,"glove","rend "]
[1721,null,"gloves","render "]
[1722,null,"glue","reorganize "]
[1723,null,"glut","repack "]
[1724,null,"goal","repair "]
[1725,null,"goat","repeat "]
[1726,null,"gobbler","repel "]
[1727,null,"godmother","repent "]
[1728,null,"goggles","rephrase "]
[1729,null,"go-kart","replace "]
[1730,null,"gold","reply "]
[1731,null,"goldfish","report "]
[1732,null,"golf","reposition "]
[1733,null,"gondola","represent "]
[1734,null,"gong","repress "]
[1735,null,"good","reprimand "]
[1736,null,"goodbye","reproach "]
[1737,null,"good-bye","reproduce "]
[1738,null,"goodie","repudiate "]
[1739,null,"goose","repulse "]
[1740,null,"gopher","request "]
[1741,null,"gore-tex","rescind "]
[1742,null,"gorilla","rescue "]
[1743,null,"gosling","research "]
[1744,null,"governance","resent "]
[1745,null,"government","reside "]
[1746,null,"governor","resign "]
[1747,null,"gown","resist "]
[1748,null,"grab-bag","resolve "]
[1749,null,"grade","respect "]
[1750,null,"grain","respond "]
[1751,null,"gram","rest "]
[1752,null,"granddaughter","restate "]
[1753,null,"grandfather","restrain "]
[1754,null,"grandmom","restructure "]
[1755,null,"grandmother","resume "]
[1756,null,"grandson","retaliate "]
[1757,null,"granny","retch "]
[1758,null,"grape","retell "]
[1759,null,"grapefruit","retire "]
[1760,null,"graph","retort "]
[1761,null,"graphic","retract "]
[1762,null,"grass","retreat "]
[1763,null,"grasshopper","retrieve "]
[1764,null,"grassland","return "]
[1765,null,"gray","reveal "]
[1766,null,"grease","revel "]
[1767,null,"great","revere "]
[1768,null,"great-grandfather","reverse "]
[1769,null,"great-grandmother","revert "]
[1770,null,"greece","review "]
[1771,null,"greek","revise "]
[1772,null,"green","revoke "]
[1773,null,"greenhouse","reward "]
[1774,null,"grenade","reword "]
[1775,null,"grey","rhapsodize "]
[1776,null,"grief","rhyme "]
[1777,null,"grill","rid "]
[1778,null,"grip","riddle "]
[1779,null,"grit","ride "]
[1780,null,"grocery","ridicule "]
[1781,null,"ground","riffle "]
[1782,null,"group","rifle "]
[1783,null,"grouper","ring "]
[1784,null,"grouse","rinse "]
[1785,null,"growth","rip "]
[1786,null,"guarantee","riposte "]
[1787,null,"guatemalan","rise "]
[1788,null,"guest","risk "]
[1789,null,"guestbook","roam "]
[1790,null,"guidance","roar "]
[1791,null,"guide","roast "]
[1792,null,"guilty","rob "]
[1793,null,"guitar","rock "]
[1794,null,"guitarist","roll "]
[1795,null,"gum","romp "]
[1796,null,"gumshoes","rot "]
[1797,null,"gun","rotate "]
[1798,null,"gutter","round "]
[1799,null,"guy","rouse "]
[1800,null,"gym","rub "]
[1801,null,"gymnast","ruffle "]
[1802,null,"gynaecology","ruin "]
[1803,null,"gyro","rule "]
[1804,null,"hacienda","rumble "]
[1805,null,"hacksaw","ruminate "]
[1806,null,"hackwork","rummage "]
[1807,null,"hail","rumormonger "]
[1808,null,"hair","run "]
[1809,null,"haircut","rush"]
[1810,null,"half","rustle "]
[1811,null,"half-brother","sack "]
[1812,null,"half-sister","sail "]
[1813,null,"halibut","salivate "]
[1814,null,"hall","salute "]
[1815,null,"hallway","salvage "]
[1816,null,"hamaki","sashay "]
[1817,null,"hamburger","satirize "]
[1818,null,"hammer","satisfy "]
[1819,null,"hammock","saturate "]
[1820,null,"hamster","saunter "]
[1821,null,"hand","savage "]
[1822,null,"handball","save "]
[1823,null,"hand-holding","savor "]
[1824,null,"handicap","savour "]
[1825,null,"handle","saw "]
[1826,null,"handlebar","say "]
[1827,null,"handmaiden","scale "]
[1828,null,"handsaw","scamper "]
[1829,null,"hang","scan "]
[1830,null,"harbor","scare "]
[1831,null,"harbour","scatter "]
[1832,null,"hardboard","schedule "]
[1833,null,"hardcover","scheme "]
[1834,null,"hardening","school "]
[1835,null,"hardhat","scoff "]
[1836,null,"hard-hat","scold "]
[1837,null,"hardware","scoop "]
[1838,null,"harm","scoot "]
[1839,null,"harmonica","scorch "]
[1840,null,"harmony","score "]
[1841,null,"harp","scorn "]
[1842,null,"harpooner","scour "]
[1843,null,"harpsichord","scowl "]
[1844,null,"hassock","scramble "]
[1845,null,"hat","scrape "]
[1846,null,"hatbox","scratch "]
[1847,null,"hatchet","scrawl "]
[1848,null,"hate","scream "]
[1849,null,"haunt","screech "]
[1850,null,"haversack","screw "]
[1851,null,"hawk","scribble "]
[1852,null,"hay","scribe "]
[1853,null,"head","scrub "]
[1854,null,"headlight","scrunch "]
[1855,null,"headline","scrutinise "]
[1856,null,"headrest","scrutinize "]
[1857,null,"health","scuff "]
[1858,null,"hearing","scurry "]
[1859,null,"heart","scuttle "]
[1860,null,"heartache","seal "]
[1861,null,"hearth","seam "]
[1862,null,"hearthside","search "]
[1863,null,"heart-throb","section "]
[1864,null,"heartwood","secure "]
[1865,null,"heat","see "]
[1866,null,"heater","seek "]
[1867,null,"heaven","seem "]
[1868,null,"heavy","seend "]
[1869,null,"hedge","seep "]
[1870,null,"hedgehog","seethe "]
[1871,null,"heel","seize "]
[1872,null,"height","select "]
[1873,null,"heirloom","sell "]
[1874,null,"helen","sense "]
[1875,null,"helicopter","sentence "]
[1876,null,"helium","separate "]
[1877,null,"hell","serenade "]
[1878,null,"hellcat","serve "]
[1879,null,"helmet","service "]
[1880,null,"helo","set "]
[1881,null,"help","settle "]
[1882,null,"hemp","sever "]
[1883,null,"hen","sew "]
[1884,null,"herb","shade "]
[1885,null,"heron","shake "]
[1886,null,"herring","shamble "]
[1887,null,"hexagon","shape "]
[1888,null,"heyday","share "]
[1889,null,"hide","sharpen "]
[1890,null,"high","shatter "]
[1891,null,"highlight","shave "]
[1892,null,"high-rise","shear "]
[1893,null,"highway","sheathe "]
[1894,null,"hill","shed "]
[1895,null,"himalayan","shelter "]
[1896,null,"hip","shield "]
[1897,null,"hippodrome","shift "]
[1898,null,"hippopotamus","shine "]
[1899,null,"historian","shirk "]
[1900,null,"history","shiver "]
[1901,null,"hit","shock "]
[1902,null,"hive","shoo "]
[1903,null,"hobbies","shoot "]
[1904,null,"hobbit","shop "]
[1905,null,"hobby","shorten "]
[1906,null,"hockey","shoulder "]
[1907,null,"hoe","shout "]
[1908,null,"hog","shove "]
[1909,null,"hold","shovel "]
[1910,null,"hole","show "]
[1911,null,"holiday","showcase "]
[1912,null,"home","shower "]
[1913,null,"homework","shred "]
[1914,null,"homogenate","shriek "]
[1915,null,"homonym","shrink "]
[1916,null,"honey","shrug "]
[1917,null,"honeybee","shudder "]
[1918,null,"honoree","shuffle "]
[1919,null,"hood","shush "]
[1920,null,"hoof","shut "]
[1921,null,"hook","sidestep "]
[1922,null,"hope","sidle "]
[1923,null,"hops","sift "]
[1924,null,"horn","sigh "]
[1925,null,"hornet","sign "]
[1926,null,"horse","signal "]
[1927,null,"hose","silence "]
[1928,null,"hosiery","simmer "]
[1929,null,"hospice","simper "]
[1930,null,"hospital","simplify "]
[1931,null,"host","sin "]
[1932,null,"hostel","sing "]
[1933,null,"hostess","sink "]
[1934,null,"hot","sip "]
[1935,null,"hot-dog","sit "]
[1936,null,"hotel","size "]
[1937,null,"hour","sketch "]
[1938,null,"hourglass","skewer "]
[1939,null,"house","ski "]
[1940,null,"houseboat","skid "]
[1941,null,"housing","skim "]
[1942,null,"hovel","skip "]
[1943,null,"hovercraft","skitter "]
[1944,null,"howitzer","skulk "]
[1945,null,"hub","slam "]
[1946,null,"hubcap","slander "]
[1947,null,"hugger","slap "]
[1948,null,"human","slash "]
[1949,null,"humidity","slather "]
[1950,null,"humor","slay "]
[1951,null,"hunger","sleep "]
[1952,null,"hurdler","slice "]
[1953,null,"hurricane","slick "]
[1954,null,"hurry","slide "]
[1955,null,"hurt","sling "]
[1956,null,"husband","slink "]
[1957,null,"hut","slip "]
[1958,null,"hutch","slit "]
[1959,null,"hyacinth","slither "]
[1960,null,"hybridisation","slobber "]
[1961,null,"hydrant","slosh "]
[1962,null,"hydraulics","slouch "]
[1963,null,"hydrofoil","slow "]
[1964,null,"hydrogen","slumber "]
[1965,null,"hyena","slump "]
[1966,null,"hygienic","slur "]
[1967,null,"hyphenation","slurp "]
[1968,null,"hypochondria","smack "]
[1969,null,"hypothermia","smash "]
[1970,null,"ice","smear "]
[1971,null,"icebreaker","smell "]
[1972,null,"icecream","smile "]
[1973,null,"ice-cream","smirk "]
[1974,null,"icicle","smite "]
[1975,null,"icon","smoke "]
[1976,null,"idea","smolder "]
[1977,null,"ideal","smooch "]
[1978,null,"igloo","smooth "]
[1979,null,"ikebana","smother "]
[1980,null,"illegal","smoulder "]
[1981,null,"image","smudge "]
[1982,null,"imagination","smush "]
[1983,null,"impact","snake "]
[1984,null,"implement","snap "]
[1985,null,"importance","snarl "]
[1986,null,"impress","snatch "]
[1987,null,"impression","sneak "]
[1988,null,"imprisonment","sneer "]
[1989,null,"improvement","sneeze "]
[1990,null,"impudence","snicker "]
[1991,null,"impulse","sniff "]
[1992,null,"inbox","sniffle "]
[1993,null,"incandescence","snigger "]
[1994,null,"inch","snip "]
[1995,null,"income","snipe "]
[1996,null,"increase","snitch "]
[1997,null,"independence","snivel "]
[1998,null,"independent","snooze "]
[1999,null,"index","snore "]
[2000,null,"india","snort "]
[2001,null,"indication","snow "]
[2002,null,"indigence","snub "]
[2003,null,"indonesia","snuff "]
[2004,null,"industry","snuffle "]
[2005,null,"infancy","snuggle "]
[2006,null,"inflammation","soak "]
[2007,null,"inflation","sob "]
[2008,null,"information","sober "]
[2009,null,"infusion","social "]
[2010,null,"inglenook","socialise "]
[2011,null,"ingrate","socialize "]
[2012,null,"initial","soften "]
[2013,null,"initiative","solve "]
[2014,null,"in-joke","somersault "]
[2015,null,"injury","soothe "]
[2016,null,"ink","soothsay "]
[2017,null,"in-laws","sort "]
[2018,null,"inlay","sough "]
[2019,null,"inn","sound "]
[2020,null,"innervation","sow "]
[2021,null,"innocent","span "]
[2022,null,"input","spank "]
[2023,null,"inquiry","spare "]
[2024,null,"inscription","spark "]
[2025,null,"insect","sparkle "]
[2026,null,"inside","spasm "]
[2027,null,"insolence","speak "]
[2028,null,"inspection","specify "]
[2029,null,"inspector","speculate "]
[2030,null,"instance","speed "]
[2031,null,"instruction","spell "]
[2032,null,"instrument","spend "]
[2033,null,"instrumentalist","spike "]
[2034,null,"instrumentation","spill "]
[2035,null,"insulation","spin "]
[2036,null,"insurance","spit "]
[2037,null,"insurgence","spite "]
[2038,null,"intelligence","splash "]
[2039,null,"intention","splay "]
[2040,null,"interaction","splinter "]
[2041,null,"interactive","split "]
[2042,null,"interest","splutter "]
[2043,null,"interferometer","spoil "]
[2044,null,"interior","spot "]
[2045,null,"interloper","sprawl "]
[2046,null,"internal","spray "]
[2047,null,"internet","spread "]
[2048,null,"interpreter","spring "]
[2049,null,"intervenor","sprinkle "]
[2050,null,"interview","sprint "]
[2051,null,"interviewer","sprout "]
[2052,null,"intestine","spur "]
[2053,null,"intestines","spurn "]
[2054,null,"introduction","sputter "]
[2055,null,"invention","spy "]
[2056,null,"inventor","squall "]
[2057,null,"inventory","square "]
[2058,null,"investment","squash "]
[2059,null,"invite","squat "]
[2060,null,"invoice","squawk "]
[2061,null,"iPad","squeak "]
[2062,null,"iran","squeal "]
[2063,null,"iraq","squeeze "]
[2064,null,"iridescence","squint "]
[2065,null,"iris","squirm "]
[2066,null,"iron","squirt "]
[2067,null,"ironclad","squish "]
[2068,null,"island","stab "]
[2069,null,"israel","stabilize "]
[2070,null,"issue","stack "]
[2071,null,"italy","stagger "]
[2072,null,"jackal","stain "]
[2073,null,"jacket","stalk "]
[2074,null,"jaguar","stall "]
[2075,null,"jail","stammer "]
[2076,null,"jailhouse","stamp "]
[2077,null,"jam","stand "]
[2078,null,"james","stare "]
[2079,null,"january","start "]
[2080,null,"japan","startle "]
[2081,null,"japanese","stash "]
[2082,null,"jar","state "]
[2083,null,"jasmine","station "]
[2084,null,"jason","stay "]
[2085,null,"jaw","steady "]
[2086,null,"jeans","steal "]
[2087,null,"jeep","steeple "]
[2088,null,"jeff","steer "]
[2089,null,"jelly","step "]
[2090,null,"jellyfish","stick "]
[2091,null,"jennifer","stiffen "]
[2092,null,"jet","stifle "]
[2093,null,"jewel","still "]
[2094,null,"jewelry","stimulate "]
[2095,null,"jiffy","sting "]
[2096,null,"job","stink "]
[2097,null,"jockey","stipulate "]
[2098,null,"jodhpurs","stir "]
[2099,null,"joey","stitch "]
[2100,null,"jogging","stock "]
[2101,null,"john","stockpile "]
[2102,null,"join","stoke "]
[2103,null,"joke","stomp "]
[2104,null,"joseph","stoop "]
[2105,null,"jot","stop "]
[2106,null,"journey","store "]
[2107,null,"judge","storm "]
[2108,null,"judgment","storypoint "]
[2109,null,"judo","stow "]
[2110,null,"juggernaut","straddle "]
[2111,null,"juice","straighten "]
[2112,null,"july","strain "]
[2113,null,"jumbo","strangle "]
[2114,null,"jump","strap "]
[2115,null,"jumper","stray "]
[2116,null,"jumpsuit","streak "]
[2117,null,"june","streamline "]
[2118,null,"junior","strengthen "]
[2119,null,"junk","stress "]
[2120,null,"junker","stretch "]
[2121,null,"junket","stride "]
[2122,null,"jury","strike "]
[2123,null,"justice","string "]
[2124,null,"jute","strip "]
[2125,null,"kale","strive "]
[2126,null,"kamikaze","stroke "]
[2127,null,"kangaroo","stroll "]
[2128,null,"karate","structure "]
[2129,null,"karen","struggle "]
[2130,null,"kayak","strum "]
[2131,null,"kazoo","strut "]
[2132,null,"kendo","study "]
[2133,null,"kenneth","stuff "]
[2134,null,"kenya","stumble "]
[2135,null,"ketch","stump "]
[2136,null,"ketchup","stutter "]
[2137,null,"kettle","style "]
[2138,null,"kettledrum","subdue "]
[2139,null,"kevin","sublet "]
[2140,null,"key","submerge "]
[2141,null,"keyboard","submerse "]
[2142,null,"keyboarding","submit "]
[2143,null,"keystone","subside "]
[2144,null,"kick","subtract "]
[2145,null,"kick-off","succeed "]
[2146,null,"kid","succumb "]
[2147,null,"kidney","suck "]
[2148,null,"kidneys","suffer "]
[2149,null,"kielbasa","suggest "]
[2150,null,"kill","suit "]
[2151,null,"kilogram","sulk "]
[2152,null,"kilometer","summarise "]
[2153,null,"kilt","summarize "]
[2154,null,"kimberly","summon "]
[2155,null,"kimono","sunder "]
[2156,null,"kind","supervise "]
[2157,null,"king","supplement "]
[2158,null,"kingfish","supply "]
[2159,null,"kiosk","support "]
[2160,null,"kiss","suppose "]
[2161,null,"kitchen","surge "]
[2162,null,"kite","surmise "]
[2163,null,"kitten","surprise "]
[2164,null,"kitty","surrender "]
[2165,null,"kleenex","surround "]
[2166,null,"klomps","survey "]
[2167,null,"knee","suspect "]
[2168,null,"kneejerk","suspend "]
[2169,null,"knickers","susurrate "]
[2170,null,"knife","swab "]
[2171,null,"knife-edge","swagger "]
[2172,null,"knight","swallow "]
[2173,null,"knitting","swat "]
[2174,null,"knot","sway "]
[2175,null,"knowledge","swear "]
[2176,null,"knuckle","sweat "]
[2177,null,"koala","sweep "]
[2178,null,"kohlrabi","swell "]
[2179,null,"korean","swerve "]
[2180,null,"lab","swill "]
[2181,null,"laborer","swim "]
[2182,null,"lace","swing "]
[2183,null,"lacquerware","swipe "]
[2184,null,"ladder","swirl "]
[2185,null,"lady","swish "]
[2186,null,"ladybug","switch "]
[2187,null,"lake","swivel "]
[2188,null,"lamb","swoon "]
[2189,null,"lamp","symbolize "]
[2190,null,"lan","sympathise "]
[2191,null,"lanai","sympathize "]
[2192,null,"land","systemize"]
[2193,null,"landform","tabulate "]
[2194,null,"landmine","tackle "]
[2195,null,"language","tailor "]
[2196,null,"lantern","take "]
[2197,null,"lap","talk "]
[2198,null,"laparoscope","tally "]
[2199,null,"lapdog","tame "]
[2200,null,"laptop","tangle "]
[2201,null,"larch","tantalize "]
[2202,null,"larder","tap "]
[2203,null,"lark","target "]
[2204,null,"laryngitis","task "]
[2205,null,"lasagna","taste "]
[2206,null,"latency","tattle "]
[2207,null,"latex","tattoo "]
[2208,null,"lathe","taunt "]
[2209,null,"latte","teach "]
[2210,null,"laugh","tear "]
[2211,null,"laundry","tease "]
[2212,null,"laura","teeter "]
[2213,null,"law","telephone "]
[2214,null,"lawn","tell "]
[2215,null,"lawsuit","temper "]
[2216,null,"lawyer","tempt "]
[2217,null,"layer","tend "]
[2218,null,"lead","tense "]
[2219,null,"leader","terrify "]
[2220,null,"leadership","test "]
[2221,null,"leaf","testify "]
[2222,null,"league","thank "]
[2223,null,"leaker","thaw "]
[2224,null,"learning","theorise "]
[2225,null,"leash","theorize "]
[2226,null,"leather","think "]
[2227,null,"leaver","thrash "]
[2228,null,"lecture","thread "]
[2229,null,"leek","threaten "]
[2230,null,"leg","thrive "]
[2231,null,"legal","throttle "]
[2232,null,"legging","throw "]
[2233,null,"legume","thrust "]
[2234,null,"lei","thumb "]
[2235,null,"lemon","thump "]
[2236,null,"lemonade","thunder "]
[2237,null,"lemur","thwack "]
[2238,null,"length","thwap "]
[2239,null,"lentil","tick "]
[2240,null,"leo","tickle "]
[2241,null,"leopard","tidy "]
[2242,null,"leotard","tie "]
[2243,null,"leprosy","tighten "]
[2244,null,"let","tilt "]
[2245,null,"letter","time "]
[2246,null,"lettuce","tingle "]
[2247,null,"level","tinker "]
[2248,null,"lever","tinkle "]
[2249,null,"leverage","tip "]
[2250,null,"libra","tiptoe "]
[2251,null,"librarian","tire "]
[2252,null,"library","tisk "]
[2253,null,"license","titter "]
[2254,null,"lier","toast "]
[2255,null,"life","toddle "]
[2256,null,"lift","toe "]
[2257,null,"light","toil "]
[2258,null,"lighting","tolerate "]
[2259,null,"lightning","toot "]
[2260,null,"lilac","topple "]
[2261,null,"lily","toss "]
[2262,null,"limit","tote "]
[2263,null,"limo","totter "]
[2264,null,"line","touch "]
[2265,null,"linen","toughen "]
[2266,null,"liner","tour "]
[2267,null,"link","tousle "]
[2268,null,"linseed","tow "]
[2269,null,"lion","tower "]
[2270,null,"lip","toy "]
[2271,null,"lipstick","trace "]
[2272,null,"liquid","track "]
[2273,null,"liquor","trade "]
[2274,null,"lisa","trail "]
[2275,null,"list","train "]
[2276,null,"literature","traipse "]
[2277,null,"litigation","tramp "]
[2278,null,"litter","trample "]
[2279,null,"liver","transcribe "]
[2280,null,"living","transfer "]
[2281,null,"lizard","transform "]
[2282,null,"llama","translate "]
[2283,null,"loaf","transmit "]
[2284,null,"loafer","transport "]
[2285,null,"loan","trap "]
[2286,null,"lobotomy","travel "]
[2287,null,"lobster","traverse "]
[2288,null,"location","tread "]
[2289,null,"lock","treasure "]
[2290,null,"locker","treat "]
[2291,null,"locket","tred "]
[2292,null,"locomotive","tremble "]
[2293,null,"locust","trick "]
[2294,null,"loft","trill "]
[2295,null,"log","trim "]
[2296,null,"loggia","trip "]
[2297,null,"loincloth","triumph "]
[2298,null,"look","trivialize "]
[2299,null,"loss","trot "]
[2300,null,"lot","trouble "]
[2301,null,"lotion","troubleshoot "]
[2302,null,"lounge","trounce "]
[2303,null,"lout","trudge "]
[2304,null,"love","trumpet "]
[2305,null,"low","trundle "]
[2306,null,"loyalty","trust "]
[2307,null,"luck","try "]
[2308,null,"luggage","tuck "]
[2309,null,"lumber","tug "]
[2310,null,"lumberman","tumble "]
[2311,null,"lunch","tune "]
[2312,null,"luncheonette","turn "]
[2313,null,"lunchroom","tutor "]
[2314,null,"lung","tweak "]
[2315,null,"lunge","tweeze "]
[2316,null,"lute","twiddle "]
[2317,null,"luttuce","twine "]
[2318,null,"lycra","twinkle "]
[2319,null,"lye","twirl "]
[2320,null,"lymphocyte","twist "]
[2321,null,"lynx","twitch "]
[2322,null,"lyocell","twitter "]
[2323,null,"lyre","type"]
[2324,null,"lyric","ululate "]
[2325,null,"macadamia","unbend "]
[2326,null,"macaroni","unbind "]
[2327,null,"machine","unbraid "]
[2328,null,"macrame","unbuckle "]
[2329,null,"macrofauna","unbutton "]
[2330,null,"maelstrom","unclasp "]
[2331,null,"maestro","unclench "]
[2332,null,"magazine","uncoil "]
[2333,null,"magic","uncover "]
[2334,null,"magician","uncross "]
[2335,null,"maid","uncurl "]
[2336,null,"maiden","undergo "]
[2337,null,"mail","understand "]
[2338,null,"mailbox","understate "]
[2339,null,"mailman","undertake "]
[2340,null,"maintenance","undo "]
[2341,null,"major","undress "]
[2342,null,"major-league","undulate "]
[2343,null,"makeup","unfasten "]
[2344,null,"malaysia","unfocus "]
[2345,null,"male","unfold "]
[2346,null,"mall","unfurl "]
[2347,null,"mallet","unhand "]
[2348,null,"mambo","unhook "]
[2349,null,"mammoth","unify "]
[2350,null,"man","unite "]
[2351,null,"management","unknot "]
[2352,null,"manager","unlace "]
[2353,null,"mandarin","unleash "]
[2354,null,"mandolin","unlock "]
[2355,null,"mangrove","unmake "]
[2356,null,"manhunt","unmask "]
[2357,null,"maniac","unpack "]
[2358,null,"manicure","unpin "]
[2359,null,"manner","unravel "]
[2360,null,"manor","unroll "]
[2361,null,"mansard","untangle "]
[2362,null,"manservant","untie "]
[2363,null,"mansion","untuck "]
[2364,null,"mantel","untwine "]
[2365,null,"mantle","untwist "]
[2366,null,"mantua","unveil "]
[2367,null,"manufacturer","unwear "]
[2368,null,"manx","unwield "]
[2369,null,"map","unwind "]
[2370,null,"maple","unwrap "]
[2371,null,"maraca","update "]
[2372,null,"maracas","upgrade "]
[2373,null,"marble","uphold "]
[2374,null,"march","upset "]
[2375,null,"mare","urge "]
[2376,null,"margaret","use "]
[2377,null,"margin","usher "]
[2378,null,"maria","utilize "]
[2379,null,"mariachi","utter"]
[2380,null,"marimba","vacillate "]
[2381,null,"mark","validate "]
[2382,null,"market","vanish "]
[2383,null,"marketing","vault "]
[2384,null,"marksman","veer "]
[2385,null,"marriage","vent "]
[2386,null,"marsh","venture "]
[2387,null,"marshland","verbalize "]
[2388,null,"marxism","verify "]
[2389,null,"mary","vex "]
[2390,null,"mascara","vibrate "]
[2391,null,"mask","view "]
[2392,null,"mass","visit "]
[2393,null,"massage","visualise "]
[2394,null,"master","visualize "]
[2395,null,"mastication","vituperate "]
[2396,null,"mastoid","vocalise "]
[2397,null,"mat","vocalize "]
[2398,null,"match","vociferate "]
[2399,null,"material","volley "]
[2400,null,"math","volunteer "]
[2401,null,"mattock","vomit "]
[2402,null,"mattress","vote "]
[2403,null,"maximum","vouch "]
[2404,null,"may","vow"]
[2405,null,"maybe","waddle "]
[2406,null,"mayonnaise","wade "]
[2407,null,"mayor","waft "]
[2408,null,"meal","wag "]
[2409,null,"meaning","wager "]
[2410,null,"measure","waggle "]
[2411,null,"measurement","wail "]
[2412,null,"meat","wait "]
[2413,null,"mechanic","wake "]
[2414,null,"media","walk "]
[2415,null,"medicine","wallop "]
[2416,null,"medium","wallow "]
[2417,null,"meet","waltz "]
[2418,null,"meeting","wander "]
[2419,null,"megalomaniac","want "]
[2420,null,"melody","warble "]
[2421,null,"member","warm "]
[2422,null,"membership","warn "]
[2423,null,"memory","warp "]
[2424,null,"men","wash "]
[2425,null,"menorah","waste "]
[2426,null,"mention","watch "]
[2427,null,"menu","water "]
[2428,null,"mercury","wave "]
[2429,null,"mess","waver "]
[2430,null,"message","wear "]
[2431,null,"metal","weave "]
[2432,null,"metallurgist","wed "]
[2433,null,"meteor","wedge "]
[2434,null,"meteorology","weep "]
[2435,null,"meter","weigh "]
[2436,null,"methane","welcome "]
[2437,null,"method","wend "]
[2438,null,"methodology","wet "]
[2439,null,"metro","whack "]
[2440,null,"metronome","wheedle "]
[2441,null,"mexican","wheeze "]
[2442,null,"mexico","whet "]
[2443,null,"mezzanine","whimper "]
[2444,null,"mice","whine "]
[2445,null,"michael","whinny "]
[2446,null,"michelle","whip "]
[2447,null,"microlending","whirl "]
[2448,null,"microwave","whisk "]
[2449,null,"mid-course","whisper "]
[2450,null,"middle","whistle "]
[2451,null,"middleman","whittle "]
[2452,null,"midi","who "]
[2453,null,"midline","whoami "]
[2454,null,"midnight","whoop "]
[2455,null,"midwife","widen "]
[2456,null,"might","wield "]
[2457,null,"migrant","wiggle "]
[2458,null,"mile","wilt "]
[2459,null,"milk","win "]
[2460,null,"milkshake","wince "]
[2461,null,"millennium","wind "]
[2462,null,"millimeter","windmill "]
[2463,null,"millisecond","wink "]
[2464,null,"mime","wipe "]
[2465,null,"mimosa","wish "]
[2466,null,"mind","withdraw "]
[2467,null,"mine","withhold "]
[2468,null,"mini","withstand "]
[2469,null,"minibus","witness "]
[2470,null,"minion","wobble "]
[2471,null,"mini-skirt","wonder "]
[2472,null,"minister","woo "]
[2473,null,"minor","work "]
[2474,null,"minor-league","worry "]
[2475,null,"mint","worship "]
[2476,null,"minute","wrack "]
[2477,null,"mirror","wrangle "]
[2478,null,"miscarriage","wrap "]
[2479,null,"miscommunication","wreck "]
[2480,null,"misfit","wrench "]
[2481,null,"misogyny","wrest "]
[2482,null,"misplacement","wrestle "]
[2483,null,"misreading","wriggle "]
[2484,null,"missile","wring "]
[2485,null,"mission","wrinkle "]
[2486,null,"mist","write "]
[2487,null,"mistake","writhe"]
[2488,null,"mister","x-ray"]
[2489,null,"miter","yank "]
[2490,null,"mitten","yap "]
[2491,null,"mix","yawn "]
[2492,null,"mixer","yawp "]
[2493,null,"mixture","yearn "]
[2494,null,"moat","yell "]
[2495,null,"mobile","yelp "]
[2496,null,"moccasins","yield "]
[2497,null,"mocha","yodel "]
[2498,null,"mode","yowl"]
[2499,null,"model","zip"]
[2500,null,"modem","zoom"]
[2501,null,"mole"]
[2502,null,"mom"]
[2503,null,"moment"]
[2504,null,"monastery"]
[2505,null,"monasticism"]
[2506,null,"monday"]
[2507,null,"money"]
[2508,null,"monger"]
[2509,null,"monitor"]
[2510,null,"monkey"]
[2511,null,"monocle"]
[2512,null,"monotheism"]
[2513,null,"monsoon"]
[2514,null,"monster"]
[2515,null,"month"]
[2516,null,"mood"]
[2517,null,"moon"]
[2518,null,"moonscape"]
[2519,null,"moonshine"]
[2520,null,"mop"]
[2521,null,"Mormon"]
[2522,null,"morning"]
[2523,null,"morocco"]
[2524,null,"morsel"]
[2525,null,"mortise"]
[2526,null,"mosque"]
[2527,null,"mosquito"]
[2528,null,"most"]
[2529,null,"motel"]
[2530,null,"moth"]
[2531,null,"mother"]
[2532,null,"mother-in-law"]
[2533,null,"motion"]
[2534,null,"motor"]
[2535,null,"motorboat"]
[2536,null,"motorcar"]
[2537,null,"motorcycle"]
[2538,null,"mound"]
[2539,null,"mountain"]
[2540,null,"mouse"]
[2541,null,"mouser"]
[2542,null,"mousse"]
[2543,null,"moustache"]
[2544,null,"mouth"]
[2545,null,"mouton"]
[2546,null,"move"]
[2547,null,"mover"]
[2548,null,"movie"]
[2549,null,"mower"]
[2550,null,"mud"]
[2551,null,"mug"]
[2552,null,"mukluk"]
[2553,null,"mule"]
[2554,null,"multimedia"]
[2555,null,"muscle"]
[2556,null,"musculature"]
[2557,null,"museum"]
[2558,null,"music"]
[2559,null,"music-box"]
[2560,null,"musician"]
[2561,null,"music-making"]
[2562,null,"mustache"]
[2563,null,"mustard"]
[2564,null,"mutt"]
[2565,null,"myanmar"]
[2566,null,"mycoplasma"]
[2567,null,"nail"]
[2568,null,"name"]
[2569,null,"naming"]
[2570,null,"nancy"]
[2571,null,"nanoparticle"]
[2572,null,"napkin"]
[2573,null,"narcissus"]
[2574,null,"nation"]
[2575,null,"naturalisation"]
[2576,null,"nature"]
[2577,null,"neat"]
[2578,null,"neck"]
[2579,null,"necklace"]
[2580,null,"necktie"]
[2581,null,"necromancer"]
[2582,null,"need"]
[2583,null,"needle"]
[2584,null,"negligee"]
[2585,null,"negotiation"]
[2586,null,"neologism"]
[2587,null,"neon"]
[2588,null,"nepal"]
[2589,null,"nephew"]
[2590,null,"nerve"]
[2591,null,"nest"]
[2592,null,"net"]
[2593,null,"netball"]
[2594,null,"netbook"]
[2595,null,"netsuke"]
[2596,null,"network"]
[2597,null,"neurobiologist"]
[2598,null,"neuropathologist"]
[2599,null,"neuropsychiatry"]
[2600,null,"news"]
[2601,null,"newspaper"]
[2602,null,"newsprint"]
[2603,null,"newsstand"]
[2604,null,"nexus"]
[2605,null,"nic"]
[2606,null,"nicety"]
[2607,null,"niche"]
[2608,null,"nickel"]
[2609,null,"niece"]
[2610,null,"nigeria"]
[2611,null,"night"]
[2612,null,"nightclub"]
[2613,null,"nightgown"]
[2614,null,"nightingale"]
[2615,null,"nightlight"]
[2616,null,"nitrogen"]
[2617,null,"node"]
[2618,null,"noise"]
[2619,null,"nonbeliever"]
[2620,null,"nonconformist"]
[2621,null,"nondisclosure"]
[2622,null,"noodle"]
[2623,null,"normal"]
[2624,null,"norse"]
[2625,null,"north"]
[2626,null,"north america"]
[2627,null,"north korea"]
[2628,null,"nose"]
[2629,null,"note"]
[2630,null,"notebook"]
[2631,null,"notice"]
[2632,null,"notify"]
[2633,null,"notoriety"]
[2634,null,"nougat"]
[2635,null,"novel"]
[2636,null,"november"]
[2637,null,"nudge"]
[2638,null,"number"]
[2639,null,"numeracy"]
[2640,null,"numeric"]
[2641,null,"numismatist"]
[2642,null,"nurse"]
[2643,null,"nursery"]
[2644,null,"nurture"]
[2645,null,"nut"]
[2646,null,"nylon"]
[2647,null,"oak"]
[2648,null,"oar"]
[2649,null,"oasis"]
[2650,null,"oatmeal"]
[2651,null,"obi"]
[2652,null,"objective"]
[2653,null,"obligation"]
[2654,null,"oboe"]
[2655,null,"observation"]
[2656,null,"observatory"]
[2657,null,"occasion"]
[2658,null,"occupation"]
[2659,null,"ocean"]
[2660,null,"ocelot"]
[2661,null,"octagon"]
[2662,null,"octave"]
[2663,null,"octavo"]
[2664,null,"octet"]
[2665,null,"october"]
[2666,null,"octopus"]
[2667,null,"odometer"]
[2668,null,"oeuvre"]
[2669,null,"offence"]
[2670,null,"offer"]
[2671,null,"office"]
[2672,null,"official"]
[2673,null,"off-ramp"]
[2674,null,"oil"]
[2675,null,"okra"]
[2676,null,"oldie"]
[2677,null,"olive"]
[2678,null,"omega"]
[2679,null,"omelet"]
[2680,null,"oncology"]
[2681,null,"one"]
[2682,null,"onion"]
[2683,null,"open"]
[2684,null,"opening"]
[2685,null,"opera"]
[2686,null,"operation"]
[2687,null,"ophthalmologist"]
[2688,null,"opinion"]
[2689,null,"opium"]
[2690,null,"opossum"]
[2691,null,"opportunist"]
[2692,null,"opportunity"]
[2693,null,"opposite"]
[2694,null,"option"]
[2695,null,"orange"]
[2696,null,"orangutan"]
[2697,null,"orator"]
[2698,null,"orchard"]
[2699,null,"orchestra"]
[2700,null,"orchid"]
[2701,null,"order"]
[2702,null,"ordinary"]
[2703,null,"ordination"]
[2704,null,"organ"]
[2705,null,"organisation"]
[2706,null,"organization"]
[2707,null,"original"]
[2708,null,"ornament"]
[2709,null,"osmosis"]
[2710,null,"osprey"]
[2711,null,"ostrich"]
[2712,null,"others"]
[2713,null,"otter"]
[2714,null,"ottoman"]
[2715,null,"ounce"]
[2716,null,"outback"]
[2717,null,"outcome"]
[2718,null,"outfit"]
[2719,null,"outhouse"]
[2720,null,"outlay"]
[2721,null,"output"]
[2722,null,"outrigger"]
[2723,null,"outset"]
[2724,null,"outside"]
[2725,null,"oval"]
[2726,null,"ovary"]
[2727,null,"oven"]
[2728,null,"overcharge"]
[2729,null,"overclocking"]
[2730,null,"overcoat"]
[2731,null,"overexertion"]
[2732,null,"overflight"]
[2733,null,"overnighter"]
[2734,null,"overshoot"]
[2735,null,"owl"]
[2736,null,"owner"]
[2737,null,"ox"]
[2738,null,"oxen"]
[2739,null,"oxford"]
[2740,null,"oxygen"]
[2741,null,"oyster"]
[2742,null,"pacemaker"]
[2743,null,"pack"]
[2744,null,"package"]
[2745,null,"packet"]
[2746,null,"pad"]
[2747,null,"paddle"]
[2748,null,"paddock"]
[2749,null,"page"]
[2750,null,"pagoda"]
[2751,null,"pail"]
[2752,null,"pain"]
[2753,null,"paint"]
[2754,null,"painter"]
[2755,null,"painting"]
[2756,null,"paintwork"]
[2757,null,"pair"]
[2758,null,"pajama"]
[2759,null,"pajamas"]
[2760,null,"pakistan"]
[2761,null,"paleontologist"]
[2762,null,"paleontology"]
[2763,null,"palm"]
[2764,null,"pamphlet"]
[2765,null,"pan"]
[2766,null,"pancake"]
[2767,null,"pancreas"]
[2768,null,"panda"]
[2769,null,"panic"]
[2770,null,"pannier"]
[2771,null,"panpipe"]
[2772,null,"pansy"]
[2773,null,"panther"]
[2774,null,"panties"]
[2775,null,"pantry"]
[2776,null,"pants"]
[2777,null,"pantsuit"]
[2778,null,"panty"]
[2779,null,"pantyhose"]
[2780,null,"paper"]
[2781,null,"paperback"]
[2782,null,"parable"]
[2783,null,"parachute"]
[2784,null,"parade"]
[2785,null,"parallelogram"]
[2786,null,"paramedic"]
[2787,null,"parcel"]
[2788,null,"parchment"]
[2789,null,"parent"]
[2790,null,"parentheses"]
[2791,null,"park"]
[2792,null,"parka"]
[2793,null,"parrot"]
[2794,null,"parsnip"]
[2795,null,"part"]
[2796,null,"participant"]
[2797,null,"particle"]
[2798,null,"particular"]
[2799,null,"partner"]
[2800,null,"partridge"]
[2801,null,"party"]
[2802,null,"passage"]
[2803,null,"passbook"]
[2804,null,"passenger"]
[2805,null,"passion"]
[2806,null,"passive"]
[2807,null,"pasta"]
[2808,null,"paste"]
[2809,null,"pastor"]
[2810,null,"pastoralist"]
[2811,null,"pastry"]
[2812,null,"patch"]
[2813,null,"path"]
[2814,null,"patience"]
[2815,null,"patient"]
[2816,null,"patina"]
[2817,null,"patio"]
[2818,null,"patriarch"]
[2819,null,"patricia"]
[2820,null,"patrimony"]
[2821,null,"patriot"]
[2822,null,"patrol"]
[2823,null,"pattern"]
[2824,null,"paul"]
[2825,null,"pavement"]
[2826,null,"pavilion"]
[2827,null,"paw"]
[2828,null,"pawnshop"]
[2829,null,"payee"]
[2830,null,"payment"]
[2831,null,"pea"]
[2832,null,"peace"]
[2833,null,"peach"]
[2834,null,"peacoat"]
[2835,null,"peacock"]
[2836,null,"peak"]
[2837,null,"peanut"]
[2838,null,"pear"]
[2839,null,"pearl"]
[2840,null,"pedal"]
[2841,null,"pedestrian"]
[2842,null,"pediatrician"]
[2843,null,"peen"]
[2844,null,"peer"]
[2845,null,"peer-to-peer"]
[2846,null,"pegboard"]
[2847,null,"pelican"]
[2848,null,"pelt"]
[2849,null,"pen"]
[2850,null,"penalty"]
[2851,null,"pencil"]
[2852,null,"pendant"]
[2853,null,"pendulum"]
[2854,null,"penicillin"]
[2855,null,"pension"]
[2856,null,"pentagon"]
[2857,null,"peony"]
[2858,null,"people"]
[2859,null,"pepper"]
[2860,null,"percentage"]
[2861,null,"perception"]
[2862,null,"perch"]
[2863,null,"performance"]
[2864,null,"perfume"]
[2865,null,"period"]
[2866,null,"periodical"]
[2867,null,"peripheral"]
[2868,null,"permafrost"]
[2869,null,"permission"]
[2870,null,"permit"]
[2871,null,"perp"]
[2872,null,"person"]
[2873,null,"personality"]
[2874,null,"perspective"]
[2875,null,"peru"]
[2876,null,"pest"]
[2877,null,"pet"]
[2878,null,"petal"]
[2879,null,"petticoat"]
[2880,null,"pew"]
[2881,null,"pharmacist"]
[2882,null,"pharmacopoeia"]
[2883,null,"phase"]
[2884,null,"pheasant"]
[2885,null,"philippines"]
[2886,null,"philosopher"]
[2887,null,"philosophy"]
[2888,null,"phone"]
[2889,null,"photo"]
[2890,null,"photographer"]
[2891,null,"phrase"]
[2892,null,"physical"]
[2893,null,"physician"]
[2894,null,"physics"]
[2895,null,"pianist"]
[2896,null,"piano"]
[2897,null,"piccolo"]
[2898,null,"pick"]
[2899,null,"pickax"]
[2900,null,"picket"]
[2901,null,"pickle"]
[2902,null,"picture"]
[2903,null,"pie"]
[2904,null,"piece"]
[2905,null,"pier"]
[2906,null,"piety"]
[2907,null,"pig"]
[2908,null,"pigeon"]
[2909,null,"pike"]
[2910,null,"pile"]
[2911,null,"pilgrimage"]
[2912,null,"pillbox"]
[2913,null,"pillow"]
[2914,null,"pilot"]
[2915,null,"pimp"]
[2916,null,"pimple"]
[2917,null,"pin"]
[2918,null,"pinafore"]
[2919,null,"pince-nez"]
[2920,null,"pine"]
[2921,null,"pineapple"]
[2922,null,"pinecone"]
[2923,null,"ping"]
[2924,null,"pink"]
[2925,null,"pinkie"]
[2926,null,"pinstripe"]
[2927,null,"pint"]
[2928,null,"pinto"]
[2929,null,"pinworm"]
[2930,null,"pioneer"]
[2931,null,"pipe"]
[2932,null,"piracy"]
[2933,null,"piranha"]
[2934,null,"pisces"]
[2935,null,"piss"]
[2936,null,"pitch"]
[2937,null,"pitching"]
[2938,null,"pith"]
[2939,null,"pizza"]
[2940,null,"place"]
[2941,null,"plain"]
[2942,null,"plane"]
[2943,null,"planet"]
[2944,null,"plant"]
[2945,null,"plantation"]
[2946,null,"planter"]
[2947,null,"plaster"]
[2948,null,"plasterboard"]
[2949,null,"plastic"]
[2950,null,"plate"]
[2951,null,"platform"]
[2952,null,"platinum"]
[2953,null,"platypus"]
[2954,null,"play"]
[2955,null,"player"]
[2956,null,"playground"]
[2957,null,"playroom"]
[2958,null,"pleasure"]
[2959,null,"pleated"]
[2960,null,"plier"]
[2961,null,"plot"]
[2962,null,"plough"]
[2963,null,"plover"]
[2964,null,"plow"]
[2965,null,"plowman"]
[2966,null,"plume"]
[2967,null,"plunger"]
[2968,null,"plywood"]
[2969,null,"pneumonia"]
[2970,null,"pocket"]
[2971,null,"pocketbook"]
[2972,null,"pocket-watch"]
[2973,null,"poem"]
[2974,null,"poet"]
[2975,null,"poetry"]
[2976,null,"poignance"]
[2977,null,"point"]
[2978,null,"poison"]
[2979,null,"poisoning"]
[2980,null,"poland"]
[2981,null,"pole"]
[2982,null,"polenta"]
[2983,null,"police"]
[2984,null,"policeman"]
[2985,null,"policy"]
[2986,null,"polish"]
[2987,null,"politician"]
[2988,null,"politics"]
[2989,null,"pollution"]
[2990,null,"polo"]
[2991,null,"polyester"]
[2992,null,"pompom"]
[2993,null,"poncho"]
[2994,null,"pond"]
[2995,null,"pony"]
[2996,null,"poof"]
[2997,null,"pool"]
[2998,null,"popcorn"]
[2999,null,"poppy"]
[3000,null,"popsicle"]
[3001,null,"population"]
[3002,null,"populist"]
[3003,null,"porch"]
[3004,null,"porcupine"]
[3005,null,"port"]
[3006,null,"porter"]
[3007,null,"portfolio"]
[3008,null,"porthole"]
[3009,null,"position"]
[3010,null,"positive"]
[3011,null,"possession"]
[3012,null,"possibility"]
[3013,null,"postage"]
[3014,null,"postbox"]
[3015,null,"poster"]
[3016,null,"pot"]
[3017,null,"potato"]
[3018,null,"potential"]
[3019,null,"potty"]
[3020,null,"pouch"]
[3021,null,"poultry"]
[3022,null,"pound"]
[3023,null,"pounding"]
[3024,null,"powder"]
[3025,null,"power"]
[3026,null,"precedent"]
[3027,null,"precipitation"]
[3028,null,"preface"]
[3029,null,"preference"]
[3030,null,"prelude"]
[3031,null,"premeditation"]
[3032,null,"premier"]
[3033,null,"preoccupation"]
[3034,null,"preparation"]
[3035,null,"presence"]
[3036,null,"presentation"]
[3037,null,"president"]
[3038,null,"pressroom"]
[3039,null,"pressure"]
[3040,null,"pressurisation"]
[3041,null,"price"]
[3042,null,"pride"]
[3043,null,"priest"]
[3044,null,"priesthood"]
[3045,null,"primary"]
[3046,null,"primate"]
[3047,null,"prince"]
[3048,null,"princess"]
[3049,null,"principal"]
[3050,null,"print"]
[3051,null,"printer"]
[3052,null,"priority"]
[3053,null,"prison"]
[3054,null,"prize"]
[3055,null,"prizefight"]
[3056,null,"probation"]
[3057,null,"problem"]
[3058,null,"procedure"]
[3059,null,"process"]
[3060,null,"processing"]
[3061,null,"produce"]
[3062,null,"producer"]
[3063,null,"product"]
[3064,null,"production"]
[3065,null,"profession"]
[3066,null,"professional"]
[3067,null,"professor"]
[3068,null,"profit"]
[3069,null,"program"]
[3070,null,"project"]
[3071,null,"promotion"]
[3072,null,"prompt"]
[3073,null,"proof-reader"]
[3074,null,"propane"]
[3075,null,"property"]
[3076,null,"proposal"]
[3077,null,"prose"]
[3078,null,"prosecution"]
[3079,null,"protection"]
[3080,null,"protest"]
[3081,null,"protocol"]
[3082,null,"prow"]
[3083,null,"pruner"]
[3084,null,"pseudoscience"]
[3085,null,"psychiatrist"]
[3086,null,"psychoanalyst"]
[3087,null,"psychologist"]
[3088,null,"psychology"]
[3089,null,"ptarmigan"]
[3090,null,"publisher"]
[3091,null,"pudding"]
[3092,null,"puddle"]
[3093,null,"puffin"]
[3094,null,"pull"]
[3095,null,"pulley"]
[3096,null,"puma"]
[3097,null,"pump"]
[3098,null,"pumpkin"]
[3099,null,"pumpkinseed"]
[3100,null,"punch"]
[3101,null,"punishment"]
[3102,null,"pupa"]
[3103,null,"pupil"]
[3104,null,"puppy"]
[3105,null,"purchase"]
[3106,null,"puritan"]
[3107,null,"purple"]
[3108,null,"purpose"]
[3109,null,"purse"]
[3110,null,"push"]
[3111,null,"pusher"]
[3112,null,"put"]
[3113,null,"pvc"]
[3114,null,"pyjama"]
[3115,null,"pyramid"]
[3116,null,"quadrant"]
[3117,null,"quail"]
[3118,null,"quality"]
[3119,null,"quantity"]
[3120,null,"quart"]
[3121,null,"quarter"]
[3122,null,"quartz"]
[3123,null,"queen"]
[3124,null,"question"]
[3125,null,"quicksand"]
[3126,null,"quiet"]
[3127,null,"quill"]
[3128,null,"quilt"]
[3129,null,"quince"]
[3130,null,"quit"]
[3131,null,"quiver"]
[3132,null,"quotation"]
[3133,null,"rabbi"]
[3134,null,"rabbit"]
[3135,null,"raccoon"]
[3136,null,"race"]
[3137,null,"racer"]
[3138,null,"racing"]
[3139,null,"racist"]
[3140,null,"rack"]
[3141,null,"radar"]
[3142,null,"radiator"]
[3143,null,"radio"]
[3144,null,"radiosonde"]
[3145,null,"radish"]
[3146,null,"raffle"]
[3147,null,"raft"]
[3148,null,"rag"]
[3149,null,"rage"]
[3150,null,"rail"]
[3151,null,"railway"]
[3152,null,"raiment"]
[3153,null,"rain"]
[3154,null,"rainbow"]
[3155,null,"raincoat"]
[3156,null,"rainmaker"]
[3157,null,"rainstorm"]
[3158,null,"raise"]
[3159,null,"rake"]
[3160,null,"ram"]
[3161,null,"rambler"]
[3162,null,"ramie"]
[3163,null,"ranch"]
[3164,null,"random"]
[3165,null,"randomisation"]
[3166,null,"range"]
[3167,null,"rank"]
[3168,null,"raspberry"]
[3169,null,"rat"]
[3170,null,"rate"]
[3171,null,"ratio"]
[3172,null,"raven"]
[3173,null,"ravioli"]
[3174,null,"raw"]
[3175,null,"rawhide"]
[3176,null,"ray"]
[3177,null,"rayon"]
[3178,null,"reactant"]
[3179,null,"reaction"]
[3180,null,"read"]
[3181,null,"reading"]
[3182,null,"reality"]
[3183,null,"reamer"]
[3184,null,"rear"]
[3185,null,"reason"]
[3186,null,"receipt"]
[3187,null,"reception"]
[3188,null,"recess"]
[3189,null,"recipe"]
[3190,null,"recliner"]
[3191,null,"recognition"]
[3192,null,"recommendation"]
[3193,null,"record"]
[3194,null,"recorder"]
[3195,null,"recording"]
[3196,null,"recover"]
[3197,null,"recruit"]
[3198,null,"rectangle"]
[3199,null,"red"]
[3200,null,"redesign"]
[3201,null,"rediscovery"]
[3202,null,"reduction"]
[3203,null,"reef"]
[3204,null,"refectory"]
[3205,null,"reflection"]
[3206,null,"refrigerator"]
[3207,null,"refund"]
[3208,null,"refuse"]
[3209,null,"region"]
[3210,null,"register"]
[3211,null,"regret"]
[3212,null,"regular"]
[3213,null,"regulation"]
[3214,null,"reindeer"]
[3215,null,"reinscription"]
[3216,null,"reject"]
[3217,null,"relation"]
[3218,null,"relationship"]
[3219,null,"relative"]
[3220,null,"religion"]
[3221,null,"relish"]
[3222,null,"reminder"]
[3223,null,"rent"]
[3224,null,"repair"]
[3225,null,"reparation"]
[3226,null,"repeat"]
[3227,null,"replace"]
[3228,null,"replacement"]
[3229,null,"replication"]
[3230,null,"reply"]
[3231,null,"report"]
[3232,null,"representative"]
[3233,null,"reprocessing"]
[3234,null,"republic"]
[3235,null,"reputation"]
[3236,null,"request"]
[3237,null,"requirement"]
[3238,null,"resale"]
[3239,null,"research"]
[3240,null,"resident"]
[3241,null,"resist"]
[3242,null,"resolution"]
[3243,null,"resource"]
[3244,null,"respect"]
[3245,null,"respite"]
[3246,null,"response"]
[3247,null,"responsibility"]
[3248,null,"rest"]
[3249,null,"restaurant"]
[3250,null,"result"]
[3251,null,"retailer"]
[3252,null,"rethinking"]
[3253,null,"retina"]
[3254,null,"retouch"]
[3255,null,"return"]
[3256,null,"reveal"]
[3257,null,"revenant"]
[3258,null,"revenue"]
[3259,null,"review"]
[3260,null,"revolution"]
[3261,null,"revolve"]
[3262,null,"revolver"]
[3263,null,"reward"]
[3264,null,"rheumatism"]
[3265,null,"rhinoceros"]
[3266,null,"rhyme"]
[3267,null,"rhythm"]
[3268,null,"rice"]
[3269,null,"richard"]
[3270,null,"riddle"]
[3271,null,"ride"]
[3272,null,"rider"]
[3273,null,"ridge"]
[3274,null,"rifle"]
[3275,null,"right"]
[3276,null,"rim"]
[3277,null,"ring"]
[3278,null,"ringworm"]
[3279,null,"ripple"]
[3280,null,"rise"]
[3281,null,"riser"]
[3282,null,"risk"]
[3283,null,"river"]
[3284,null,"riverbed"]
[3285,null,"rivulet"]
[3286,null,"road"]
[3287,null,"roadway"]
[3288,null,"roast"]
[3289,null,"robe"]
[3290,null,"robert"]
[3291,null,"robin"]
[3292,null,"rock"]
[3293,null,"rocker"]
[3294,null,"rocket"]
[3295,null,"rocket-ship"]
[3296,null,"rod"]
[3297,null,"role"]
[3298,null,"roll"]
[3299,null,"roller"]
[3300,null,"romania"]
[3301,null,"ronald"]
[3302,null,"roof"]
[3303,null,"room"]
[3304,null,"rooster"]
[3305,null,"root"]
[3306,null,"rope"]
[3307,null,"rose"]
[3308,null,"rostrum"]
[3309,null,"rotate"]
[3310,null,"roundabout"]
[3311,null,"route"]
[3312,null,"router"]
[3313,null,"routine"]
[3314,null,"row"]
[3315,null,"rowboat"]
[3316,null,"royal"]
[3317,null,"rub"]
[3318,null,"rubber"]
[3319,null,"rubric"]
[3320,null,"ruckus"]
[3321,null,"ruffle"]
[3322,null,"rugby"]
[3323,null,"rule"]
[3324,null,"run"]
[3325,null,"runaway"]
[3326,null,"runner"]
[3327,null,"russia"]
[3328,null,"rutabaga"]
[3329,null,"ruth"]
[3330,null,"sabre"]
[3331,null,"sack"]
[3332,null,"sad"]
[3333,null,"saddle"]
[3334,null,"safe"]
[3335,null,"safety"]
[3336,null,"sage"]
[3337,null,"sagittarius"]
[3338,null,"sail"]
[3339,null,"sailboat"]
[3340,null,"sailor"]
[3341,null,"salad"]
[3342,null,"salary"]
[3343,null,"sale"]
[3344,null,"salesman"]
[3345,null,"salmon"]
[3346,null,"salon"]
[3347,null,"saloon"]
[3348,null,"salt"]
[3349,null,"samovar"]
[3350,null,"sampan"]
[3351,null,"sample"]
[3352,null,"samurai"]
[3353,null,"sand"]
[3354,null,"sandals"]
[3355,null,"sandbar"]
[3356,null,"sandra"]
[3357,null,"sandwich"]
[3358,null,"santa"]
[3359,null,"sarah"]
[3360,null,"sardine"]
[3361,null,"sari"]
[3362,null,"sarong"]
[3363,null,"sash"]
[3364,null,"satellite"]
[3365,null,"satin"]
[3366,null,"satire"]
[3367,null,"satisfaction"]
[3368,null,"saturday"]
[3369,null,"sauce"]
[3370,null,"saudi arabia"]
[3371,null,"sausage"]
[3372,null,"save"]
[3373,null,"saving"]
[3374,null,"savior"]
[3375,null,"saviour"]
[3376,null,"saw"]
[3377,null,"saxophone"]
[3378,null,"scale"]
[3379,null,"scallion"]
[3380,null,"scanner"]
[3381,null,"scarecrow"]
[3382,null,"scarf"]
[3383,null,"scarification"]
[3384,null,"scene"]
[3385,null,"scent"]
[3386,null,"schedule"]
[3387,null,"scheme"]
[3388,null,"schizophrenic"]
[3389,null,"schnitzel"]
[3390,null,"school"]
[3391,null,"schoolhouse"]
[3392,null,"schooner"]
[3393,null,"science"]
[3394,null,"scimitar"]
[3395,null,"scissors"]
[3396,null,"scooter"]
[3397,null,"score"]
[3398,null,"scorn"]
[3399,null,"scorpio"]
[3400,null,"scorpion"]
[3401,null,"scow"]
[3402,null,"scraper"]
[3403,null,"screamer"]
[3404,null,"screen"]
[3405,null,"screenwriting"]
[3406,null,"screw"]
[3407,null,"screwdriver"]
[3408,null,"screw-up"]
[3409,null,"scrim"]
[3410,null,"scrip"]
[3411,null,"sculpting"]
[3412,null,"sculpture"]
[3413,null,"sea"]
[3414,null,"seagull"]
[3415,null,"seal"]
[3416,null,"seaplane"]
[3417,null,"search"]
[3418,null,"seashore"]
[3419,null,"season"]
[3420,null,"seat"]
[3421,null,"second"]
[3422,null,"secretariat"]
[3423,null,"secretary"]
[3424,null,"section"]
[3425,null,"sectional"]
[3426,null,"sector"]
[3427,null,"secure"]
[3428,null,"security"]
[3429,null,"seed"]
[3430,null,"seeder"]
[3431,null,"segment"]
[3432,null,"select"]
[3433,null,"selection"]
[3434,null,"self"]
[3435,null,"sell"]
[3436,null,"semicircle"]
[3437,null,"semicolon"]
[3438,null,"senator"]
[3439,null,"sense"]
[3440,null,"sentence"]
[3441,null,"sepal"]
[3442,null,"september"]
[3443,null,"septicaemia"]
[3444,null,"series"]
[3445,null,"servant"]
[3446,null,"server"]
[3447,null,"service"]
[3448,null,"session"]
[3449,null,"set"]
[3450,null,"setting"]
[3451,null,"settler"]
[3452,null,"sewer"]
[3453,null,"sex"]
[3454,null,"shack"]
[3455,null,"shade"]
[3456,null,"shadow"]
[3457,null,"shadowbox"]
[3458,null,"shake"]
[3459,null,"shakedown"]
[3460,null,"shaker"]
[3461,null,"shallot"]
[3462,null,"shame"]
[3463,null,"shampoo"]
[3464,null,"shanty"]
[3465,null,"shape"]
[3466,null,"share"]
[3467,null,"shark"]
[3468,null,"sharon"]
[3469,null,"shawl"]
[3470,null,"shearling"]
[3471,null,"shears"]
[3472,null,"sheath"]
[3473,null,"shed"]
[3474,null,"sheep"]
[3475,null,"sheet"]
[3476,null,"shelf"]
[3477,null,"shell"]
[3478,null,"sherry"]
[3479,null,"shield"]
[3480,null,"shift"]
[3481,null,"shin"]
[3482,null,"shine"]
[3483,null,"shingle"]
[3484,null,"ship"]
[3485,null,"shirt"]
[3486,null,"shirtdress"]
[3487,null,"shoat"]
[3488,null,"shock"]
[3489,null,"shoe"]
[3490,null,"shoehorn"]
[3491,null,"shoe-horn"]
[3492,null,"shoelace"]
[3493,null,"shoemaker"]
[3494,null,"shoes"]
[3495,null,"shoestring"]
[3496,null,"shofar"]
[3497,null,"shoot"]
[3498,null,"shootdown"]
[3499,null,"shop"]
[3500,null,"shopper"]
[3501,null,"shopping"]
[3502,null,"shore"]
[3503,null,"shortage"]
[3504,null,"shorts"]
[3505,null,"shortwave"]
[3506,null,"shot"]
[3507,null,"shoulder"]
[3508,null,"shovel"]
[3509,null,"show"]
[3510,null,"shower"]
[3511,null,"show-stopper"]
[3512,null,"shred"]
[3513,null,"shrimp"]
[3514,null,"shrine"]
[3515,null,"siamese"]
[3516,null,"sibling"]
[3517,null,"sick"]
[3518,null,"side"]
[3519,null,"sideboard"]
[3520,null,"sideburns"]
[3521,null,"sidecar"]
[3522,null,"sidestream"]
[3523,null,"sidewalk"]
[3524,null,"siding"]
[3525,null,"sign"]
[3526,null,"signature"]
[3527,null,"signet"]
[3528,null,"significance"]
[3529,null,"signup"]
[3530,null,"silica"]
[3531,null,"silk"]
[3532,null,"silkworm"]
[3533,null,"sill"]
[3534,null,"silo"]
[3535,null,"silver"]
[3536,null,"simple"]
[3537,null,"sing"]
[3538,null,"singer"]
[3539,null,"single"]
[3540,null,"sink"]
[3541,null,"sir"]
[3542,null,"sister"]
[3543,null,"sister-in-law"]
[3544,null,"sit"]
[3545,null,"sitar"]
[3546,null,"situation"]
[3547,null,"size"]
[3548,null,"skate"]
[3549,null,"skiing"]
[3550,null,"skill"]
[3551,null,"skin"]
[3552,null,"skirt"]
[3553,null,"skulduggery"]
[3554,null,"skull"]
[3555,null,"skullcap"]
[3556,null,"skullduggery"]
[3557,null,"skunk"]
[3558,null,"sky"]
[3559,null,"skylight"]
[3560,null,"skyscraper"]
[3561,null,"skywalk"]
[3562,null,"slapstick"]
[3563,null,"slash"]
[3564,null,"slave"]
[3565,null,"sled"]
[3566,null,"sledge"]
[3567,null,"sleep"]
[3568,null,"sleet"]
[3569,null,"sleuth"]
[3570,null,"slice"]
[3571,null,"slider"]
[3572,null,"slime"]
[3573,null,"slip"]
[3574,null,"slipper"]
[3575,null,"slippers"]
[3576,null,"slope"]
[3577,null,"sloth"]
[3578,null,"smash"]
[3579,null,"smell"]
[3580,null,"smelting"]
[3581,null,"smile"]
[3582,null,"smock"]
[3583,null,"smog"]
[3584,null,"smoke"]
[3585,null,"smuggling"]
[3586,null,"snail"]
[3587,null,"snake"]
[3588,null,"snakebite"]
[3589,null,"sneakers"]
[3590,null,"sneeze"]
[3591,null,"snob"]
[3592,null,"snorer"]
[3593,null,"snow"]
[3594,null,"snowboarding"]
[3595,null,"snowflake"]
[3596,null,"snowman"]
[3597,null,"snowmobiling"]
[3598,null,"snowplow"]
[3599,null,"snowstorm"]
[3600,null,"snowsuit"]
[3601,null,"snuggle"]
[3602,null,"soap"]
[3603,null,"soccer"]
[3604,null,"society"]
[3605,null,"sociology"]
[3606,null,"sock"]
[3607,null,"socks"]
[3608,null,"soda"]
[3609,null,"sofa"]
[3610,null,"softball"]
[3611,null,"softdrink"]
[3612,null,"softening"]
[3613,null,"software"]
[3614,null,"soil"]
[3615,null,"soldier"]
[3616,null,"solid"]
[3617,null,"solitaire"]
[3618,null,"solution"]
[3619,null,"sombrero"]
[3620,null,"somersault"]
[3621,null,"somewhere"]
[3622,null,"son"]
[3623,null,"song"]
[3624,null,"songbird"]
[3625,null,"sonnet"]
[3626,null,"soot"]
[3627,null,"soprano"]
[3628,null,"sorbet"]
[3629,null,"sort"]
[3630,null,"soulmate"]
[3631,null,"sound"]
[3632,null,"soup"]
[3633,null,"source"]
[3634,null,"sourwood"]
[3635,null,"sousaphone"]
[3636,null,"south"]
[3637,null,"south africa"]
[3638,null,"south america"]
[3639,null,"south korea"]
[3640,null,"sow"]
[3641,null,"soy"]
[3642,null,"soybean"]
[3643,null,"space"]
[3644,null,"spacing"]
[3645,null,"spade"]
[3646,null,"spaghetti"]
[3647,null,"spain"]
[3648,null,"spandex"]
[3649,null,"spank"]
[3650,null,"spark"]
[3651,null,"sparrow"]
[3652,null,"spasm"]
[3653,null,"speaker"]
[3654,null,"speakerphone"]
[3655,null,"spear"]
[3656,null,"special"]
[3657,null,"specialist"]
[3658,null,"specific"]
[3659,null,"spectacle"]
[3660,null,"spectacles"]
[3661,null,"spectrograph"]
[3662,null,"speech"]
[3663,null,"speedboat"]
[3664,null,"spend"]
[3665,null,"sphere"]
[3666,null,"sphynx"]
[3667,null,"spider"]
[3668,null,"spike"]
[3669,null,"spinach"]
[3670,null,"spine"]
[3671,null,"spiral"]
[3672,null,"spirit"]
[3673,null,"spiritual"]
[3674,null,"spite"]
[3675,null,"spleen"]
[3676,null,"split"]
[3677,null,"sponge"]
[3678,null,"spoon"]
[3679,null,"sport"]
[3680,null,"spot"]
[3681,null,"spotlight"]
[3682,null,"spray"]
[3683,null,"spread"]
[3684,null,"spring"]
[3685,null,"sprinter"]
[3686,null,"sprout"]
[3687,null,"spruce"]
[3688,null,"spume"]
[3689,null,"spur"]
[3690,null,"spy"]
[3691,null,"square"]
[3692,null,"squash"]
[3693,null,"squatter"]
[3694,null,"squeegee"]
[3695,null,"squid"]
[3696,null,"squirrel"]
[3697,null,"stable"]
[3698,null,"stack"]
[3699,null,"stacking"]
[3700,null,"stadium"]
[3701,null,"staff"]
[3702,null,"stag"]
[3703,null,"stage"]
[3704,null,"stain"]
[3705,null,"stair"]
[3706,null,"staircase"]
[3707,null,"stallion"]
[3708,null,"stamen"]
[3709,null,"stamina"]
[3710,null,"stamp"]
[3711,null,"stance"]
[3712,null,"standoff"]
[3713,null,"star"]
[3714,null,"start"]
[3715,null,"starter"]
[3716,null,"state"]
[3717,null,"statement"]
[3718,null,"station"]
[3719,null,"station-wagon"]
[3720,null,"statistic"]
[3721,null,"statistician"]
[3722,null,"steak"]
[3723,null,"steal"]
[3724,null,"steam"]
[3725,null,"steamroller"]
[3726,null,"steel"]
[3727,null,"steeple"]
[3728,null,"stem"]
[3729,null,"stencil"]
[3730,null,"step"]
[3731,null,"step-aunt"]
[3732,null,"step-brother"]
[3733,null,"stepdaughter"]
[3734,null,"step-daughter"]
[3735,null,"step-father"]
[3736,null,"step-grandfather"]
[3737,null,"step-grandmother"]
[3738,null,"stepmother"]
[3739,null,"step-mother"]
[3740,null,"stepping-stone"]
[3741,null,"steps"]
[3742,null,"step-sister"]
[3743,null,"stepson"]
[3744,null,"step-son"]
[3745,null,"step-uncle"]
[3746,null,"steven"]
[3747,null,"stew"]
[3748,null,"stick"]
[3749,null,"stiletto"]
[3750,null,"still"]
[3751,null,"stinger"]
[3752,null,"stitch"]
[3753,null,"stock"]
[3754,null,"stocking"]
[3755,null,"stockings"]
[3756,null,"stock-in-trade"]
[3757,null,"stole"]
[3758,null,"stomach"]
[3759,null,"stone"]
[3760,null,"stonework"]
[3761,null,"stool"]
[3762,null,"stop"]
[3763,null,"stopsign"]
[3764,null,"stopwatch"]
[3765,null,"storage"]
[3766,null,"store"]
[3767,null,"storey"]
[3768,null,"storm"]
[3769,null,"story"]
[3770,null,"storyboard"]
[3771,null,"story-telling"]
[3772,null,"stove"]
[3773,null,"strait"]
[3774,null,"stranger"]
[3775,null,"strap"]
[3776,null,"strategy"]
[3777,null,"straw"]
[3778,null,"strawberry"]
[3779,null,"stream"]
[3780,null,"street"]
[3781,null,"streetcar"]
[3782,null,"stress"]
[3783,null,"stretch"]
[3784,null,"strike"]
[3785,null,"string"]
[3786,null,"strip"]
[3787,null,"structure"]
[3788,null,"struggle"]
[3789,null,"stud"]
[3790,null,"student"]
[3791,null,"studio"]
[3792,null,"study"]
[3793,null,"stuff"]
[3794,null,"stumbling"]
[3795,null,"sturgeon"]
[3796,null,"style"]
[3797,null,"styling"]
[3798,null,"stylus"]
[3799,null,"subcomponent"]
[3800,null,"subconscious"]
[3801,null,"submarine"]
[3802,null,"subroutine"]
[3803,null,"subsidence"]
[3804,null,"substance"]
[3805,null,"suburb"]
[3806,null,"subway"]
[3807,null,"success"]
[3808,null,"suck"]
[3809,null,"sudan"]
[3810,null,"suede"]
[3811,null,"suffocation"]
[3812,null,"sugar"]
[3813,null,"suggestion"]
[3814,null,"suit"]
[3815,null,"suitcase"]
[3816,null,"sultan"]
[3817,null,"summer"]
[3818,null,"sun"]
[3819,null,"sunbeam"]
[3820,null,"sunbonnet"]
[3821,null,"sunday"]
[3822,null,"sundial"]
[3823,null,"sunflower"]
[3824,null,"sunglasses"]
[3825,null,"sunlamp"]
[3826,null,"sunroom"]
[3827,null,"sunshine"]
[3828,null,"supermarket"]
[3829,null,"supply"]
[3830,null,"support"]
[3831,null,"supporter"]
[3832,null,"suppression"]
[3833,null,"surface"]
[3834,null,"surfboard"]
[3835,null,"surgeon"]
[3836,null,"surgery"]
[3837,null,"surname"]
[3838,null,"surprise"]
[3839,null,"susan"]
[3840,null,"sushi"]
[3841,null,"suspect"]
[3842,null,"suspenders"]
[3843,null,"sustainment"]
[3844,null,"SUV"]
[3845,null,"swallow"]
[3846,null,"swamp"]
[3847,null,"swan"]
[3848,null,"swath"]
[3849,null,"sweat"]
[3850,null,"sweater"]
[3851,null,"sweats"]
[3852,null,"sweatshirt"]
[3853,null,"sweatshop"]
[3854,null,"sweatsuit"]
[3855,null,"swedish"]
[3856,null,"sweets"]
[3857,null,"swell"]
[3858,null,"swim"]
[3859,null,"swimming"]
[3860,null,"swimsuit"]
[3861,null,"swing"]
[3862,null,"swiss"]
[3863,null,"switch"]
[3864,null,"switchboard"]
[3865,null,"swivel"]
[3866,null,"sword"]
[3867,null,"swordfish"]
[3868,null,"sycamore"]
[3869,null,"sympathy"]
[3870,null,"syndicate"]
[3871,null,"synergy"]
[3872,null,"synod"]
[3873,null,"syria"]
[3874,null,"syrup"]
[3875,null,"system"]
[3876,null,"tabby"]
[3877,null,"tabernacle"]
[3878,null,"table"]
[3879,null,"tablecloth"]
[3880,null,"tabletop"]
[3881,null,"tachometer"]
[3882,null,"tackle"]
[3883,null,"tadpole"]
[3884,null,"tail"]
[3885,null,"tailor"]
[3886,null,"tailspin"]
[3887,null,"taiwan"]
[3888,null,"tale"]
[3889,null,"talk"]
[3890,null,"tam"]
[3891,null,"tambour"]
[3892,null,"tambourine"]
[3893,null,"tam-o'-shanter"]
[3894,null,"tandem"]
[3895,null,"tangerine"]
[3896,null,"tank"]
[3897,null,"tanker"]
[3898,null,"tankful"]
[3899,null,"tank-top"]
[3900,null,"tanzania"]
[3901,null,"tap"]
[3902,null,"target"]
[3903,null,"tassel"]
[3904,null,"taste"]
[3905,null,"tatami"]
[3906,null,"tattler"]
[3907,null,"tattoo"]
[3908,null,"taurus"]
[3909,null,"tavern"]
[3910,null,"tax"]
[3911,null,"taxi"]
[3912,null,"taxicab"]
[3913,null,"tea"]
[3914,null,"teacher"]
[3915,null,"teaching"]
[3916,null,"team"]
[3917,null,"tear"]
[3918,null,"technician"]
[3919,null,"technologist"]
[3920,null,"technology"]
[3921,null,"teen"]
[3922,null,"teeth"]
[3923,null,"telephone"]
[3924,null,"telescreen"]
[3925,null,"teletype"]
[3926,null,"television"]
[3927,null,"teller"]
[3928,null,"temp"]
[3929,null,"temper"]
[3930,null,"temperature"]
[3931,null,"temple"]
[3932,null,"tempo"]
[3933,null,"temporariness"]
[3934,null,"temptress"]
[3935,null,"tendency"]
[3936,null,"tenement"]
[3937,null,"tennis"]
[3938,null,"tenor"]
[3939,null,"tension"]
[3940,null,"tent"]
[3941,null,"tepee"]
[3942,null,"term"]
[3943,null,"terracotta"]
[3944,null,"terrapin"]
[3945,null,"territory"]
[3946,null,"test"]
[3947,null,"text"]
[3948,null,"textbook"]
[3949,null,"texture"]
[3950,null,"thailand"]
[3951,null,"thanks"]
[3952,null,"thaw"]
[3953,null,"theater"]
[3954,null,"theism"]
[3955,null,"theme"]
[3956,null,"theoretician"]
[3957,null,"theory"]
[3958,null,"therapist"]
[3959,null,"thermals"]
[3960,null,"thermometer"]
[3961,null,"thigh"]
[3962,null,"thing"]
[3963,null,"thinking"]
[3964,null,"thistle"]
[3965,null,"thomas"]
[3966,null,"thong"]
[3967,null,"thongs"]
[3968,null,"thorn"]
[3969,null,"thought"]
[3970,null,"thread"]
[3971,null,"thrill"]
[3972,null,"throat"]
[3973,null,"throne"]
[3974,null,"thrush"]
[3975,null,"thumb"]
[3976,null,"thunder"]
[3977,null,"thunderbolt"]
[3978,null,"thunderhead"]
[3979,null,"thunderstorm"]
[3980,null,"thursday"]
[3981,null,"tiara"]
[3982,null,"tic"]
[3983,null,"ticket"]
[3984,null,"tie"]
[3985,null,"tiger"]
[3986,null,"tight"]
[3987,null,"tights"]
[3988,null,"tile"]
[3989,null,"till"]
[3990,null,"timbale"]
[3991,null,"time"]
[3992,null,"timeline"]
[3993,null,"timeout"]
[3994,null,"timer"]
[3995,null,"timpani"]
[3996,null,"tin"]
[3997,null,"tinderbox"]
[3998,null,"tinkle"]
[3999,null,"tintype"]
[4000,null,"tip"]
[4001,null,"tire"]
[4002,null,"tissue"]
[4003,null,"titanium"]
[4004,null,"title"]
[4005,null,"toad"]
[4006,null,"toast"]
[4007,null,"toe"]
[4008,null,"toenail"]
[4009,null,"toga"]
[4010,null,"togs"]
[4011,null,"toilet"]
[4012,null,"tom"]
[4013,null,"tomato"]
[4014,null,"tomography"]
[4015,null,"tomorrow"]
[4016,null,"tom-tom"]
[4017,null,"ton"]
[4018,null,"tongue"]
[4019,null,"toot"]
[4020,null,"tooth"]
[4021,null,"toothbrush"]
[4022,null,"toothpaste"]
[4023,null,"toothpick"]
[4024,null,"top"]
[4025,null,"top-hat"]
[4026,null,"topic"]
[4027,null,"topsail"]
[4028,null,"toque"]
[4029,null,"torchiere"]
[4030,null,"toreador"]
[4031,null,"tornado"]
[4032,null,"torso"]
[4033,null,"tortellini"]
[4034,null,"tortoise"]
[4035,null,"tosser"]
[4036,null,"total"]
[4037,null,"tote"]
[4038,null,"touch"]
[4039,null,"tough"]
[4040,null,"tough-guy"]
[4041,null,"tour"]
[4042,null,"tourist"]
[4043,null,"towel"]
[4044,null,"tower"]
[4045,null,"town"]
[4046,null,"townhouse"]
[4047,null,"tow-truck"]
[4048,null,"toy"]
[4049,null,"trachoma"]
[4050,null,"track"]
[4051,null,"tracksuit"]
[4052,null,"tractor"]
[4053,null,"trade"]
[4054,null,"tradition"]
[4055,null,"traditionalism"]
[4056,null,"traffic"]
[4057,null,"trail"]
[4058,null,"trailer"]
[4059,null,"train"]
[4060,null,"trainer"]
[4061,null,"training"]
[4062,null,"tram"]
[4063,null,"tramp"]
[4064,null,"transaction"]
[4065,null,"translation"]
[4066,null,"transmission"]
[4067,null,"transom"]
[4068,null,"transport"]
[4069,null,"transportation"]
[4070,null,"trapdoor"]
[4071,null,"trapezium"]
[4072,null,"trapezoid"]
[4073,null,"trash"]
[4074,null,"travel"]
[4075,null,"tray"]
[4076,null,"treatment"]
[4077,null,"tree"]
[4078,null,"trellis"]
[4079,null,"tremor"]
[4080,null,"trench"]
[4081,null,"trial"]
[4082,null,"triangle"]
[4083,null,"tribe"]
[4084,null,"trick"]
[4085,null,"trigonometry"]
[4086,null,"trim"]
[4087,null,"trinket"]
[4088,null,"trip"]
[4089,null,"tripod"]
[4090,null,"trolley"]
[4091,null,"trombone"]
[4092,null,"trooper"]
[4093,null,"trouble"]
[4094,null,"trousers"]
[4095,null,"trout"]
[4096,null,"trove"]
[4097,null,"trowel"]
[4098,null,"truck"]
[4099,null,"truckit"]
[4100,null,"trumpet"]
[4101,null,"trunk"]
[4102,null,"trust"]
[4103,null,"truth"]
[4104,null,"try"]
[4105,null,"t-shirt"]
[4106,null,"tsunami"]
[4107,null,"tub"]
[4108,null,"tuba"]
[4109,null,"tube"]
[4110,null,"tuesday"]
[4111,null,"tugboat"]
[4112,null,"tulip"]
[4113,null,"tummy"]
[4114,null,"tuna"]
[4115,null,"tune"]
[4116,null,"tune-up"]
[4117,null,"tunic"]
[4118,null,"tunnel"]
[4119,null,"turban"]
[4120,null,"turkey"]
[4121,null,"turkish"]
[4122,null,"turn"]
[4123,null,"turnip"]
[4124,null,"turnover"]
[4125,null,"turnstile"]
[4126,null,"turret"]
[4127,null,"turtle"]
[4128,null,"tussle"]
[4129,null,"tutu"]
[4130,null,"tuxedo"]
[4131,null,"tv"]
[4132,null,"twig"]
[4133,null,"twilight"]
[4134,null,"twine"]
[4135,null,"twist"]
[4136,null,"twister"]
[4137,null,"two"]
[4138,null,"typewriter"]
[4139,null,"typhoon"]
[4140,null,"tyvek"]
[4141,null,"uganda"]
[4142,null,"ukraine"]
[4143,null,"ukulele"]
[4144,null,"umbrella"]
[4145,null,"unblinking"]
[4146,null,"uncle"]
[4147,null,"underclothes"]
[4148,null,"underground"]
[4149,null,"underneath"]
[4150,null,"underpants"]
[4151,null,"underpass"]
[4152,null,"undershirt"]
[4153,null,"understanding"]
[4154,null,"underwear"]
[4155,null,"underwire"]
[4156,null,"unibody"]
[4157,null,"uniform"]
[4158,null,"union"]
[4159,null,"unit"]
[4160,null,"united kingdom"]
[4161,null,"university"]
[4162,null,"urn"]
[4163,null,"use"]
[4164,null,"user"]
[4165,null,"usher"]
[4166,null,"utensil"]
[4167,null,"uzbekistan"]
[4168,null,"vacation"]
[4169,null,"vacuum"]
[4170,null,"vagrant"]
[4171,null,"valance"]
[4172,null,"valley"]
[4173,null,"valuable"]
[4174,null,"value"]
[4175,null,"van"]
[4176,null,"vane"]
[4177,null,"vanity"]
[4178,null,"variation"]
[4179,null,"variety"]
[4180,null,"vase"]
[4181,null,"vast"]
[4182,null,"vault"]
[4183,null,"vaulting"]
[4184,null,"veal"]
[4185,null,"vegetable"]
[4186,null,"vegetarian"]
[4187,null,"vehicle"]
[4188,null,"veil"]
[4189,null,"vein"]
[4190,null,"veldt"]
[4191,null,"vellum"]
[4192,null,"velodrome"]
[4193,null,"velvet"]
[4194,null,"venezuela"]
[4195,null,"venezuelan"]
[4196,null,"venom"]
[4197,null,"veranda"]
[4198,null,"verdict"]
[4199,null,"vermicelli"]
[4200,null,"verse"]
[4201,null,"version"]
[4202,null,"vertigo"]
[4203,null,"verve"]
[4204,null,"vessel"]
[4205,null,"vest"]
[4206,null,"vestment"]
[4207,null,"vibe"]
[4208,null,"vibraphone"]
[4209,null,"vibration"]
[4210,null,"video"]
[4211,null,"vietnam"]
[4212,null,"view"]
[4213,null,"villa"]
[4214,null,"village"]
[4215,null,"vineyard"]
[4216,null,"vinyl"]
[4217,null,"viola"]
[4218,null,"violet"]
[4219,null,"violin"]
[4220,null,"virginal"]
[4221,null,"virgo"]
[4222,null,"virtue"]
[4223,null,"virus"]
[4224,null,"viscose"]
[4225,null,"vise"]
[4226,null,"vision"]
[4227,null,"visit"]
[4228,null,"visitor"]
[4229,null,"visor"]
[4230,null,"vixen"]
[4231,null,"voice"]
[4232,null,"volcano"]
[4233,null,"volleyball"]
[4234,null,"volume"]
[4235,null,"voyage"]
[4236,null,"vulture"]
[4237,null,"wad"]
[4238,null,"wafer"]
[4239,null,"waffle"]
[4240,null,"waist"]
[4241,null,"waistband"]
[4242,null,"waiter"]
[4243,null,"waitress"]
[4244,null,"walk"]
[4245,null,"walker"]
[4246,null,"walkway"]
[4247,null,"wall"]
[4248,null,"wallaby"]
[4249,null,"wallet"]
[4250,null,"walnut"]
[4251,null,"walrus"]
[4252,null,"wampum"]
[4253,null,"wannabe"]
[4254,null,"war"]
[4255,null,"warden"]
[4256,null,"warlock"]
[4257,null,"warm-up"]
[4258,null,"warning"]
[4259,null,"wash"]
[4260,null,"washbasin"]
[4261,null,"washcloth"]
[4262,null,"washer"]
[4263,null,"washtub"]
[4264,null,"wasp"]
[4265,null,"waste"]
[4266,null,"wastebasket"]
[4267,null,"watch"]
[4268,null,"watchmaker"]
[4269,null,"water"]
[4270,null,"waterbed"]
[4271,null,"waterfall"]
[4272,null,"waterskiing"]
[4273,null,"waterspout"]
[4274,null,"wave"]
[4275,null,"wax"]
[4276,null,"way"]
[4277,null,"weakness"]
[4278,null,"wealth"]
[4279,null,"weapon"]
[4280,null,"weasel"]
[4281,null,"weather"]
[4282,null,"web"]
[4283,null,"wedding"]
[4284,null,"wedge"]
[4285,null,"wednesday"]
[4286,null,"weed"]
[4287,null,"weeder"]
[4288,null,"weedkiller"]
[4289,null,"week"]
[4290,null,"weekend"]
[4291,null,"weekender"]
[4292,null,"weight"]
[4293,null,"weird"]
[4294,null,"well"]
[4295,null,"west"]
[4296,null,"western"]
[4297,null,"wet-bar"]
[4298,null,"wetsuit"]
[4299,null,"whale"]
[4300,null,"wharf"]
[4301,null,"wheel"]
[4302,null,"whip"]
[4303,null,"whirlpool"]
[4304,null,"whirlwind"]
[4305,null,"whisker"]
[4306,null,"whiskey"]
[4307,null,"whistle"]
[4308,null,"white"]
[4309,null,"whole"]
[4310,null,"wholesale"]
[4311,null,"wholesaler"]
[4312,null,"whorl"]
[4313,null,"wife"]
[4314,null,"wilderness"]
[4315,null,"will"]
[4316,null,"william"]
[4317,null,"willow"]
[4318,null,"wind"]
[4319,null,"windage"]
[4320,null,"wind-chime"]
[4321,null,"window"]
[4322,null,"windscreen"]
[4323,null,"windshield"]
[4324,null,"wine"]
[4325,null,"wing"]
[4326,null,"wingman"]
[4327,null,"wingtip"]
[4328,null,"winner"]
[4329,null,"winter"]
[4330,null,"wire"]
[4331,null,"wiseguy"]
[4332,null,"wish"]
[4333,null,"wisteria"]
[4334,null,"witch"]
[4335,null,"witch-hunt"]
[4336,null,"withdrawal"]
[4337,null,"witness"]
[4338,null,"wolf"]
[4339,null,"woman"]
[4340,null,"wombat"]
[4341,null,"women"]
[4342,null,"wood"]
[4343,null,"woodland"]
[4344,null,"woodshed"]
[4345,null,"woodwind"]
[4346,null,"wool"]
[4347,null,"woolen"]
[4348,null,"word"]
[4349,null,"work"]
[4350,null,"workbench"]
[4351,null,"worker"]
[4352,null,"workhorse"]
[4353,null,"worklife"]
[4354,null,"workshop"]
[4355,null,"world"]
[4356,null,"worm"]
[4357,null,"worthy"]
[4358,null,"wound"]
[4359,null,"wrap"]
[4360,null,"wraparound"]
[4361,null,"wrecker"]
[4362,null,"wren"]
[4363,null,"wrench"]
[4364,null,"wrestler"]
[4365,null,"wrinkle"]
[4366,null,"wrist"]
[4367,null,"writer"]
[4368,null,"writing"]
[4369,null,"wrong"]
[4370,null,"xylophone"]
[4371,null,"yacht"]
[4372,null,"yak"]
[4373,null,"yam"]
[4374,null,"yard"]
[4375,null,"yarmulke"]
[4376,null,"yarn"]
[4377,null,"yawl"]
[4378,null,"year"]
[4379,null,"yellow"]
[4380,null,"yesterday"]
[4381,null,"yew"]
[4382,null,"yin"]
[4383,null,"yogurt"]
[4384,null,"yoke"]
[4385,null,"young"]
[4386,null,"youth"]
[4387,null,"yurt"]
[4388,null,"zampone"]
[4389,null,"zebra"]
[4390,null,"subspecies"]
[4391,null,"zephyr"]
[4392,null,"ziggurat"]
[4393,null,"zinc"]
[4394,null,"zipper"]
[4395,null,"zither"]
[4396,null,"zone"]
[4397,null,"zoo"]
[4398,null,"zoologist"]
[4399,null,"zoology"]
[4400,null,"zoot-suit"]
[4401,null,"zucchini"]